Workbook

Sheet Comentarios (hidden)
A1: RUTA | B1: Formulada | C1: Comentario | D1: Segmento | E1: Color
A2: =SUBSTITUTE(SUBSTITUTE(FORMULATEXTO_Act(Comentarios[[#This Row],[Formulada]]),"=",""),"'","") -> !$B$136 | B2: =' '!$B$136 -> Actividad principal del contribuyente | C2: Debe tenerse en cuenta que la actividad principal debe corresponder con aquella que mayores ingresos le haya generado al contribuyente, de acuerdo con la clasificación de actividades económicas establecida en la Resolución DIAN 000114 de 2020. | D2: Datos Contribuyente | E2: Azul
A3: =SUBSTITUTE(SUBSTITUTE(FORMULATEXTO_Act(Comentarios[[#This Row],[Formulada]]),"=",""),"'","") -> !$B$148 | B3: =' '!$B$148 -> Ingreso promedio mensual de los últimos seis meses de vinculación laboral | C3: A través del Concepto 1302 de 2019, la DIAN precisó que el ingreso mensual promedio mencionado en el numeral 4 del artículo 206 del ET, corresponde a las sumas que habitual y periódicamente recibe el trabajador en dinero o en especie como contraprestación directa de los servicios que presta, pues lo que se busca establecer es el salario mensual promedio; por esto, se deben considerar los valores que constituyan salario o pago recurrente, y no todos los conceptos señalados en el artículo 103 del ET. Adicionalmente, este concepto aclara el término que se debe tener en cuenta para determinar el periodo de los seis meses para el cálculo del ingreso mensual promedio indicando que, cuando el empleado se haya retirado de su trabajo, los seis meses a tener en cuenta son los últimos seis meses de vinculación laboral; en caso de que el empleado continue en su trabajo, se deberán considerar los seis meses del año inmediatamente anterior a aquel en que las cesantías se consignen o se consoliden y queden disponibles en las cuentas individuales, o sean efectivamente pagadas al trabajador. | D3: Datos Contribuyente | E3: Azul
A4: =SUBSTITUTE(SUBSTITUTE(FORMULATEXTO_Act(Comentarios[[#This Row],[Formulada]]),"=",""),"'","") -> !$B$159 | B4: =' '!$B$159 -> Pérdidas fiscales de rentas de trabajo por honorarios y comp. servicios personales generadas en el año gravable 2019 y/o siguientes, sin compensar | C4: El artículo 1.2.1.20.6 del Decreto 1625 de 2016 indica que, a partir del año gravable 2019, las pérdidas fiscales generadas por una renta, pueden ser compensadas contra la misma renta. Así, las personas naturales que tengan pérdidas fiscales que se hayan generado en los años gravables 2019, 2020 y/o 2021, relacionadas con rentas de trabajo por honorarios y compensación de servicios personales, pueden compensarlas con la renta líquida ordinaria de estas mismas rentas. | D4: Datos Contribuyente | E4: Azul
A5: =SUBSTITUTE(SUBSTITUTE(FORMULATEXTO_Act(Comentarios[[#This Row],[Formulada]]),"=",""),"'","") -> !$B$161 | B5: =' '!$B$161 -> Pérdidas fiscales de rentas de capital generadas en el año gravable 2019 y/o siguientes, sin compensar | C5: El artículo 1.2.1.20.6 del Decreto 1625 de 2016 señala que, a partir del año gravable 2019, las pérdidas fiscales generadas por una renta, pueden ser compensadas contra la misma renta. Así, las personas naturales que tengan pérdidas fiscales que se hayan generado en los años gravables 2019, 2020 y/o 2021 relacionadas con rentas de capital, pueden compensarlas con la renta líquida ordinaria de estas mismas rentas. | D5: Datos Contribuyente | E5: Azul
A6: =SUBSTITUTE(SUBSTITUTE(FORMULATEXTO_Act(Comentarios[[#This Row],[Formulada]]),"=",""),"'","") -> !$B$163 | B6: =' '!$B$163 -> Pérdidas fiscales de rentas no laborales generadas en el año gravable 2019 y/o siguientes, sin compensar | C6: El artículo 1.2.1.20.6 del Decreto 1625 de 2016 establece que, a partir del año gravable 2019, las pérdidas fiscales generadas por una renta, pueden ser compensadas contra la misma renta. Así, las personas naturales que tengan pérdidas fiscales que se hayan generado en los años gravables 2019, 2020 y/o 2021 relacionadas con rentas no laborales, pueden compensarlas con la renta líquida ordinaria de estas mismas rentas. | D6: Datos Contribuyente | E6: Azul
A7: =SUBSTITUTE(SUBSTITUTE(FORMULATEXTO_Act(Comentarios[[#This Row],[Formulada]]),"=",""),"'","") -> !$B$165 | B7: =' '!$B$165 -> Pérdidas fiscales acumuladas correspondientes al año gravable 2018 y anteriores, sin compensar | C7: El artículo 1.2.1.20.6 del Decreto 1625 de 2016 indica que, las pérdidas declaradas en los periodos gravables 2018 y anteriores pueden ser compensadas con la renta líquida de la cédula general, sin afectar las rentas de trabajo. | D7: Datos Contribuyente | E7: Azul
A8: =SUBSTITUTE(SUBSTITUTE(FORMULATEXTO_Act(Comentarios[[#This Row],[Formulada]]),"=",""),"'","") -> !$B$167 | B8: =' '!$B$167 -> Excesos de renta presuntiva, sin compensar | C8: El artículo 1.2.1.19.16 del Decreto 1625 de 2016 indica que las personas naturales residentes contribuyentes del impuesto de renta, pueden compensar los excesos de renta presuntiva, hasta el valor de la renta líquida gravable de la cédula general del período fiscal correspondiente, en los términos previstos en el artículo 189 del ET, es decir, dentro de los cinco (5) años siguientes. | D8: Datos Contribuyente | E8: Azul
A9: =SUBSTITUTE(SUBSTITUTE(FORMULATEXTO_Act(Comentarios[[#This Row],[Formulada]]),"=",""),"'","") -> !$B$203 | B9: =' '!$B$203 -> Saldo acumulado en el fondo de cesantía a 31 de diciembre de 2022 | C9: Debe tenerse en cuenta que, los valores que se deben incluir en el patrimonio son aquellos que fueron consignados a partir del 1 de enero de 2017 y que permanecían en el fondo a 31 de diciembre de 2022. | D9: Activos | E9: Azul
A10: =SUBSTITUTE(SUBSTITUTE(FORMULATEXTO_Act(Comentarios[[#This Row],[Formulada]]),"=",""),"'","") -> !$K$217 | B10: =' '!$K$217 -> Costo fiscal ajustado con factor (artículo 73 del ET) | C10: El ajuste contemplado en el artículo 73 del ET puede aplicarse de forma voluntaria por el contribuyente para efectos de determinar la renta o ganancia ocasional que se genere en la venta de acciones y/o aportes. Los factores a aplicar se encuentran establecidos en el artículo 1.2.1.17.21 del Decreto 1625 de 2016. Cabe señalar que, a través el Concepto 520 (914975) del 6 de diciembre 2021, la DIAN indicó que, "el artículo 73 del Estatuto Tributario establece expresamente como requisito para su aplicación, incluir como valor patrimonial en las declaraciones de renta el costo fiscal determinado según lo establecido en dicha disposición". Así, en caso de que el contribuyente planee vender acciones y/o aportes durante el 2023, lo correspondiente es que, si desea aplicar este ajuste al valor de la acciones y/o aportes, el costo ajustado se vea reflejado dentro del patrimonio reportado en la declaración de renta del año gravable 2022. De acuerdo con el artículo 280 del ET, los ajustes señalados en el artículo 70 y 73 del ET, son excluyentes entre sí, es decir que, no se pueden aplicar de manera simultánea. | D10: Reajuste fiscal de los activos | E10: Azul
A11: =SUBSTITUTE(SUBSTITUTE(FORMULATEXTO_Act(Comentarios[[#This Row],[Formulada]]),"=",""),"'","") -> !$I$217 | B11: =' '!$I$217 -> Costo fiscal reajustado a 31 de diciembre de 2022 (artículo 70 del ET) | C11: El ajuste del costo fiscal de los bienes muebles e inmuebles, es optativo para el contribuyente. Para el año gravable 2022, el porcentaje de ajuste corresponde al 4.67%, de acuerdo con el artículo 1.2.1.17.20 del Decreto 1625 de 2016. De acuerdo con el artículo 280 del ET, los ajustes señalados en el artículo 70 y 73 del ET, son excluyentes entre sí, es decir que, no se pueden aplicar de manera simultánea. | D11: Reajuste fiscal de los activos | E11: Azul
A12: =SUBSTITUTE(SUBSTITUTE(FORMULATEXTO_Act(Comentarios[[#This Row],[Formulada]]),"=",""),"'","") -> !$G$217 | B12: =' '!$G$217 -> Valor declarado el año anterior | C12: Si el contribuyente adquirió las acciones y/o aportes durante el 2022, diligencie la celda con un cero ($0). Si fueron adquiridas antes del 2022, es necesario registrar el valor por el cual se reportaron en la declaración de renta del año anterior; si es la primera vez que el contribuyente declara, incluya en esta celda el costo de adquisición de las acciones y/o aportes. Si las acciones y/o aportes corresponden a un activo omitido que no se acogió a normalización tributaria, tenga en cuenta que el valor de estas deberá ser reportada como renta líquida gravable en los términos del artículo 239-1 del ET. | D12: Reajuste fiscal de los activos | E12: Azul
A13: =SUBSTITUTE(SUBSTITUTE(FORMULATEXTO_Act(Comentarios[[#This Row],[Formulada]]),"=",""),"'","") -> !$C$223 | B13: =' '!$C$223 -> $ 0 | C13: El contribuyente debe diligenciar la información solicitada en la tabla "Acciones y/o aportes poseídos a 31 de diciembre de 2022", de la hoja "Reajuste fiscal de los activos". | D13: Activos | E13: Azul
A14: =SUBSTITUTE(SUBSTITUTE(FORMULATEXTO_Act(Comentarios[[#This Row],[Formulada]]),"=",""),"'","") -> !$D$223 | B14: =' '!$D$223 -> $ 0 | C14: El contribuyente debe diligenciar la información solicitada en la tabla "Acciones y/o aportes poseídos a 31 de diciembre de 2022", de la hoja "Reajuste fiscal de los activos". | D14: Activos | E14: Azul
A15: =SUBSTITUTE(SUBSTITUTE(FORMULATEXTO_Act(Comentarios[[#This Row],[Formulada]]),"=",""),"'","") -> !$D$251 | B15: =' '!$D$251 -> Fecha de inicio del préstamo (dd/mm/aaaa) | C15: Diligencie la fecha del 2022 en la cual el contribuyente realizó el préstamo; por ejemplo, 04/05/2022. En caso de que el préstamo se haya otorgado con anterioridad al 2022, deberá registrar como fecha de inicio del préstamo el 01/01/2022. | D15: Intereses Presuntivos | E15: Azul
A16: =SUBSTITUTE(SUBSTITUTE(FORMULATEXTO_Act(Comentarios[[#This Row],[Formulada]]),"=",""),"'","") -> !$E$251 | B16: =' '!$E$251 -> Fecha de finalización del préstamo (dd/mm/aaaa) | C16: Diligencie la fecha del 2022 en la cual finalizó el préstamo o fue pagado en su totalidad, por ejemplo,12/10/2022. En caso de que al finalizar el 2022, el préstamo aún tuviera saldo pendiente de pago, registre como fecha de finalización del préstamo 31/12/2022. | D16: Intereses Presuntivos | E16: Azul
A17: =SUBSTITUTE(SUBSTITUTE(FORMULATEXTO_Act(Comentarios[[#This Row],[Formulada]]),"=",""),"'","") -> !$F$251 | B17: =' '!$F$251 -> Monto del préstamo pendiente de cobro a 1 de enero de 2022 | C17: En caso de que el préstamo se haya otorgado con anterioridad al 2022, se deberá ingresas el monto del préstamo pendiente de pago a 1 de enero de 2022. | D17: Intereses Presuntivos | E17: Azul
A18: =SUBSTITUTE(SUBSTITUTE(FORMULATEXTO_Act(Comentarios[[#This Row],[Formulada]]),"=",""),"'","") -> !$C$279 | B18: =' '!$C$279 -> $ 0 | C18: El contribuyente debe diligenciar la información solicitada en la hoja "Intereses Presuntivos". | D18: Activos | E18: Azul
A19: =SUBSTITUTE(SUBSTITUTE(FORMULATEXTO_Act(Comentarios[[#This Row],[Formulada]]),"=",""),"'","") -> !$D$279 | B19: =' '!$D$279 -> $ 0 | C19: El contribuyente debe diligenciar la información solicitada en la hoja "Intereses Presuntivos". | D19: Activos | E19: Azul
A20: =SUBSTITUTE(SUBSTITUTE(FORMULATEXTO_Act(Comentarios[[#This Row],[Formulada]]),"=",""),"'","") -> !$I$309 | B20: =' '!$I$309 -> Costo fiscal reajustado a 31 de diciembre de 2022 | C20: El ajuste del costo fiscal señalado en el artículo 70 del ET, es optativo para el contribuyente. Por lo anterior, el contribuyente, si así lo desea, puede ajuste el valor bienes muebles tales como vehículos, con el porcentaje indicado en la norma; sin embargo, por la naturaleza misma de este tipo de bienes, dicho ajuste no es recomendado pues, por lo general, pierden valor en el tiempo. | D20: Reajuste fiscal de los activos | E20: Azul
A21: =SUBSTITUTE(SUBSTITUTE(FORMULATEXTO_Act(Comentarios[[#This Row],[Formulada]]),"=",""),"'","") -> !$G$309 | B21: =' '!$G$309 -> Valor declarado el año anterior | C21: Si el contribuyente adquirió el vehículo durante el 2022, diligencie la celda con un cero ($0). Si fue adquirido antes del 2022, es necesario registrar el valor por el cual se reportó el vehículo en la declaración de renta del año anterior; si es la primera vez que el contribuyente declara, incluya en esta celda el costo de adquisición del vehículo. Tenga en cuenta que, si el vehículo se adquirió antes del 2022 y no se registra el valor por el cual se reportó el bien en la declaración de renta del año anterior, se tomará el costo de adquisición como valor patrimonial. En caso de que el vehículo corresponda a un activo omitido que no se acogió al beneficio de normalización tributaria, deberá reportar el valor de este bien como renta líquida gravable en la casilla 96 (se sugiere revisar el artículo 239-1 del ET). | D21: Reajuste fiscal de los activos | E21: Azul
A22: =SUBSTITUTE(SUBSTITUTE(FORMULATEXTO_Act(Comentarios[[#This Row],[Formulada]]),"=",""),"'","") -> !$C$313 | B22: =' '!$C$313 -> $ 56,000,000 | C22: El contribuyente debe diligenciar la información solicitada en la tabla "Vehículos (carros, motocicletas, camionetas, etc.) poseídos a 31 de diciembre de 2022", de la hoja "Reajuste fiscal de los activos". | D22: Activos | E22: Azul
A23: =SUBSTITUTE(SUBSTITUTE(FORMULATEXTO_Act(Comentarios[[#This Row],[Formulada]]),"=",""),"'","") -> !$D$313 | B23: =' '!$D$313 -> $ 0 | C23: El contribuyente debe diligenciar la información solicitada en la tabla "Vehículos (carros, motocicletas, camionetas, etc.) poseídos a 31 de diciembre de 2022", de la hoja "Reajuste fiscal de los activos". | D23: Activos | E23: Azul
A24: =SUBSTITUTE(SUBSTITUTE(FORMULATEXTO_Act(Comentarios[[#This Row],[Formulada]]),"=",""),"'","") -> !$N$316 | B24: =' '!$N$316 -> Valor patrimonial a reportar | C24: Debe tenerse en cuenta que, de acuerdo con el artículo 277 del ET, los contribuyentes no obligados a llevar contabilidad deben declarar los inmuebles por el mayor valor entre el costo de adquisición, el costo fiscal, el autoavalúo o el avalúo catastral actualizado al final del ejercicio. | D24: Reajuste fiscal de los activos | E24: Azul
A25: =SUBSTITUTE(SUBSTITUTE(FORMULATEXTO_Act(Comentarios[[#This Row],[Formulada]]),"=",""),"'","") -> !$M$316 | B25: =' '!$M$316 -> Costo fiscal ajustado con factor (artículo 73 del ET) | C25: El ajuste contemplado en el artículo 73 del ET puede aplicarse de forma voluntaria por el contribuyente para efectos de determinar la renta o ganancia ocasional que se genere en la venta de bienes inmuebles. Los factores a aplicar se encuentran establecidos en el artículo 1.2.1.17.21 del Decreto 1625 de 2016. Cabe señalar que, a través el Concepto 520 (914975) del 6 de diciembre 2021, la DIAN indicó que, "el artículo 73 del Estatuto Tributario establece expresamente como requisito para su aplicación, incluir como valor patrimonial en las declaraciones de renta el costo fiscal determinado según lo establecido en dicha disposición". Así, en caso de que el contribuyente planee vender bienes inmuebles durante el 2023, lo correspondiente es que, si desea aplicar este ajuste al valor de los bienes inmuebles, el costo ajustado se vea reflejado dentro del patrimonio reportado en la declaración de renta del año gravable 2022. De acuerdo con el artículo 280 del ET, los ajustes señalados en el artículo 70 y 73 del ET, son excluyentes entre sí, es decir que, no se pueden aplicar de manera simultánea. | D25: Reajuste fiscal de los activos | E25: Azul
A26: =SUBSTITUTE(SUBSTITUTE(FORMULATEXTO_Act(Comentarios[[#This Row],[Formulada]]),"=",""),"'","") -> !$K$316 | B26: =' '!$K$316 -> Costo fiscal reajustado a 31 de diciembre de 2022 | C26: El ajuste del costo fiscal de los bienes muebles e inmuebles, es optativo para el contribuyente. Para el año gravable 2022, el porcentaje de ajuste corresponde al 4.67%, de acuerdo con el artículo 1.2.1.17.20 del Decreto 1625 de 2016. De acuerdo con el artículo 280 del ET, los ajustes señalados en el artículo 70 y 73 del ET, son excluyentes entre sí, es decir que, no se pueden aplicar de manera simultánea. | D26: Reajuste fiscal de los activos | E26: Azul
A27: =SUBSTITUTE(SUBSTITUTE(FORMULATEXTO_Act(Comentarios[[#This Row],[Formulada]]),"=",""),"'","") -> !$G$316 | B27: =' '!$G$316 -> Valor declarado el año anterior | C27: Si el contribuyente adquirió el bien durante el 2022, diligencie la celda con un cero ($0). Si fue adquirido antes del 2022, es necesario registrar el valor por el cual se reportó el bien en la declaración de renta del año anterior; si es la primera vez que el contribuyente declara, incluya en esta celda el costo de adquisición del bien. Si el bien corresponde a un activo omitido que no se acogió a normalización tributaria, tenga en cuenta que el valor de este deberá ser reportado como renta líquida gravable en los términos del artículo 239-1 del ET. | D27: Reajuste fiscal de los activos | E27: Azul
A28: =SUBSTITUTE(SUBSTITUTE(FORMULATEXTO_Act(Comentarios[[#This Row],[Formulada]]),"=",""),"'","") -> !$C$389 | B28: =' '!$C$389 -> $ 217,424,525 | C28: El contribuyente debe diligenciar la información solicitada en la tabla "Bienes inmuebles poseídos a 31 de diciembre de 2022", de la hoja "Reajuste fiscal de los activos". | D28: Activos | E28: Azul
A29: =SUBSTITUTE(SUBSTITUTE(FORMULATEXTO_Act(Comentarios[[#This Row],[Formulada]]),"=",""),"'","") -> !$D$389 | B29: =' '!$D$389 -> $ 0 | C29: El contribuyente debe diligenciar la información solicitada en la tabla "Bienes inmuebles poseídos a 31 de diciembre de 2022", de la hoja "Reajuste fiscal de los activos". | D29: Activos | E29: Azul
A30: =SUBSTITUTE(SUBSTITUTE(FORMULATEXTO_Act(Comentarios[[#This Row],[Formulada]]),"=",""),"'","") -> !$D$412 | B30: =' '!$D$412 -> $ 0 | C30: De acuerdo con el parágrafo del artículo 607 del ET, los contribuyentes del impuesto de renta, sujetos a este impuesto respecto de sus ingresos de fuente nacional y extranjera, y de su patrimonio poseído dentro y fuera del país, que posean activos en el exterior de cualquier naturaleza, estarán obligados a presentar la declaración anual de activos en el exterior, siempre y cuando el valor patrimonial de los activos del exterior poseídos a 1 de enero de cada año sea superior a 2.000 UVT (para el año gravable 2022 equivale a $84.824.000). Por lo anterior, considerando el valor patrimonial de los activos en el exterior del contribuyente a 31 de diciembre de 2022, sugerimos hacer la revisión correspondiente a 1 de enero de 2023 y determinar si debe cumplir con la obligación de presentar la Declaración Anual de Activos en el Exterior por el año gravable 2023. En caso de ser así, esta herramienta le proporciona un borrador del formulario 160 que facilitará el cumplimiento de esta obligación. | D30: Activos | E30: Azul
A31: =SUBSTITUTE(SUBSTITUTE(FORMULATEXTO_Act(Comentarios[[#This Row],[Formulada]]),"=",""),"'","") -> !$D$438 | B31: =' '!$D$438 -> Fecha de inicio del préstamo (dd/mm/aaaa) | C31: Diligencie la fecha del 2022 en la cual al contribuyente se le entregó el préstamo; por ejemplo, 20/03/2022. En caso de que el préstamo se haya otorgado con anterioridad al 2022, deberá registrar como fecha de inicio del préstamo el 01/01/2022. | D31: Subcapitalización | E31: Azul
A32: =SUBSTITUTE(SUBSTITUTE(FORMULATEXTO_Act(Comentarios[[#This Row],[Formulada]]),"=",""),"'","") -> !$E$438 | B32: =' '!$E$438 -> Fecha de finalización del préstamo (dd/mm/aaaa) | C32: Diligencie la fecha del 2022 en la cual finalizó el préstamo o fue pagado en su totalidad, por ejemplo, 29/06/2022. En caso de que al finalizar el 2022, el préstamo aún tuviera saldo pendiente de pago, registre como fecha de finalización del préstamo 31/12/2022. | D32: Subcapitalización | E32: Azul
A33: =SUBSTITUTE(SUBSTITUTE(FORMULATEXTO_Act(Comentarios[[#This Row],[Formulada]]),"=",""),"'","") -> !$G$438 | B33: =' '!$G$438 -> Monto del préstamo | C33: En caso de que el préstamo haya sido otorgado al contribuyente antes del 2022, se deberá ingresar el monto del préstamo pendiente de pago a 1 de enero de 2022. | D33: Subcapitalización | E33: Azul
A34: =SUBSTITUTE(SUBSTITUTE(FORMULATEXTO_Act(Comentarios[[#This Row],[Formulada]]),"=",""),"'","") -> !$B$528 | B34: =' '!$B$528 -> ¿El contribuyente desea registrar ingresos por honorarios como rentas de trabajo? | C34: Debe tenerse en cuenta que, de acuerdo con los artículos 335 del ET y 1.2.1.20.2, 1.2.1.20.3 y 1.2.1.20.4 del Decreto 1625 de 2016, y con las instrucciones del Formulario 210 habilitado para la declaración de renta del año gravable 2022, los contribuyentes que hayan percibido ingresos por honorarios, que NO hayan contratado o vinculado para su generación dos o más trabajadores por un término igual o superior a 90 días continuos o discontinuos, a los cuales NO se les vayan a imputar costos y gastos procedentes, bien sea porque no se incurrió en ellos o porque aun teniéndolos el contribuyente opta por la aplicación de la renta exenta del 25% señalada en el numeral 10 del artículo 206 del ET, deben reportarlos como rentas de trabajo (en caso de tener costos y gastos asociados a estos ingresos, se sugiere hacer una valoración y determinar lo más viable para el contribuyente). | D34: Rentas de Trabajo | E34: Azul
A35: =SUBSTITUTE(SUBSTITUTE(FORMULATEXTO_Act(Comentarios[[#This Row],[Formulada]]),"=",""),"'","") -> !$B$534 | B35: =' '!$B$534 -> ¿El contribuyente desea registrar ingresos por compensación de servicios personales como rentas de trabajo? | C35: Debe tenerse en cuenta que, de acuerdo con los artículos 335 del ET y 1.2.1.20.2, 1.2.1.20.3 y 1.2.1.20.4 del Decreto 1625 de 2016, y con las instrucciones del Formulario 210 habilitado para la declaración de renta del año gravable 2022, los contribuyentes que hayan percibido ingresos por compensación de servicios personales, que NO hayan contratado o vinculado para su generación a dos o más trabajadores por un término igual o superior a 90 días continuos o discontinuos, a los cuales NO se les vayan a imputar costos y gastos procedentes, bien sea porque no se incurrió en ellos o porque aun teniéndolos el contribuyente opta por la aplicación de la renta exenta del 25% señalada en el numeral 10 del artículo 206 del ET, deben reportarlos como rentas de trabajo (en caso de tener costos y gastos asociados a estos ingresos, se sugiere hacer una valoración y determinar lo más viable para el contribuyente). | D35: Rentas de Trabajo | E35: Azul
A36: =SUBSTITUTE(SUBSTITUTE(FORMULATEXTO_Act(Comentarios[[#This Row],[Formulada]]),"=",""),"'","") -> !$B$541 | B36: =' '!$B$541 -> ¿El contribuyente desea registrar ingresos por comisiones como rentas de trabajo? | C36: Debe tenerse en cuenta que, de acuerdo con los artículos 335 del ET y 1.2.1.20.2, 1.2.1.20.3 y 1.2.1.20.4 del Decreto 1625 de 2016, y con las instrucciones del Formulario 210 habilitado para la declaración de renta del año gravable 2022, los contribuyentes que hayan percibido ingresos por comisiones, que NO hayan contratado o vinculado para su generación a dos o más trabajadores por un término igual o superior a 90 días continuos o discontinuos, a los cuales NO se les vayan a imputar costos y gastos procedentes, bien sea porque no se incurrió en ellos o porque aun teniéndolos el contribuyente opta por la aplicación de la renta exenta del 25% señalada en el numeral 10 del artículo 206 del ET, deben reportarlos como rentas de trabajo (en caso de tener costos y gastos asociados a estos ingresos, se sugiere hacer una valoración y determinar lo más viable para el contribuyente). | D36: Rentas de Trabajo | E36: Azul
A37: =SUBSTITUTE(SUBSTITUTE(FORMULATEXTO_Act(Comentarios[[#This Row],[Formulada]]),"=",""),"'","") -> !$B$550 | B37: =' '!$B$550 -> Aportes obligatorios a salud | C37: El artículo 56 del ET indica que, los aportes obligatorios al Sistema General de Seguridad Social en Salud que haya hecho el contribuyente durante el respectivo año gravable, se consideran ingresos no constitutivos de renta. | D37: Rentas de Trabajo | E37: Azul
A38: =SUBSTITUTE(SUBSTITUTE(FORMULATEXTO_Act(Comentarios[[#This Row],[Formulada]]),"=",""),"'","") -> !$B$551 | B38: =' '!$B$551 -> Aportes obligatorios a fondos de pensiones | C38: El artículo 55 del ET indica que, los aportes obligatorios al Sistema General de Seguridad Social en Pensiones que haya hecho el contribuyente durante el respectivo año gravable, se consideran ingresos no constitutivos de renta. | D38: Rentas de Trabajo | E38: Azul
A39: =SUBSTITUTE(SUBSTITUTE(FORMULATEXTO_Act(Comentarios[[#This Row],[Formulada]]),"=",""),"'","") -> !$B$552 | B39: =' '!$B$552 -> Aportes a fondo de solidaridad pensional | C39: El artículo 55 del ET indica que, los aportes obligatorios al Sistema General de Seguridad Social en Pensiones que haya hecho el contribuyente durante el respectivo año gravable, se consideran ingresos no constitutivos de renta. | D39: Rentas de Trabajo | E39: Azul
A40: =SUBSTITUTE(SUBSTITUTE(FORMULATEXTO_Act(Comentarios[[#This Row],[Formulada]]),"=",""),"'","") -> !$B$553 | B40: =' '!$B$553 -> Aportes a ARL | C40: El numeral 1.12 del Concepto DIAN 912 de 2018 establece que, el monto total de los aportes que el trabajador independiente realice al Sistema General de Riesgos Laborales, pueden ser tratados como ingreso no constitutivo de renta ni ganancia ocasional. | D40: Rentas de Trabajo | E40: Azul
A41: =SUBSTITUTE(SUBSTITUTE(FORMULATEXTO_Act(Comentarios[[#This Row],[Formulada]]),"=",""),"'","") -> !$B$554 | B41: =' '!$B$554 -> Aportes voluntarios a fondos de pensiones obligatorias | C41: El artículo 55 del ET señala que, los aportes voluntarias a fondos de pensiones obligatorias (régimen de ahorro individual con solidaridad) que haya hecho el contribuyente durante el respectivo año gravable, pueden ser tratados como ingreso no constitutivo de renta ni de ganancia ocasional, en un porcentaje que no exceda el 25% del ingreso laboral o tributario anual, limitado a 2.500 UVT (para el año gravable 2022 equivale a $95.010.000). | D41: Rentas de Trabajo | E41: Azul
A42: =SUBSTITUTE(SUBSTITUTE(FORMULATEXTO_Act(Comentarios[[#This Row],[Formulada]]),"=",""),"'","") -> !$B$555 | B42: =' '!$B$555 -> Apoyos económicos para financiar programas educativos no reembolsables o condonados | C42: Los artículos 46 y 1.2.1.12.8 del Decreto 1625 de 2016 indican que, los apoyos económicos no reembolsables o condonados entregados por el Estado o financiados con recursos públicos, para financiar programas educativos al contribuyente, pueden ser tratados como ingreso no constitutivo de renta. En caso de que dichos apoyos económicos hayan sido recibidos por medio de una relación laboral, estos ingresos deberán ser reportados en las rentas de trabajo. | D42: Rentas de Trabajo | E42: Azul
A43: =SUBSTITUTE(SUBSTITUTE(FORMULATEXTO_Act(Comentarios[[#This Row],[Formulada]]),"=",""),"'","") -> !$B$556 | B43: =' '!$B$556 -> Remuneración por participación en proyectos calificados como de carácter científico, tecnológico o de innovación por el Consejo Nacional de Beneficios Tributarios en Ciencia, Tecnología e Innovación | C43: El artículo 57-2 del ET señala que, los pagos que reciba el contribuyente por la ejecución directa de labores de carácter científico, tecnológico o de innovación, realizados con los recursos destinados al respectivo proyecto, según los criterios y las condiciones definidas por el Consejo Nacional de Beneficios Tributarios en Ciencia, Tecnología e Innovación, son un ingreso no constitutivo de renta para quien los percibe. | D43: Rentas de Trabajo | E43: Azul
A44: =SUBSTITUTE(SUBSTITUTE(FORMULATEXTO_Act(Comentarios[[#This Row],[Formulada]]),"=",""),"'","") -> !$B$557 | B44: =' '!$B$557 -> Pagos por alimentación | C44: De acuerdo con el artículo 387-1 del ET, los pagos que realicen el empleador a favor de terceros, por concepto de alimentación del trabajador o su familia (suministro de alimentación en restaurantes propios o de terceros; pagos para compra de vales o tiquetes para la adquisición de alimentos) no constituyen ingreso para el trabajador, sino para el tercero que suministra los alimentos o presta el servicio de restaurante, siempre que el salario del trabajador beneficiado no exceda de 310 UVT (para el año gravable 2022 equivalen a $11.781.000). En caso de que los pagos por alimentación superen las 41 UVT (para el año gravable 2022 equivalen a $1.558.000), el excedente sí será ingreso gravado para el empleado. Debe tenerse en cuenta que, los pagos por alimentación pueden ser tomados como no gravados en la declaración de renta siempre y cuando los mismos hayan sido incluidos como ingreso en el Certiificado de Ingresos y Retenciones (Oficio DIAN 009809 de abril 27 de 2017). | D44: Rentas de Trabajo | E44: Azul
A45: =SUBSTITUTE(SUBSTITUTE(FORMULATEXTO_Act(Comentarios[[#This Row],[Formulada]]),"=",""),"'","") -> !$B$563 | B45: =' '!$B$563 -> Intereses pagados en créditos de vivienda o leasing habitacional | C45: De acuerdo con el artículo 119 del ET, los intereses que pague el contribuyente en créditos hipotecarios o leasing habitacional, siempre que el préstamo esté garantizado con hipoteca si el acreedor no está sometido a la vigilancia del Estado, pueden ser tomados como deducción hasta un monto igual o inferior a 1.200 UVT (para el año gravable 2022 equivalen a $45.605.000). Debe tenerse en cuenta que, de acuerdo con el Concepto 064444 de 2005, los intereses deducibles son aquellos pagados por la vivienda en la cual vive el contribuyente; en caso de no habite la casa por la cual paga dichos intereses, los mismos no podrán ser tomados como deducción. Adicionalmente, en caso de que el crédito hipotecario haya sido tomado por varias personas, los intereses deberán tomados como deducción de manera proporcional. | D45: Rentas de Trabajo | E45: Azul
A46: =SUBSTITUTE(SUBSTITUTE(FORMULATEXTO_Act(Comentarios[[#This Row],[Formulada]]),"=",""),"'","") -> !$B$564 | B46: =' '!$B$564 -> Planes adicionales de salud | C46: De acuerdo con el artículo 387 del ET, los pagos que el contribuyente haya realizado a planes adicionales de salud (pólizas de salud, medicina prepagada) para él, su cónyuge, hijos y/o dependientes, puede ser tomado como deducción en el impuesto de renta, hasta una suma que no supere las 16 UVT mensuales (para el año gravable 2022 equivalen a $608.000) ni las 192 UVT anuales (para el año gravable 2022 equivalen a $7.297.000). A través del Concepto 000359 de 2020, la DIAN precisó que, atendiendo lo señalado en el artículo 40 de la Ley 1438 de 2011, dicha deducción también procede sobre planes y pólizas odontológicas y servicios prehospitalarios. | D46: Rentas de Trabajo | E46: Azul
A47: =SUBSTITUTE(SUBSTITUTE(FORMULATEXTO_Act(Comentarios[[#This Row],[Formulada]]),"=",""),"'","") -> !$B$565 | B47: =' '!$B$565 -> Intereses pagados en créditos educativos con el ICETEX | C47: El artículo 119 del ET también indica que, los intereses que se paguen por préstamos con el ICETEX, para la educación superior del contribuyente, podrán ser tomados como deducción hasta un valor que no supere las 100 UVT (para el año gravable 2022 equivalen a $3.800.000). | D47: Rentas de Trabajo | E47: Azul
A48: =SUBSTITUTE(SUBSTITUTE(FORMULATEXTO_Act(Comentarios[[#This Row],[Formulada]]),"=",""),"'","") -> !$B$566 | B48: =' '!$B$566 -> Gravamen a los movimientos financieros (4x1000) | C48: De acuerdo con el artículo 119 del ET, el 50% del Gravamen a los Movimientos Financieros que haya sido efectivamente pagado por el contribuyente durante el respectivo año gravable, puede ser tomado como deducción en el impuesto de renta, independientemente de que tenga o no relación de causalidad con la actividad económica que desarrolla. | D48: Rentas de Trabajo | E48: Azul
A49: =SUBSTITUTE(SUBSTITUTE(FORMULATEXTO_Act(Comentarios[[#This Row],[Formulada]]),"=",""),"'","") -> !$B$567 | B49: =' '!$B$567 -> Dependientes económicos | C49: De acuerdo con el artículo 387 del ET, los contribuyentes que perciban rentas de trabajo pueden tomar como deducción por dependientes el 10% de sus ingresos brutos anuales, sin que dicho valor exceda las 32 UVT mensuales (para el año gravable 2022 equivalen a $1.216.000) ni las 384 UVT anuales (para el año gravable 2022 equivalen a $14.594.000). El parágrafo 2 del artículo 387 del ET señala que, tienen calidad de dependientes: - Los hijos del contribuyente que tengan hasta 18 años de edad. - Los hijos del contribuyente con edad entre 18 y 23 años, cuando el padre o madre contribuyente persona natural se encuentre financiando su educación en instituciones formales de educación superior. - Los hijos del contribuyente mayores de 23 años que se encuentren en situación de dependencia originada en factores físicos o psicológicos. - El cónyuge o compañero permanente del contribuyente que se encuentre en situación de dependencia sea por ausencia de ingresos o ingresos en el año menores a 260 UVT (para el año gravable 2022 equivalen a $9.881.000). - Los padres y los hermanos del contribuyente que se encuentren en situación de dependencia, sea por ausencia de ingresos o ingresos en el año menores a 260 UVT (para el año gravable 2022 equivalen a $9.881.000). | D49: Rentas de Trabajo | E49: Azul
A50: =SUBSTITUTE(SUBSTITUTE(FORMULATEXTO_Act(Comentarios[[#This Row],[Formulada]]),"=",""),"'","") -> !$B$568 | B50: =' '!$B$568 -> Aportes a cesantías como partícipes independientes | C50: De acuerdo con el artículo 126-1 del ET, los aportes a cesantías que realice el contribuyente como partícipe independiente, pueden ser tomados como deducción hasta una suma de 2.500 UVT (para el año gravable 2022 equivalen a $95.010.000), sin que dicho monto supere un doceavo del ingreso gravable del respectivo año. | D50: Rentas de Trabajo | E50: Azul
A51: =SUBSTITUTE(SUBSTITUTE(FORMULATEXTO_Act(Comentarios[[#This Row],[Formulada]]),"=",""),"'","") -> !$B$573 | B51: =' '!$B$573 -> Cesantías retiradas en el año, que estaban el fondo a 31 de diciembre de 2016 | C51: De acuerdo con el parágrafo 3 del artículo 1.2.1.20.7 del Decreto 1625 de 2016, los montos de cesantías acumulados a 31 de diciembre del 2016 en los fondos de cesantías o en las cuentas del patrono para aquellos trabajadores cobijados con el régimen tradicional (Capítulo VII, Título VIII parte Primera del Código Sustantivo del Trabajo), mantienen el tratamiento señalado en el numeral 4 del artículo 206 del ET al momento del retiro del fondo de cesantías o pago por parte del empleador, sin que sea aplicable lo dispuesto en el inciso segundo del artículo 336 del ET, es decir que, no se someten al límite general del 40%, sin que exceda del equivalente de 5.040 UVT (para el año gravable 2022 equivalen a $191.540.000). | D51: Rentas de Trabajo | E51: Azul
A52: =SUBSTITUTE(SUBSTITUTE(FORMULATEXTO_Act(Comentarios[[#This Row],[Formulada]]),"=",""),"'","") -> !$B$574 | B52: =' '!$B$574 -> El seguro y/o las compensaciones por muerte, y las prestaciones sociales en actividad y en retiro de los miembros de las Fuerzas Militares y de la Policía Nacional | C52: El numeral 6 del artículo 206 del ET indica que, ll seguro por muerte, las compensaciones por muerte y las prestaciones sociales en actividad y en retiro que reciban los miembros de las Fuerzas Militares y de la Policía Nacional, reciben el tratamiento de renta exenta. El parágrafo 4 del mismo artículo indica que, entre otros, el concepto señalado en el numeral 6 del artículo en mención, no se somete a lo consagrado en el numeral 3 del artículo 336 del ET, es decir que, no se somete al límite general del 40%, sin que exceda del equivalente de 5.040 UVT (para el año gravable 2022 equivalen a $191.540.000). | D52: Rentas de Trabajo | E52: Azul
A53: =SUBSTITUTE(SUBSTITUTE(FORMULATEXTO_Act(Comentarios[[#This Row],[Formulada]]),"=",""),"'","") -> !$B$575 | B53: =' '!$B$575 -> Gastos de representación de Magistrados de los Tribunales, sus fiscales y procuradores judiciales | C53: El numeral 7 del artículo 206 del ET indica que, los Magistrados de los Tribunales, sus Fiscales y Procuradores Judiciales, pueden tomar como renta exenta los pagos que hayan recibido por concepto de gastos de representación hasta un monto equivalente al 50% de su salario. Así, en caso de que en el año el Magistrado, Fiscal o Procurador no haya recibido pagos por este concepto, no hay lugar a tomar esta renta exenta. El parágrafo 4 del mismo artículo indica que, entre otros, el concepto señalado en el numeral 7 del artículo en mención, no se somete a lo consagrado en el numeral 3 del artículo 336 del ET, es decir que, no se somete al límite general del 40%, sin que exceda del equivalente de 5.040 UVT (para el año gravable 2022 equivalen a $191.540.000). | D53: Rentas de Trabajo | E53: Azul
A54: =SUBSTITUTE(SUBSTITUTE(FORMULATEXTO_Act(Comentarios[[#This Row],[Formulada]]),"=",""),"'","") -> !$B$576 | B54: =' '!$B$576 -> Gastos de representación de Jueces de la República | C54: El numeral 7 del artículo 206 del ET indica que, los Jueces de la República, pueden tomar como renta exenta los pagos que hayan recibido por concepto de gastos de representación hasta un monto equivalente al 25% de su salario. Así, en caso de que en el año el Juez no haya recibido pagos por este concepto, no hay lugar a tomar esta renta exenta. El parágrafo 4 del mismo artículo indica que, entre otros, el concepto señalado en el numeral 7 del artículo en mención, no se somete a lo consagrado en el numeral 3 del artículo 336 del ET, es decir que, no se somete al límite general del 40%, sin que exceda del equivalente de 5.040 UVT (para el año gravable 2022 equivalen a $191.540.000). | D54: Rentas de Trabajo | E54: Azul
A55: =SUBSTITUTE(SUBSTITUTE(FORMULATEXTO_Act(Comentarios[[#This Row],[Formulada]]),"=",""),"'","") -> !$B$577 | B55: =' '!$B$577 -> Gastos de representación de los rectores y profesores de universidades públicas | C55: El numeral 9 del artículo 206 del ET indica que, los rectores y profesores de universidades públicas pueden tomar como renta exenta los pagos que hayan recibido por concepto de gastos de representación, hasta un monto equivalente al 50% de su salario. Así, en caso de que en el año el rector o profesor no haya recibido pagos por este concepto, no hay lugar a tomar esta renta exenta. El parágrafo 4 del mismo artículo indica que, entre otros, el concepto señalado en el numeral 9 del artículo en mención, no se somete a lo consagrado en el numeral 3 del artículo 336 del ET, es decir que, no se somete al límite general del 40%, sin que exceda del equivalente de 5.040 UVT (para el año gravable 2022 equivalen a $191.540.000). | D55: Rentas de Trabajo | E55: Azul
A56: =SUBSTITUTE(SUBSTITUTE(FORMULATEXTO_Act(Comentarios[[#This Row],[Formulada]]),"=",""),"'","") -> !$B$578 | B56: =' '!$B$578 -> Exceso de salario básico de oficiales, suboficiales y soldados profesionales de las Fuerzas Militares y oficiales, suboficiales, nivel ejecutivo, patrulleros y agentes de la Policía Nacional | C56: El numeral 8 del artículo 206 del ET establece que, el exceso del salario básico percibido por los Oficiales, Suboficiales y Soldados Profesionales de las Fuerzas Militares y Oficiales, Suboficiales, Nivel Ejecutivo, Patrulleros y Agentes de la Policía Nacional, puede ser tratado como renta exenta. El parágrafo 4 del mismo artículo indica que, entre otros, el concepto señalado en el numeral 8 del artículo en mención no se somete a lo consagrado en el numeral 3 del artículo 336 del ET, es decir que, no se somete al límite general del 40%, sin que exceda del equivalente de 5.040 UVT (para el año gravable 2022 equivalen a $191.540.000). | D56: Rentas de Trabajo | E56: Azul
A57: =SUBSTITUTE(SUBSTITUTE(FORMULATEXTO_Act(Comentarios[[#This Row],[Formulada]]),"=",""),"'","") -> !$B$579 | B57: =' '!$B$579 -> Prima especial y de costo de vida de diplomáticos, consulares y administrativos del Ministerio de Relaciones Exteriores | C57: El artículo 206-1 del ET establece que la prima especial y la prima de costo de vida señalada en el Decreto 3357 de 2009, o las normas que lo modifiquen o sustituyan, están exentas del impuesto de renta. El mismo tratamiento es aplicable respecto a la prima especial y la prima de costo de vida de los servidores públicos de las plantas en el exterior que, aunque presten sus servicios fuera de Colombia. De acuerdo con el mismo artículo, estas primas no se tendrán en cuenta para efectos del cálculo de los límites establecidos en el numeral 3 del artículo 336 del presente Estatuto, es decir que, no les aplica el límite general del 40%, limitado a 5.040 UVT (para el año gravable 2022 equivalen a $191.540.000). | D57: Rentas de Trabajo | E57: Azul
A58: =SUBSTITUTE(SUBSTITUTE(FORMULATEXTO_Act(Comentarios[[#This Row],[Formulada]]),"=",""),"'","") -> !$B$580 | B58: =' '!$B$580 -> Ingresos recibidos por funcionarios de la ONU o por vinculados con organismos especializados de la ONU con residencia fiscal en Colombia | C58: El artículo V - Sección 17 y 18 de la Ley 62 de 1973 señala que, se encuentran exentos de impuestos los sueldos y emolumentos pagados por la Organización de Naciones Unidas - ONU o por alguno de sus organismos especializados a sus funcionarios. Para que proceda la exención, es necesario que el contribuyente esté en la lista expedida por el Secretario General de la Organización, en la cual se establece los funcionarios que gozan de este beneficio. En referencia a este tema, mediante el Oficio 006443 de marzo 15 de 2018 la DIAN señaló: “... como quiera que mediante Ley 62 de diciembre 31 de 1973, el Congreso de Colombia aprobó las “Convenciones sobre Privilegios e Inmunidades de las Naciones Unidas, de los Organismos Especializados y de la Organización de los Estados Americanos, adoptadas las dos primeras por la Asamblea General de las Naciones Unidas el 13 de febrero de 1946 y el 21 de noviembre de 1947, respectivamente, y la última abierta a la firma en la Unión Panamericana el 15 de mayo de 1949” habrá de estarse a sus disposiciones, sin que sea viable que este instrumento supranacional se modifique o se entienda modificado de manera unilateral por la legislación interna de los Estados adherentes. En este sentido, en la medida en que se den las condiciones fijadas en la Convención, se mantendrán los términos de exención allí señaladas…”. (El subrayado es nuestro). De lo anterior podría entenderse que, estos ingresos pueden ser tratados como renta exenta y no deben someterse al límite general del 40%, que no puede exceder las 5.040 UVT (para el año gravable 2022 equivalen a $191.540.000). | D58: Rentas de Trabajo | E58: Azul
A59: =SUBSTITUTE(SUBSTITUTE(FORMULATEXTO_Act(Comentarios[[#This Row],[Formulada]]),"=",""),"'","") -> !$B$581 | B59: =' '!$B$581 -> Ingresos recibidos en países de la CAN | C59: En aplicación de lo contenido en la Decisión 578 del 2004 de la Comisión de la Comunidad Andina - CAN, los ingresos recibidos por los contribuyentes en los países miembros de esta -Bolivia, Ecuador y Perú-, sólo serán gravados en el territorio en el cual se realizaron las actividades que dieron origen a estos ingresos. Los ingresos serán considerados renta exenta en Colombia y no serán sometidos al límite general del 40% de la renta líquida que no puede exceder las 5.040 UVT (para el año gravable 2022 equivalen a $191.540.000). | D59: Rentas de Trabajo | E59: Azul
A60: =SUBSTITUTE(SUBSTITUTE(FORMULATEXTO_Act(Comentarios[[#This Row],[Formulada]]),"=",""),"'","") -> !$B$586 | B60: =' '!$B$586 -> Aportes a fondos de pensiones voluntarias | C60: El artículo 126-1 del ET indica que, los aportes voluntarios que haga el contribuyente a los seguros privados de pensiones y a los fondos de pensiones voluntarias, administrados por las entidades vigiladas por la Superintendencia Financiera de Colombia, serán considerados como una renta exenta, hasta una suma que en conjunto con el valor de los aportes a las Cuentas de Ahorro para el Fomento de la Construcción -AFC- señaladas en el artículo 126-4 del ET, no exceda el 30% del ingreso laboral o ingreso tributario del año, y hasta un monto máximo de 3.800 UVT por año (para el año gravable 2022 equivalen a $144.415.000). Adicionalmente, estos aportes sí deben someterse al límite general del 40% que no debe exceder las 5.040 UVT (para el año gravable 2022 equivalen a $191.540.000)., pues la norma no menciona ninguna excepción relacionada con estos aportes. | D60: Rentas de Trabajo | E60: Azul
A61: =SUBSTITUTE(SUBSTITUTE(FORMULATEXTO_Act(Comentarios[[#This Row],[Formulada]]),"=",""),"'","") -> !$B$587 | B61: =' '!$B$587 -> Aportes a cuentas AFC y/o cuentas AVC | C61: El artículo 126-4 del ET indica que, los aportes que haga el contribuyente a cuentas AFC y/o AVC administradas por entidades vigiladas por la Superintendencia Financiera de Colombia, serán considerados como una renta exenta, hasta una suma que en conjunto con el valor de los aportes a seguros privados de pensiones y a los fondos de pensiones voluntarias señalados en el artículo 126-1 del ET, no exceda el 30% del ingreso laboral o ingreso tributario del año, y hasta un monto máximo de 3.800 UVT por año (para el año gravable 2022 equivalen a $144.415.000). Adicionalmente, estos aportes sí deben someterse al límite general del 40% que no debe exceder las 5.040 UVT (para el año gravable 2022 equivalen a $191.540.000), pues la norma no menciona ninguna excepción relacionada con estos aportes. | D61: Rentas de Trabajo | E61: Azul
A62: =SUBSTITUTE(SUBSTITUTE(FORMULATEXTO_Act(Comentarios[[#This Row],[Formulada]]),"=",""),"'","") -> !$B$588 | B62: =' '!$B$588 -> Cesantías e intereses efectivamente pagados en el año | C62: El numeral 4 del artículo 206 del ET indica que las cesantías y los intereses sobre cesantías recibidos por el trabajador durante el respectivo año gravable, pueden ser tratadas como renta exenta en un 100% siempre y cuando sean recibidos por trabajadores cuyo ingreso mensual promedio en los últimos seis (6) meses de vinculación laboral no exceda de 350 UVT (para el año gravable 2022 equivalen a $13.301.000) (mediante el Concepto 1302 del 2019 la DIAN precisó que, para efectos de determinar el ingreso mensual promedio de los últimos seis meses, se debe tener en cuenta la siguiente: cuando el empleado se haya retirado de su trabajo, los meses a considerar son los últimos seis meses de vinculación laboral; cuando el empleado continue en su trabajo, se deberán considerar los seis meses del año inmediatamente anterior a aquel en que las cesantías se consignen o se consoliden y queden disponibles en las cuentas individuales, o sean efectivamente pagadas al trabajador (es decir los últimos seis meses del año al cual corresponden las cesantías que fueron consignadas en el fondo; por ejemplo, para las cesantías que fueron consignadas en el fondo en febrero de 2021, se deberán tener en cuentas los últimos seis meses del 2020). Cuando el salario promedio de las últimos seis meses exceda las 350 UVT, la parte exenta se determinará así: Entre 350 UVT (para el año gravable 2022, $13.301.001) y 410 UVT (para el año gravable 2022, $15.582.000) el 90% Entre 410 UVT (para el año gravable 2022, $15.582.001) y 470 UVT (para el año gravable 2022, $17.862.000) el 80% Entre 470 UVT (para el año gravable 2022, $17.862.001) y 530 UVT (para el año gravable 2022, $20.142.000) el 60% Entre 530 UVT (para el año gravable 2022, $20.142.001) y 590 UVT (para el año gravable 2022, $22.422.000) el 40% Entre 590 UVT (para el año gravable 2022, $22.422.001) y 650 UVT (para el año gravable 2022, $24.703.000) el 20% De 650 UVT (para el año gravable 2022, $24.703.001) el 0% Adicionalmente, las cesantías e intereses exentos sí deben someterse al límite general del 40% que no debe exceder las 5.040 UVT (que para el año gravable 2022 equivalen a $191.540.000), pues la norma no menciona ninguna excepción relacionada con estas cesantías. | D62: Rentas de Trabajo | E62: Azul
A63: =SUBSTITUTE(SUBSTITUTE(FORMULATEXTO_Act(Comentarios[[#This Row],[Formulada]]),"=",""),"'","") -> !$B$589 | B63: =' '!$B$589 -> Cesantías consignadas en el fondo en el año | C63: El numeral 4 del artículo 206 del ET indica que las cesantías y los intereses sobre cesantías recibidos por el trabajador durante el respectivo año gravable, pueden ser tratadas como renta exenta en un 100% siempre y cuando sean recibidos por trabajadores cuyo ingreso mensual promedio en los últimos seis (6) meses de vinculación laboral no exceda de 350 UVT (para el año gravable 2022 equivalen a $13.301.000) (mediante el Concepto 1302 del 2019 la DIAN precisó que, para efectos de determinar el ingreso mensual promedio de los últimos seis meses, se debe tener en cuenta la siguiente: cuando el empleado se haya retirado de su trabajo, los meses a considerar son los últimos seis meses de vinculación laboral; cuando el empleado continue en su trabajo, se deberán considerar los seis meses del año inmediatamente anterior a aquel en que las cesantías se consignen o se consoliden y queden disponibles en las cuentas individuales, o sean efectivamente pagadas al trabajador (es decir los últimos seis meses del año al cual corresponden las cesantías que fueron consignadas en el fondo; por ejemplo, para las cesantías que fueron consignadas en el fondo en febrero de 2021, se deberán tener en cuentas los últimos seis meses del 2020). Cuando el salario promedio de las últimos seis meses exceda las 350 UVT, la parte exenta se determinará así: Entre 350 UVT (para el año gravable 2022, $13.301.001) y 410 UVT (para el año gravable 2022, $15.582.000) el 90% Entre 410 UVT (para el año gravable 2022, $15.582.001) y 470 UVT (para el año gravable 2022, $17.862.000) el 80% Entre 470 UVT (para el año gravable 2022, $17.862.001) y 530 UVT (para el año gravable 2022, $20.142.000) el 60% Entre 530 UVT (para el año gravable 2022, $20.142.001) y 590 UVT (para el año gravable 2022, $22.422.000) el 40% Entre 590 UVT (para el año gravable 2022, $22.422.001) y 650 UVT (para el año gravable 2022, $24.703.000) el 20% De 650 UVT (para el año gravable 2022, $24.703.001) el 0% Adicionalmente, las cesantías e intereses exentos sí deben someterse al límite general del 40% que no debe exceder las 5.040 UVT (que para el año gravable 2022 equivalen a $191.540.000), pues la norma no menciona ninguna excepción relacionada con estas cesantías. | D63: Rentas de Trabajo | E63: Azul
A64: =SUBSTITUTE(SUBSTITUTE(FORMULATEXTO_Act(Comentarios[[#This Row],[Formulada]]),"=",""),"'","") -> !$B$590 | B64: =' '!$B$590 -> Indemnizaciones por accidente de trabajo o enfermedad | C64: El parágrafo 1 del artículo 206 del ET señala que, la exención prevista en el numeral 1 del mismo artículo, referente al tratamiento de renta exenta de las indemnizaciones por accidentes de trabajo o enfermedad, es aplicable únicamente sobre los valores que correspondan al mínimo legal de que tratan las normas laborales. En consecuencia, al aplicar esta exención, se deberán revisar los valores mínimos legales fijados para estas indemnizaciones, que son recibidas por el trabajador cuando hay una pérdida de su capacidad laboral calificada entre el 5% y el 49%, que se encuentran mencionados en el artículo 1 del Decreto 2644 de 1994. Adicionalmente, estas indemnizaciones exentas sí deben someterse al límite general del 40% que no debe exceder las 5.040 UVT (para el año gravable 2022 equivalen a $191.540.000), pues la norma no menciona ninguna excepción relacionada con esta indemnización. | D64: Rentas de Trabajo | E64: Azul
A65: =SUBSTITUTE(SUBSTITUTE(FORMULATEXTO_Act(Comentarios[[#This Row],[Formulada]]),"=",""),"'","") -> !$B$591 | B65: =' '!$B$591 -> Indemnización por protección a la maternidad | C65: El parágrafo 1 del artículo 206 del ET señala que, la exención prevista en el numeral 2 del mismo artículo, referente al tratamiento de renta exenta de las indemnizaciones que impliquen protección a la maternidad, es aplicable únicamente sobre los valores que correspondan al mínimo legal de que tratan las normas laborales. En consecuencia, al aplicar esta exención, se deberán revisar los valores mínimos legales fijados para estas indemnizaciones, esto es, lo consagrado en el artículo 239 del Código Sustantivo del Trabajo que señala que, la indemnización por protección a la maternidad equivale a 60 días de trabajo calculados con el salario de la trabajadora. Así, en caso que de el empleador decida entregar un valor superior al mínimo señalado por la norma, el excedente no podrá ser tratado como renta exenta. Adicionalmente, estas indemnizaciones exentas sí deben someterse al límite general del 40% que no debe exceder las 5.040 UVT (para el año gravable 2022 equivalen a $191.540.000), pues la norma no menciona ninguna excepción relacionada con esta indemnización. | D65: Rentas de Trabajo | E65: Azul
A66: =SUBSTITUTE(SUBSTITUTE(FORMULATEXTO_Act(Comentarios[[#This Row],[Formulada]]),"=",""),"'","") -> !$B$592 | B66: =' '!$B$592 -> Gastos de entierro del trabajador | C66: El parágrafo 1 del artículo 206 del ET señala que, la exención prevista en el numeral 3 del mismo artículo, referente al tratamiento de renta exenta para los dineros recibidos por gastos de entierro del trabajador, es aplicable únicamente sobre los valores que correspondan al mínimo legal de que tratan las normas laborales. En consecuencia, al aplicar esta exención, se deberán revisar los valores mínimos señalados en los artículos 247 del Código Sustantivo del Trabajo, 51 y 86 de la Ley 100 de 1993 que indican que, la persona que demuestre haber pagado por los gastos de entierro de un trabajador, tiene derecho a percibir un auxilio funerario equivalente al último salario base de cotización del empleado, sin que dicho auxilio pueda ser inferior a 5 smmlv, ni superior a 10 smmlv. Adicionalmente, estos pagos por gasto de entierro sí deben someterse al límite general del 40% que no debe exceder las 5.040 UVT (para el año gravable 2022 equivalen a $191.540.000)., pues la norma no menciona ninguna excepción relacionada con estos gastos. | D66: Rentas de Trabajo | E66: Azul
A67: =SUBSTITUTE(SUBSTITUTE(FORMULATEXTO_Act(Comentarios[[#This Row],[Formulada]]),"=",""),"'","") -> !$B$593 | B67: =' '!$B$593 -> Bonificación y/o indemnización por plan de retiro de una entidad pública del orden nacional, departamental o municipal | C67: El artículo 27 de la Ley 488 de 1998 indica que, los contribuyente que reciban bonificaciones y/o indemnizaciones entregadas por acogerse a planes de retiro de entidades públicas, pueden tratarlas como renta exenta. Sin embargo, mediante el numeral 1.16 del Concepto 912 del 19 2018 la DIAN precisó que esta renta exenta debe someterse al límite general del 40% que no debe superar las 5.040 UVT (para el año gravable 2022 equivalen a $191.540.000), pues la norma no menciona ninguna excepción relacionada con esta bonificación. | D67: Rentas de Trabajo | E67: Azul
A68: =SUBSTITUTE(SUBSTITUTE(FORMULATEXTO_Act(Comentarios[[#This Row],[Formulada]]),"=",""),"'","") -> !$B$594 | B68: =' '!$B$594 -> Bonificación por retiro voluntario para ciudadanos colombianos que integran las reservas oficiales de prima y segunda clase de la Armada Nacional | C68: De acuerdo con los artículos 22 de la ey 44 de 1990 y 1.2.1.11.1 del Decreto 1625 de 2016, la bonificación por retiro voluntario que reciben los ciudadanos colombianos que integran las reservas de oficiales de primera y segunda clase de la Armada Nacional y que ejerzan actividades de navegante, oficial o tripulante en empresas marítimas nacionales de transporte público o de trabajos marítimos especiales, pueden ser tratadas como renta exenta. Esta renta exenta debe someterse al límite general del 40% que no puede superar las 5.040 UVT (para el año gravable 2022 equivalen a $191.540.000), pues la norma no menciona ninguna excepción relacionada con esta bonificación. | D68: Rentas de Trabajo | E68: Azul
A69: =SUBSTITUTE(SUBSTITUTE(FORMULATEXTO_Act(Comentarios[[#This Row],[Formulada]]),"=",""),"'","") -> !$B$595 | B69: =' '!$B$595 -> 25% de renta exenta laboral | C69: El numeral 10 del artículo 206 del ET establece que, los contribuyentes que reciban ingresos por rentas de trabajo, pueden tomar como renta exenta el 25% del valor total de los pagos laborales, limitada a 240 UVT (para el año gravable 2022 equivalen a $9.121.000) y 2880 UVT anuales (para el año gravable 2022 equivalen a $109.452.000). El cálculo de este 25% se realiza una vez se resten al valor total de los ingresos, los ingresos no constitutivos de renta, las deducciones y las demás rentas exentas. Debe tenerse en cuenta que, el parágrafo 2 del artículo 206 del ET indica que, esta exención no es no se otorgará sobre las cesantías, sobre la porción de los ingresos excluida o exonerada del impuesto de renta por otras disposiciones, ni sobre la parte gravable de las pensiones. | D69: Rentas de Trabajo | E69: Azul
A70: =SUBSTITUTE(SUBSTITUTE(FORMULATEXTO_Act(Comentarios[[#This Row],[Formulada]]),"=",""),"'","") -> !$B$601 | B70: =' '!$B$601 -> ¿El contribuyente desea registrar ingresos por honorarios como rentas de trabajo por honorarios? | C70: Debe tenerse en cuenta que, de acuerdo con los artículos 1.2.1.20.2 y 1.2.1.20.4 del Decreto 1625 de 2016 y con las instrucciones del Formulario 210 habilitado para la declaración de renta del año gravable 2022, los contribuyentes que hayan percibido ingresos por honorarios, que NO hayan contratado o vinculado para su generación a dos o más trabajadores, a los cuales SÍ se les vayan a imputar costos y gastos procedentes, renunciando a la renta exenta del 25% señalada en el numeral 10 del artículo 206 del ET, deben reportarlos como rentas de trabajo por honorarios y compensación de servicios personales (se sugiere hacer una valoración y determinar si es más favorable para el contribuyente tomar los costos y gastos procedentes o aplicar la renta exenta del 25%). | D70: Renta Honorarios y Servicios | E70: Azul
A71: =SUBSTITUTE(SUBSTITUTE(FORMULATEXTO_Act(Comentarios[[#This Row],[Formulada]]),"=",""),"'","") -> !$B$607 | B71: =' '!$B$607 -> ¿El contribuyente desea registrar ingresos por compensación de servicios personales como rentas de trabajo? | C71: Debe tenerse en cuenta que, de acuerdo con los artículos 1.2.1.20.2 y 1.2.1.20.4 del Decreto 1625 de 2016 y con las instrucciones del Formulario 210 habilitado para la declaración de renta del año gravable 2022, los contribuyentes que hayan percibido ingresos por compensación de servicios personales, que NO hayan contratado o vinculado para su generación a dos o más trabajadores, a los cuales SÍ se les vayan a imputar costos y gastos procedentes, renunciando a la renta exenta del 25% señalada en el numeral 10 del artículo 206 del ET, deben reportarlos como rentas de trabajo por honorarios y compensación de servicios personales (se sugiere hacer una valoración y determinar si es más favorable para el contribuyente tomar los costos y gastos procedentes o aplicar la renta exenta del 25%). | D71: Renta Honorarios y Servicios | E71: Azul
A72: =SUBSTITUTE(SUBSTITUTE(FORMULATEXTO_Act(Comentarios[[#This Row],[Formulada]]),"=",""),"'","") -> !$B$613 | B72: =' '!$B$613 -> ¿El contribuyente desea registrar ingresos por comisiones como rentas de trabajo? | C72: Debe tenerse en cuenta que, de acuerdo con los artículos 1.2.1.20.2 y 1.2.1.20.4 del Decreto 1625 de 2016, y con las instrucciones del Formulario 210 habilitado para la declaración de renta del año gravable 2022, los contribuyentes que hayan percibido ingresos por comisiones, que NO hayan contratado o vinculado para su generación a dos o más trabajadores, a los cuales SÍ se les vayan a imputar costos y gastos procedentes, renunciando a la renta exenta del 25% señalada en el numeral 10 del artículo 206 del ET, deben reportarlos como rentas de trabajo por honorarios y compensación de servicios personales (se sugiere hacer una valoración y determinar si es más favorable para el contribuyente tomar los costos y gastos procedentes o aplicar la renta exenta del 25%). | D72: Renta Honorarios y Servicios | E72: Azul
A73: =SUBSTITUTE(SUBSTITUTE(FORMULATEXTO_Act(Comentarios[[#This Row],[Formulada]]),"=",""),"'","") -> !$B$622 | B73: =' '!$B$622 -> Aportes obligatorios a salud | C73: El artículo 56 del ET indica que, los aportes obligatorios al Sistema General de Seguridad Social en Salud que haya hecho el contribuyente durante el respectivo año gravable, se consideran ingresos no constitutivos de renta. | D73: Renta Honorarios y Servicios | E73: Azul
A74: =SUBSTITUTE(SUBSTITUTE(FORMULATEXTO_Act(Comentarios[[#This Row],[Formulada]]),"=",""),"'","") -> !$B$623 | B74: =' '!$B$623 -> Aportes obligatorios a fondos de pensiones | C74: El artículo 55 del ET indica que, los aportes obligatorios al Sistema General de Seguridad Social en Pensiones que haya hecho el contribuyente durante el respectivo año gravable, se consideran ingresos no constitutivos de renta. | D74: Renta Honorarios y Servicios | E74: Azul
A75: =SUBSTITUTE(SUBSTITUTE(FORMULATEXTO_Act(Comentarios[[#This Row],[Formulada]]),"=",""),"'","") -> !$B$624 | B75: =' '!$B$624 -> Aportes a fondo de solidaridad pensional | C75: El artículo 55 del ET indica que, los aportes obligatorios al Sistema General de Seguridad Social en Pensiones que haya hecho el contribuyente durante el respectivo año gravable, se consideran ingresos no constitutivos de renta. | D75: Renta Honorarios y Servicios | E75: Azul
A76: =SUBSTITUTE(SUBSTITUTE(FORMULATEXTO_Act(Comentarios[[#This Row],[Formulada]]),"=",""),"'","") -> !$B$625 | B76: =' '!$B$625 -> Aportes a ARL | C76: El numeral 1.12 del Concepto DIAN 912 de 2018 establece que, el monto total de los aportes que el trabajador independiente realice al Sistema General de Riesgos Laborales, pueden ser tratados como ingreso no constitutivo de renta ni ganancia ocasional. | D76: Renta Honorarios y Servicios | E76: Azul
A77: =SUBSTITUTE(SUBSTITUTE(FORMULATEXTO_Act(Comentarios[[#This Row],[Formulada]]),"=",""),"'","") -> !$B$626 | B77: =' '!$B$626 -> Aportes voluntarios a fondos de pensiones obligatorias | C77: El artículo 55 del ET señala que, los aportes voluntarias a fondos de pensiones obligatorias (régimen de ahorro individual con solidaridad) que haya hecho el contribuyente durante el respectivo año gravable, pueden ser tratados como ingreso no constitutivo de renta ni de ganancia ocasional, en un porcentaje que no exceda el 25% del ingreso laboral o tributario anual, limitado a 2.500 UVT (para el año gravable 2022 equivale a $95.010.000). | D77: Renta Honorarios y Servicios | E77: Azul
A78: =SUBSTITUTE(SUBSTITUTE(FORMULATEXTO_Act(Comentarios[[#This Row],[Formulada]]),"=",""),"'","") -> !$B$627 | B78: =' '!$B$627 -> Remuneración por participación en proyectos calificados como de carácter científico, tecnológico o de innovación por el Consejo Nacional de Beneficios Tributarios en Ciencia, Tecnología e Innovación | C78: El artículo 57-2 del ET señala que, los pagos que reciba el contribuyente por la ejecución directa de labores de carácter científico, tecnológico o de innovación, realizados con los recursos destinados al respectivo proyecto, según los criterios y las condiciones definidas por el Consejo Nacional de Beneficios Tributarios en Ciencia, Tecnología e Innovación, son un ingreso no constitutivo de renta para quien los percibe. | D78: Renta Honorarios y Servicios | E78: Azul
A79: =SUBSTITUTE(SUBSTITUTE(FORMULATEXTO_Act(Comentarios[[#This Row],[Formulada]]),"=",""),"'","") -> !$B$630 | B79: =' '!$B$630 -> Costos y gastos procedentes | C79: El numeral 4 del artículo 336 del ET indica que, las personas que reciban ingresos por honorarios o compensación de servicios personales considerados como rentas de trabajo, pueden restar los costos y gastos que tengan relación con dichos ingresos, pero, en este caso, no pueden optar por aplicar la renta exenta señalada en el numeral 10 del artículo 206 del ET. En consecuencia, las personas naturales que perciban honorarios, compensación de servicios personales y/o comisiones, podrán imputar costos y gastos a sus ingresos, siempre que los mismos cumplan los requisitos señaladas en el artículo 107 del ET. | D79: Renta Honorarios y Servicios | E79: Azul
A80: =SUBSTITUTE(SUBSTITUTE(FORMULATEXTO_Act(Comentarios[[#This Row],[Formulada]]),"=",""),"'","") -> !$B$647 | B80: =' '!$B$647 -> Intereses y gastos financieros pagados a vinculados económicos | C80: De acuerdo con el artículo 118-1 del ET las intereses que el contribuyente haya pagado en préstamos o deudas son deducible en el respectivo año gravable. Sin embargo, en el caso de los intereses pagados que se hayan generado por deudas contraídas de forma directa o indirecta con vinculados económicos, nacionales o extranjeros (la definición vinculado económico se encuentra contenida en el artículo 260-1 del ET), solo se podrá deducirse cuando el monto total promedio de estas deudas, durante el correspondiente año gravable, no exceda el resultado de multiplicar por dos (2) el patrimonio líquido del contribuyente determinado a 31 de diciembre del año gravable inmediatamente anterior. Los intereses que excedan el resultado de la operación anterior, no podrán ser tomados como deducibles. | D80: Renta Honorarios y Servicios | E80: Azul
A81: =SUBSTITUTE(SUBSTITUTE(FORMULATEXTO_Act(Comentarios[[#This Row],[Formulada]]),"=",""),"'","") -> !$B$653 | B81: =' '!$B$653 -> Intereses pagados en créditos de vivienda o leasing habitacional | C81: De acuerdo con el artículo 119 del ET, los intereses que pague el contribuyente en créditos hipotecarios o leasing habitacional, siempre que el préstamo esté garantizado con hipoteca si el acreedor no está sometido a la vigilancia del Estado, pueden ser tomados como deducción hasta un monto igual o inferior a 1.200 UVT (para el año gravable 2022 equivalen a $45.605.000). Debe tenerse en cuenta que, de acuerdo con el Concepto 064444 de 2005, los intereses deducibles son aquellos pagados por la vivienda en la cual vive el contribuyente; en caso de no habite la casa por la cual paga dichos intereses, los mismos no podrán ser tomados como deducción. Adicionalmente, en caso de que el crédito hipotecario haya sido tomado por varias personas, los intereses deberán tomados como deducción de manera proporcional. | D81: Renta Honorarios y Servicios | E81: Azul
A82: =SUBSTITUTE(SUBSTITUTE(FORMULATEXTO_Act(Comentarios[[#This Row],[Formulada]]),"=",""),"'","") -> !$B$654 | B82: =' '!$B$654 -> Planes adicionales de salud | C82: De acuerdo con el artículo 387 del ET, los pagos que el contribuyente haya realizado a planes adicionales de salud (pólizas de salud, medicina prepagada) para él, su cónyuge, hijos y/o dependientes, puede ser tomado como deducción en el impuesto de renta, hasta una suma que no supere las 16 UVT mensuales (para el año gravable 2022 equivalen a $608.000) ni las 192 UVT anuales (para el año gravable 2022 equivalen a $7.297.000). A través del Concepto 000359 de 2020, la DIAN precisó que, atendiendo lo señalado en el artículo 40 de la Ley 1438 de 2011, dicha deducción también procede sobre planes y pólizas odontológicas y servicios prehospitalarios. | D82: Renta Honorarios y Servicios | E82: Azul
A83: =SUBSTITUTE(SUBSTITUTE(FORMULATEXTO_Act(Comentarios[[#This Row],[Formulada]]),"=",""),"'","") -> !$B$655 | B83: =' '!$B$655 -> Intereses pagados en créditos educativos con el ICETEX | C83: El artículo 119 del ET también indica que, los intereses que se paguen por préstamos con el ICETEX, para la educación superior del contribuyente, podrán ser tomados como deducción hasta un valor que no supere las 100 UVT (para el año gravable 2022 equivalen a $3.800.000). | D83: Renta Honorarios y Servicios | E83: Azul
A84: =SUBSTITUTE(SUBSTITUTE(FORMULATEXTO_Act(Comentarios[[#This Row],[Formulada]]),"=",""),"'","") -> !$B$656 | B84: =' '!$B$656 -> Gravamen a los movimientos financieros (4x1000) | C84: De acuerdo con el artículo 119 del ET, el 50% del Gravamen a los Movimientos Financieros que haya sido efectivamente pagado por el contribuyente durante el respectivo año gravable, puede ser tomado como deducción en el impuesto de renta, independientemente de que tenga o no relación de causalidad con la actividad económica que desarrolla. | D84: Renta Honorarios y Servicios | E84: Azul
A85: =SUBSTITUTE(SUBSTITUTE(FORMULATEXTO_Act(Comentarios[[#This Row],[Formulada]]),"=",""),"'","") -> !$B$657 | B85: =' '!$B$657 -> Dependientes económicos | C85: De acuerdo con el artículo 387 del ET, los contribuyentes que perciban rentas de trabajo pueden tomar como deducción por dependientes el 10% de sus ingresos brutos anuales, sin que dicho valor exceda las 32 UVT mensuales (para el año gravable 2022 equivalen a $1.216.000) ni las 384 UVT anuales (para el año gravable 2022 equivalen a $14.594.000). El parágrafo 2 del artículo 387 del ET señala que, tienen calidad de dependientes: - Los hijos del contribuyente que tengan hasta 18 años de edad. - Los hijos del contribuyente con edad entre 18 y 23 años, cuando el padre o madre contribuyente persona natural se encuentre financiando su educación en instituciones formales de educación superior. - Los hijos del contribuyente mayores de 23 años que se encuentren en situación de dependencia originada en factores físicos o psicológicos. - El cónyuge o compañero permanente del contribuyente que se encuentre en situación de dependencia sea por ausencia de ingresos o ingresos en el año menores a 260 UVT (para el año gravable 2022 equivalen a $9.881.000). - Los padres y los hermanos del contribuyente que se encuentren en situación de dependencia, sea por ausencia de ingresos o ingresos en el año menores a 260 UVT (para el año gravable 2022 equivalen a $9.881.000). | D85: Renta Honorarios y Servicios | E85: Azul
A86: =SUBSTITUTE(SUBSTITUTE(FORMULATEXTO_Act(Comentarios[[#This Row],[Formulada]]),"=",""),"'","") -> !$B$658 | B86: =' '!$B$658 -> Aportes a cesantías como partícipes independientes | C86: De acuerdo con el artículo 126-1 del ET, los aportes a cesantías que realice el contribuyente como partícipe independiente, pueden ser tomados como deducción hasta una suma de 2.500 UVT (para el año gravable 2022 equivalen a $95.010.000), sin que dicho monto supere un doceavo del ingreso gravable del respectivo año. | D86: Renta Honorarios y Servicios | E86: Azul
A87: =SUBSTITUTE(SUBSTITUTE(FORMULATEXTO_Act(Comentarios[[#This Row],[Formulada]]),"=",""),"'","") -> !$B$663 | B87: =' '!$B$663 -> Ingresos recibidos por funcionarios de la ONU o por vinculados con organismos especializados de la ONU con residencia fiscal en Colombia | C87: El artículo V - Sección 17 y 18 de la Ley 62 de 1973 señala que, se encuentran exentos de impuestos los sueldos y emolumentos pagados por la Organización de Naciones Unidas - ONU o por alguno de sus organismos especializados a sus funcionarios. Para que proceda la exención, es necesario que el contribuyente esté en la lista expedida por el Secretario General de la Organización, en la cual se establece los funcionarios que gozan de este beneficio. En referencia a este tema, mediante el Oficio 006443 de marzo 15 de 2018 la DIAN señaló: “... como quiera que mediante Ley 62 de diciembre 31 de 1973, el Congreso de Colombia aprobó las “Convenciones sobre Privilegios e Inmunidades de las Naciones Unidas, de los Organismos Especializados y de la Organización de los Estados Americanos, adoptadas las dos primeras por la Asamblea General de las Naciones Unidas el 13 de febrero de 1946 y el 21 de noviembre de 1947, respectivamente, y la última abierta a la firma en la Unión Panamericana el 15 de mayo de 1949” habrá de estarse a sus disposiciones, sin que sea viable que este instrumento supranacional se modifique o se entienda modificado de manera unilateral por la legislación interna de los Estados adherentes. En este sentido, en la medida en que se den las condiciones fijadas en la Convención, se mantendrán los términos de exención allí señaladas…”. (El subrayado es nuestro). De lo anterior podría entenderse que, estos ingresos pueden ser tratados como renta exenta y no deben someterse al límite general del 40%, que no puede exceder las 5.040 UVT (para el año gravable 2022 equivalen a $191.540.000). | D87: Renta Honorarios y Servicios | E87: Azul
A88: =SUBSTITUTE(SUBSTITUTE(FORMULATEXTO_Act(Comentarios[[#This Row],[Formulada]]),"=",""),"'","") -> !$B$664 | B88: =' '!$B$664 -> Ingresos recibidos en países de la CAN | C88: En aplicación de lo contenido en la Decisión 578 del 2004 de la Comisión de la Comunidad Andina - CAN, los ingresos recibidos por los contribuyentes en los países miembros de esta -Bolivia, Ecuador y Perú-, sólo serán gravados en el territorio en el cual se realizaron las actividades que dieron origen a estos ingresos. Los ingresos serán considerados renta exenta en Colombia y no serán sometidos al límite general del 40% de la renta líquida que no puede exceder las 5.040 UVT (para el año gravable 2022 equivalen a $191.540.000). | D88: Renta Honorarios y Servicios | E88: Azul
A89: =SUBSTITUTE(SUBSTITUTE(FORMULATEXTO_Act(Comentarios[[#This Row],[Formulada]]),"=",""),"'","") -> !$B$669 | B89: =' '!$B$669 -> Aportes a fondos de pensiones voluntarias | C89: El artículo 126-1 del ET indica que, los aportes voluntarios que haga el contribuyente a los seguros privados de pensiones y a los fondos de pensiones voluntarias, administrados por las entidades vigiladas por la Superintendencia Financiera de Colombia, serán considerados como una renta exenta, hasta una suma que en conjunto con el valor de los aportes a las Cuentas de Ahorro para el Fomento de la Construcción -AFC- señaladas en el artículo 126-4 del ET, no exceda el 30% del ingreso laboral o ingreso tributario del año, y hasta un monto máximo de 3.800 UVT por año (para el año gravable 2022 equivalen a $144.415.000). Adicionalmente, estos aportes sí deben someterse al límite general del 40% que no debe exceder las 5.040 UVT (para el año gravable 2022 equivalen a $191.540.000)., pues la norma no menciona ninguna excepción relacionada con estos aportes. | D89: Renta Honorarios y Servicios | E89: Azul
A90: =SUBSTITUTE(SUBSTITUTE(FORMULATEXTO_Act(Comentarios[[#This Row],[Formulada]]),"=",""),"'","") -> !$B$670 | B90: =' '!$B$670 -> Aportes a cuentas AFC y/o cuentas AVC | C90: El artículo 126-4 del ET indica que, los aportes que haga el contribuyente a cuentas AFC y/o AVC administradas por entidades vigiladas por la Superintendencia Financiera de Colombia, serán considerados como una renta exenta, hasta una suma que en conjunto con el valor de los aportes a seguros privados de pensiones y a los fondos de pensiones voluntarias señalados en el artículo 126-1 del ET, no exceda el 30% del ingreso laboral o ingreso tributario del año, y hasta un monto máximo de 3.800 UVT por año (para el año gravable 2022 equivalen a $144.415.000). Adicionalmente, estos aportes sí deben someterse al límite general del 40% que no debe exceder las 5.040 UVT (para el año gravable 2022 equivalen a $191.540.000), pues la norma no menciona ninguna excepción relacionada con estos aportes. | D90: Renta Honorarios y Servicios | E90: Azul
A91: =SUBSTITUTE(SUBSTITUTE(FORMULATEXTO_Act(Comentarios[[#This Row],[Formulada]]),"=",""),"'","") -> !$B$713 | B91: =' '!$B$713 -> Aportes obligatorios a salud | C91: El artículo 56 del ET indica que, los aportes obligatorios al Sistema General de Seguridad Social en Salud que haya hecho el contribuyente durante el respectivo año gravable, se consideran ingresos no constitutivos de renta. | D91: Rentas de Capital | E91: Azul
A92: =SUBSTITUTE(SUBSTITUTE(FORMULATEXTO_Act(Comentarios[[#This Row],[Formulada]]),"=",""),"'","") -> !$B$714 | B92: =' '!$B$714 -> Aportes obligatorios a fondos de pensiones | C92: El artículo 55 del ET indica que, los aportes obligatorios al Sistema General de Seguridad Social en Pensiones que haya hecho el contribuyente durante el respectivo año gravable, se consideran ingresos no constitutivos de renta. | D92: Rentas de Capital | E92: Azul
A93: =SUBSTITUTE(SUBSTITUTE(FORMULATEXTO_Act(Comentarios[[#This Row],[Formulada]]),"=",""),"'","") -> !$B$715 | B93: =' '!$B$715 -> Aportes a fondo de solidaridad pensional | C93: El artículo 55 del ET indica que, los aportes obligatorios al Sistema General de Seguridad Social en Pensiones que haya hecho el contribuyente durante el respectivo año gravable, se consideran ingresos no constitutivos de renta. | D93: Rentas de Capital | E93: Azul
A94: =SUBSTITUTE(SUBSTITUTE(FORMULATEXTO_Act(Comentarios[[#This Row],[Formulada]]),"=",""),"'","") -> !$B$716 | B94: =' '!$B$716 -> Aportes a ARL | C94: El numeral 1.12 del Concepto DIAN 912 de 2018 establece que, el monto total de los aportes que el trabajador independiente realice al Sistema General de Riesgos Laborales, pueden ser tratados como ingreso no constitutivo de renta ni ganancia ocasional. | D94: Rentas de Capital | E94: Azul
A95: =SUBSTITUTE(SUBSTITUTE(FORMULATEXTO_Act(Comentarios[[#This Row],[Formulada]]),"=",""),"'","") -> !$B$717 | B95: =' '!$B$717 -> Aportes voluntarios a fondos de pensiones obligatorias | C95: El artículo 55 del ET señala que, los aportes voluntarias a fondos de pensiones obligatorias (régimen de ahorro individual con solidaridad) que haya hecho el contribuyente durante el respectivo año gravable, pueden ser tratados como ingreso no constitutivo de renta ni de ganancia ocasional, en un porcentaje que no exceda el 25% del ingreso laboral o tributario anual, limitado a 2.500 UVT (para el año gravable 2022 equivale a $95.010.000). | D95: Rentas de Capital | E95: Azul
A96: =SUBSTITUTE(SUBSTITUTE(FORMULATEXTO_Act(Comentarios[[#This Row],[Formulada]]),"=",""),"'","") -> !$B$718 | B96: =' '!$B$718 -> Componente inflacionario de intereses obtenidos en entidades financieras | C96: El artículo 38 del ET indica que, no constituye renta ni ganancia ocasional la parte que corresponda al componente inflacionario de los rendimientos financieros percibidos por personas naturales y sucesiones ilíquidas, que provengan de entidades que estando sometidas a inspección y vigilancia de la Superintendencia Financiera, tengan por objeto propio intermediar en el mercado de recursos financieros. Para el año gravable 2022, el componente inflacionario es del 100%. | D96: Rentas de Capital | E96: Azul
A97: =SUBSTITUTE(SUBSTITUTE(FORMULATEXTO_Act(Comentarios[[#This Row],[Formulada]]),"=",""),"'","") -> !$B$719 | B97: =' '!$B$719 -> Componente inflacionario de intereses obtenidos e fondos de inversión, mutuos de inversión y/o de valores | C97: El artículo 39 del ET indica que, las utilidades que los fondos mutuos de inversión, los fondos de inversión y los fondos de valores distribuyan o abonen en cuenta a sus afiliados, no constituyen renta ni ganancia ocasional en la parte que corresponda al componente inflacionario de los rendimientos financieros recibidos por el fondo. Para el año gravable 2022, el componente inflacionario es del 100%. | D97: Rentas de Capital | E97: Azul
A98: =SUBSTITUTE(SUBSTITUTE(FORMULATEXTO_Act(Comentarios[[#This Row],[Formulada]]),"=",""),"'","") -> !$B$739 | B98: =' '!$B$739 -> Intereses y gastos financieros pagados a vinculados económicos | C98: De acuerdo con el artículo 118-1 del ET las intereses que el contribuyente haya pagado en préstamos o deudas son deducible en el respectivo año gravable. Sin embargo, en el caso de los intereses pagados que se hayan generado por deudas contraídas de forma directa o indirecta con vinculados económicos, nacionales o extranjeros (la definición vinculado económico se encuentra contenida en el artículo 260-1 del ET), solo se podrá deducirse cuando el monto total promedio de estas deudas, durante el correspondiente año gravable, no exceda el resultado de multiplicar por dos (2) el patrimonio líquido del contribuyente determinado a 31 de diciembre del año gravable inmediatamente anterior. Los intereses que excedan el resultado de la operación anterior, no podrán ser tomados como deducibles. | D98: Rentas de Capital | E98: Azul
A99: =SUBSTITUTE(SUBSTITUTE(FORMULATEXTO_Act(Comentarios[[#This Row],[Formulada]]),"=",""),"'","") -> !$B$745 | B99: =' '!$B$745 -> Intereses pagados en créditos de vivienda o leasing habitacional | C99: De acuerdo con el artículo 119 del ET, los intereses que pague el contribuyente en créditos hipotecarios o leasing habitacional, siempre que el préstamo esté garantizado con hipoteca si el acreedor no está sometido a la vigilancia del Estado, pueden ser tomados como deducción hasta un monto igual o inferior a 1.200 UVT (para el año gravable 2022 equivalen a $45.605.000). Debe tenerse en cuenta que, de acuerdo con el Concepto 064444 de 2005, los intereses deducibles son aquellos pagados por la vivienda en la cual vive el contribuyente; en caso de no habite la casa por la cual paga dichos intereses, los mismos no podrán ser tomados como deducción. Adicionalmente, en caso de que el crédito hipotecario haya sido tomado por varias personas, los intereses deberán tomados como deducción de manera proporcional. | D99: Rentas de Capital | E99: Azul
A100: =SUBSTITUTE(SUBSTITUTE(FORMULATEXTO_Act(Comentarios[[#This Row],[Formulada]]),"=",""),"'","") -> !$B$746 | B100: =' '!$B$746 -> Intereses pagados en créditos educativos con el ICETEX | C100: El artículo 119 del ET también indica que, los intereses que se paguen por préstamos con el ICETEX, para la educación superior del contribuyente, podrán ser tomados como deducción hasta un valor que no supere las 100 UVT (para el año gravable 2022 equivalen a $3.800.000). | D100: Rentas de Capital | E100: Azul
A101: =SUBSTITUTE(SUBSTITUTE(FORMULATEXTO_Act(Comentarios[[#This Row],[Formulada]]),"=",""),"'","") -> !$B$747 | B101: =' '!$B$747 -> Gravamen a los movimientos financieros (4x1000) | C101: De acuerdo con el artículo 119 del ET, el 50% del Gravamen a los Movimientos Financieros que haya sido efectivamente pagado por el contribuyente durante el respectivo año gravable, puede ser tomado como deducción en el impuesto de renta, independientemente de que tenga o no relación de causalidad con la actividad económica que desarrolla. | D101: Rentas de Capital | E101: Azul
A102: =SUBSTITUTE(SUBSTITUTE(FORMULATEXTO_Act(Comentarios[[#This Row],[Formulada]]),"=",""),"'","") -> !$B$748 | B102: =' '!$B$748 -> Aportes a cesantías como partícipes independientes | C102: De acuerdo con el artículo 126-1 del ET, los aportes a cesantías que realice el contribuyente como partícipe independiente, pueden ser tomados como deducción hasta una suma de 2.500 UVT (para el año gravable 2022 equivalen a $95.010.000), sin que dicho monto supere un doceavo del ingreso gravable del respectivo año. | D102: Rentas de Capital | E102: Azul
A103: =SUBSTITUTE(SUBSTITUTE(FORMULATEXTO_Act(Comentarios[[#This Row],[Formulada]]),"=",""),"'","") -> !$B$753 | B103: =' '!$B$753 -> Ingresos recibidos en países de la CAN | C103: En aplicación de lo contenido en la Decisión 578 del 2004 de la Comisión de la Comunidad Andina - CAN, los ingresos recibidos por los contribuyentes en los países miembros de esta -Bolivia, Ecuador y Perú-, sólo serán gravados en el territorio en el cual se realizaron las actividades que dieron origen a estos ingresos. Los ingresos serán considerados renta exenta en Colombia y no serán sometidos al límite general del 40% de la renta líquida que no puede exceder las 5.040 UVT (para el año gravable 2022 equivalen a $191.540.000). | D103: Rentas de Capital | E103: Azul
A104: =SUBSTITUTE(SUBSTITUTE(FORMULATEXTO_Act(Comentarios[[#This Row],[Formulada]]),"=",""),"'","") -> !$B$758 | B104: =' '!$B$758 -> Aportes a fondos de pensiones voluntarias | C104: El artículo 126-1 del ET indica que, los aportes voluntarios que haga el contribuyente a los seguros privados de pensiones y a los fondos de pensiones voluntarias, administrados por las entidades vigiladas por la Superintendencia Financiera de Colombia, serán considerados como una renta exenta, hasta una suma que en conjunto con el valor de los aportes a las Cuentas de Ahorro para el Fomento de la Construcción -AFC- señaladas en el artículo 126-4 del ET, no exceda el 30% del ingreso laboral o ingreso tributario del año, y hasta un monto máximo de 3.800 UVT por año (para el año gravable 2022 equivalen a $144.415.000). Adicionalmente, estos aportes sí deben someterse al límite general del 40% que no debe exceder las 5.040 UVT (para el año gravable 2022 equivalen a $191.540.000)., pues la norma no menciona ninguna excepción relacionada con estos aportes. | D104: Rentas de Capital | E104: Azul
A105: =SUBSTITUTE(SUBSTITUTE(FORMULATEXTO_Act(Comentarios[[#This Row],[Formulada]]),"=",""),"'","") -> !$B$759 | B105: =' '!$B$759 -> Aportes a cuentas AFC y/o cuentas AVC | C105: El artículo 126-4 del ET indica que, los aportes que haga el contribuyente a cuentas AFC y/o AVC administradas por entidades vigiladas por la Superintendencia Financiera de Colombia, serán considerados como una renta exenta, hasta una suma que en conjunto con el valor de los aportes a seguros privados de pensiones y a los fondos de pensiones voluntarias señalados en el artículo 126-1 del ET, no exceda el 30% del ingreso laboral o ingreso tributario del año, y hasta un monto máximo de 3.800 UVT por año (para el año gravable 2022 equivalen a $144.415.000). Adicionalmente, estos aportes sí deben someterse al límite general del 40% que no debe exceder las 5.040 UVT (para el año gravable 2022 equivalen a $191.540.000), pues la norma no menciona ninguna excepción relacionada con estos aportes. | D105: Rentas de Capital | E105: Azul
A106: =SUBSTITUTE(SUBSTITUTE(FORMULATEXTO_Act(Comentarios[[#This Row],[Formulada]]),"=",""),"'","") -> !$B$760 | B106: =' '!$B$760 -> Regalías por derechos de autor por libros de carácter científico o cultural, editados e impresos en Colombia | C106: El artículo 28 de la Ley 98 de 1993 señala que, los ingresos por concepto de derechos de autor que reciban los autores y traductores tanto colombianos como extranjeros residentes en Colombia, por libros de carácter científico o cultural editados e impresos en Colombia, pueden ser tratados como rentas exentas. Esta renta exenta debe someterse al límite general del 40% que no puede superar las 5.040 UVT (para el año gravable 2022 equivalen a $191.540.000), pues la norma no menciona ninguna excepción relacionada con esta. | D106: Rentas de Capital | E106: Azul
A107: =SUBSTITUTE(SUBSTITUTE(FORMULATEXTO_Act(Comentarios[[#This Row],[Formulada]]),"=",""),"'","") -> !$B$761 | B107: =' '!$B$761 -> Regalías por derechos de autor y traducción provenientes de la primera edición y primer tirada de libros, editados e impresos en Colombia | C107: El artículo 28 de la Ley 98 de 1993 señala que, también están exentos los ingresos por derechos de autor y traducción de autores nacionales y extranjeros residentes en el exterior, provenientes de la primera edición y primer tirada de libros, editados e impresos en Colombia. Esta renta exenta debe someterse al límite general del 40% que no puede superar las 5.040 UVT (para el año gravable 2022 equivalen a $191.540.000), pues la norma no menciona ninguna excepción relacionada con esta. | D107: Rentas de Capital | E107: Azul
A108: =SUBSTITUTE(SUBSTITUTE(FORMULATEXTO_Act(Comentarios[[#This Row],[Formulada]]),"=",""),"'","") -> !$B$762 | B108: =' '!$B$762 -> Regalías por derechos de autor y traducción provenientes de las ediciones o tiradas posteriores a la primera edición del libro | C108: El artículo 28 de la Ley 98 de 1993 señala que, para las ediciones o tiradas posteriores del mismo libro estará exento un valor equivalente a 1.200 UVT (para el año gravable 2022 equivalen a $45.605.000). Esta renta exenta debe someterse al límite general del 40% que no puede superar las 5.040 UVT (para el año gravable 2022 equivalen a $191.540.000), pues la norma no menciona ninguna excepción relacionada con esta. | D108: Rentas de Capital | E108: Azul
A109: =SUBSTITUTE(SUBSTITUTE(FORMULATEXTO_Act(Comentarios[[#This Row],[Formulada]]),"=",""),"'","") -> !$B$784 | B109: =' '!$B$784 -> Retiro de aportes voluntarios a fondos de pensiones obligatorias, sin el cumplimiento de los requisitos | C109: De acuerdo con los artículos 55 del ET y 1.2.1.12.9 del Decreto 1625 de 2016. Cuando el contribuyente realice retiros de aportes voluntarios a pensiones obligatorias sin el cumplimiento de los requisitos, estos pierden el beneficio de ingreso no constitutivo de renta, por lo que se les practicará una retención en la fuente del 35% y deben ser reportados como ingreso gravado en la declaración de renta del año gravable en el cual se hizo el retiro. | D109: Rentas no laborales | E109: Azul
A110: =SUBSTITUTE(SUBSTITUTE(FORMULATEXTO_Act(Comentarios[[#This Row],[Formulada]]),"=",""),"'","") -> !$B$785 | B110: =' '!$B$785 -> Retiro de aportes voluntarios a fondos de pensiones voluntarias, sin el cumplimiento de los requisitos | C110: Al hacer el reporte del retiro de los aportes voluntarios sin el cumplimiento de los requisitos, es necesario verificar si los aportes retirados fueron realizados sin retención contingente, es decir, si corresponden a cualquier de las siguientes situaciones: - Retiro de aportes que se sometieron a retención en la fuente por parte de su pagador o empleador porque excedieron el límite del 30% al momento de realizar el aporte. En este caso, este valor fue declarado como ingreso gravado en el año del aporte, por lo tanto, el retiro no constituye ingreso gravado. - Retiro de aportes realizados directamente por el contribuyente y sobre los cuales le practicaron retención en la fuente o a pesar que no le practicaron retención en la fuente no fueron tomados como renta exenta en su declaración de renta. En caso de que no hayan sido tomados como renta exenta en el año en el cual se realizaron los aportes, el retiro no constituye ingreso gravado. En caso de que, los aportes si hayan sido tomados como renta exenta en el año en el cual se realizaron, el retiro si deberá ser reportado como ingreso gravado. Si los aportes retirados se hayan realizado con retención contingente, estos retiros sí deberán ser reportados como ingreso gravado en la declaración de renta. Fuente: www.skandia.com.co | D110: Rentas no laborales | E110: Azul
A111: =SUBSTITUTE(SUBSTITUTE(FORMULATEXTO_Act(Comentarios[[#This Row],[Formulada]]),"=",""),"'","") -> !$B$786 | B111: =' '!$B$786 -> Retiro de aportes a cuentas AFC, sin el cumplimiento de los requisitos | C111: El parágrafo 2 del artículo 126-4 del ET señala que, si los aportes realizados a cuentas AFC se retiran sin el cumplimiento de los requisitos, pierden su calidad de renta exenta y pasan a ser ingreso gravado en el año en el cual se retiren; adicionalmente, al momento de retiro deberán ser sometidos a una retención en la fuente del 7%. | D111: Rentas no laborales | E111: Azul
A112: =SUBSTITUTE(SUBSTITUTE(FORMULATEXTO_Act(Comentarios[[#This Row],[Formulada]]),"=",""),"'","") -> !$B$804 | B112: =' '!$B$804 -> Aportes obligatorios a salud | C112: El artículo 56 del ET indica que, los aportes obligatorios al Sistema General de Seguridad Social en Salud que haya hecho el contribuyente durante el respectivo año gravable, se consideran ingresos no constitutivos de renta. | D112: Rentas no laborales | E112: Azul
A113: =SUBSTITUTE(SUBSTITUTE(FORMULATEXTO_Act(Comentarios[[#This Row],[Formulada]]),"=",""),"'","") -> !$B$805 | B113: =' '!$B$805 -> Aportes obligatorios a fondos de pensiones | C113: El artículo 55 del ET indica que, los aportes obligatorios al Sistema General de Seguridad Social en Pensiones que haya hecho el contribuyente durante el respectivo año gravable, se consideran ingresos no constitutivos de renta. | D113: Rentas no laborales | E113: Azul
A114: =SUBSTITUTE(SUBSTITUTE(FORMULATEXTO_Act(Comentarios[[#This Row],[Formulada]]),"=",""),"'","") -> !$B$806 | B114: =' '!$B$806 -> Aportes a fondo de solidaridad pensional | C114: El artículo 55 del ET indica que, los aportes obligatorios al Sistema General de Seguridad Social en Pensiones que haya hecho el contribuyente durante el respectivo año gravable, se consideran ingresos no constitutivos de renta. | D114: Rentas no laborales | E114: Azul
A115: =SUBSTITUTE(SUBSTITUTE(FORMULATEXTO_Act(Comentarios[[#This Row],[Formulada]]),"=",""),"'","") -> !$B$807 | B115: =' '!$B$807 -> Aportes a ARL | C115: El numeral 1.12 del Concepto DIAN 912 de 2018 establece que, el monto total de los aportes que el trabajador independiente realice al Sistema General de Riesgos Laborales, pueden ser tratados como ingreso no constitutivo de renta ni ganancia ocasional. | D115: Rentas no laborales | E115: Azul
A116: =SUBSTITUTE(SUBSTITUTE(FORMULATEXTO_Act(Comentarios[[#This Row],[Formulada]]),"=",""),"'","") -> !$B$808 | B116: =' '!$B$808 -> Aportes voluntarios a fondos de pensiones obligatorias | C116: El artículo 55 del ET señala que, los aportes voluntarias a fondos de pensiones obligatorias (régimen de ahorro individual con solidaridad) que haya hecho el contribuyente durante el respectivo año gravable, pueden ser tratados como ingreso no constitutivo de renta ni de ganancia ocasional, en un porcentaje que no exceda el 25% del ingreso laboral o tributario anual, limitado a 2.500 UVT (para el año gravable 2022 equivale a $95.010.000). | D116: Rentas no laborales | E116: Azul
A117: =SUBSTITUTE(SUBSTITUTE(FORMULATEXTO_Act(Comentarios[[#This Row],[Formulada]]),"=",""),"'","") -> !$B$809 | B117: =' '!$B$809 -> Indemnizaciones por daño emergente | C117: El artículo 45 del ET indica que, las indemnizaciones por daño emergente que reciba el contribuyente pueden ser tratadas como ingresos no constitutivos de renta. Debe tener en cuenta que, para que proceda este tratamiento, es necesario que el contribuyente invertía la totalidad de la indemnización en la adquisición de bienes iguales o semejantes a los que eran objeto del seguro. | D117: Rentas no laborales | E117: Azul
A118: =SUBSTITUTE(SUBSTITUTE(FORMULATEXTO_Act(Comentarios[[#This Row],[Formulada]]),"=",""),"'","") -> !$B$810 | B118: =' '!$B$810 -> Gananciales | C118: El artículo 47 del ET señala que los gananciales recibidos por el contribuyente pueden ser tratados como ingreso no constitutivo de renta. | D118: Rentas no laborales | E118: Azul
A119: =SUBSTITUTE(SUBSTITUTE(FORMULATEXTO_Act(Comentarios[[#This Row],[Formulada]]),"=",""),"'","") -> !$B$811 | B119: =' '!$B$811 -> Apoyos económicos no reembolsables o condonados entregados por el Estado para financiera programas educativos | C119: Los artículos 46 y 1.2.1.12.8 del Decreto 1625 de 2016 indican que, los apoyos económicos no reembolsables o condonados entregados por el Estado o financiados con recursos públicos, para financiar programas educativos al contribuyente, pueden ser tratados como ingreso no constitutivo de renta. Cuando dichos apoyos económicos NO hayan sido recibidos por medio de una relación laboral, estos ingresos deberán ser reportados en las rentas no laborales. | D119: Rentas no laborales | E119: Azul
A120: =SUBSTITUTE(SUBSTITUTE(FORMULATEXTO_Act(Comentarios[[#This Row],[Formulada]]),"=",""),"'","") -> !$B$812 | B120: =' '!$B$812 -> Donaciones recibidas para partidos, movimientos y/o campañas políticas | C120: El artículo 47-1 del ET indica que, los dineros que las personas naturales reciban de terceros, sean estos personas naturales o jurídicas, destinadas en forma exclusiva a financiar el funcionamiento de partidos, movimientos políticos y grupos sociales que postulen candidatos y las que con el mismo fin reciban los candidatos cabezas de listas para la financiación de las campañas políticas para las elecciones populares previstas en la Constitución Nacional, pueden ser tratados como ingreso no constitutivo de renta, si se demuestra que han sido utilizadas en estas actividades. | D120: Rentas no laborales | E120: Azul
A121: =SUBSTITUTE(SUBSTITUTE(FORMULATEXTO_Act(Comentarios[[#This Row],[Formulada]]),"=",""),"'","") -> !$B$813 | B121: =' '!$B$813 -> Incentivos para capitalización rural | C121: El artículo 52 del ET señala que, Incentivo a la Capitalización Rural previsto en la Ley 101 de 1993, tiene tratamiento de ingreso no constitutivo de renta. | D121: Rentas no laborales | E121: Azul
A122: =SUBSTITUTE(SUBSTITUTE(FORMULATEXTO_Act(Comentarios[[#This Row],[Formulada]]),"=",""),"'","") -> !$B$814 | B122: =' '!$B$814 -> Utilidad en venta de acciones inscritas en BVC, cuando no superen el 10% de las acciones en circulación de la sociedad | C122: De acuerdo con el artículo 36-1 del ET, no constituyen renta ni ganancia ocasional las utilidades provenientes de la enajenación de acciones inscritas en una Bolsa de Valores Colombiana, de las cuales sea titular un mismo beneficiario real, cuando dicha enajenación no supere el 10% de las acciones en circulación de la respectiva sociedad, durante un mismo año gravable. | D122: Rentas no laborales | E122: Azul
A123: =SUBSTITUTE(SUBSTITUTE(FORMULATEXTO_Act(Comentarios[[#This Row],[Formulada]]),"=",""),"'","") -> !$B$835 | B123: =' '!$B$835 -> Intereses y gastos financieros pagados a vinculados económicos | C123: De acuerdo con el artículo 118-1 del ET las intereses que el contribuyente haya pagado en préstamos o deudas son deducible en el respectivo año gravable. Sin embargo, en el caso de los intereses pagados que se hayan generado por deudas contraídas de forma directa o indirecta con vinculados económicos, nacionales o extranjeros (la definición vinculado económico se encuentra contenida en el artículo 260-1 del ET), solo se podrá deducirse cuando el monto total promedio de estas deudas, durante el correspondiente año gravable, no exceda el resultado de multiplicar por dos (2) el patrimonio líquido del contribuyente determinado a 31 de diciembre del año gravable inmediatamente anterior. Los intereses que excedan el resultado de la operación anterior, no podrán ser tomados como deducibles. | D123: Rentas no laborales | E123: Azul
A124: =SUBSTITUTE(SUBSTITUTE(FORMULATEXTO_Act(Comentarios[[#This Row],[Formulada]]),"=",""),"'","") -> !$B$845 | B124: =' '!$B$845 -> Intereses pagados en créditos de vivienda o leasing habitacional | C124: De acuerdo con el artículo 119 del ET, los intereses que pague el contribuyente en créditos hipotecarios o leasing habitacional, siempre que el préstamo esté garantizado con hipoteca si el acreedor no está sometido a la vigilancia del Estado, pueden ser tomados como deducción hasta un monto igual o inferior a 1.200 UVT (para el año gravable 2022 equivalen a $45.605.000). Debe tenerse en cuenta que, de acuerdo con el Concepto 064444 de 2005, los intereses deducibles son aquellos pagados por la vivienda en la cual vive el contribuyente; en caso de no habite la casa por la cual paga dichos intereses, los mismos no podrán ser tomados como deducción. Adicionalmente, en caso de que el crédito hipotecario haya sido tomado por varias personas, los intereses deberán tomados como deducción de manera proporcional. | D124: Rentas no laborales | E124: Azul
A125: =SUBSTITUTE(SUBSTITUTE(FORMULATEXTO_Act(Comentarios[[#This Row],[Formulada]]),"=",""),"'","") -> !$B$846 | B125: =' '!$B$846 -> Intereses pagados en créditos educativos con el ICETEX | C125: El artículo 119 del ET también indica que, los intereses que se paguen por préstamos con el ICETEX, para la educación superior del contribuyente, podrán ser tomados como deducción hasta un valor que no supere las 100 UVT (para el año gravable 2022 equivalen a $3.800.000). | D125: Rentas no laborales | E125: Azul
A126: =SUBSTITUTE(SUBSTITUTE(FORMULATEXTO_Act(Comentarios[[#This Row],[Formulada]]),"=",""),"'","") -> !$B$847 | B126: =' '!$B$847 -> Gravamen a los movimientos financieros (4x1000) | C126: De acuerdo con el artículo 119 del ET, el 50% del Gravamen a los Movimientos Financieros que haya sido efectivamente pagado por el contribuyente durante el respectivo año gravable, puede ser tomado como deducción en el impuesto de renta, independientemente de que tenga o no relación de causalidad con la actividad económica que desarrolla. | D126: Rentas no laborales | E126: Azul
A127: =SUBSTITUTE(SUBSTITUTE(FORMULATEXTO_Act(Comentarios[[#This Row],[Formulada]]),"=",""),"'","") -> !$B$848 | B127: =' '!$B$848 -> Aportes a cesantías como partícipes independientes | C127: De acuerdo con el artículo 126-1 del ET, los aportes a cesantías que realice el contribuyente como partícipe independiente, pueden ser tomados como deducción hasta una suma de 2.500 UVT (para el año gravable 2022 equivalen a $95.010.000), sin que dicho monto supere un doceavo del ingreso gravable del respectivo año. | D127: Rentas no laborales | E127: Azul
A128: =SUBSTITUTE(SUBSTITUTE(FORMULATEXTO_Act(Comentarios[[#This Row],[Formulada]]),"=",""),"'","") -> !$B$853 | B128: =' '!$B$853 -> Servicios hoteleros prestados en hoteles que se hayan construido en al menos un 61% entre el 1 de enero de 2003 y el 31 de diciembre de 2017 | C128: El numeral 3 del artículo 207-2 del ET, adicionado por el artículo 18 de la Ley 788 de 2002, y el artículo 1.2.1.22.10 del Decreto 1625 de 2016, indican que los ingresos por servicios hoteleros prestados en hoteles nuevos que iniciaron su construcción antes del 31 de diciembre de 2017, pueden ser tratados como renta exenta durante 30 años contados partir del año gravable en que se inicien las operaciones. Debe tenerse en cuenta que, para este tratamiento, se consideran nuevos hoteles únicamente aquellos construidos o que demuestren un avance de por lo menos el 61% en la construcción de su infraestructura entre el 1 de enero del 2003 y el 31 de diciembre del 2017. Adicionalmente, para que proceda esta deducción, es necesario que el contribuyente cumpla las condiciones indicadas en el artículo 1.2.1.22.11 del Decreto 1625 de 2016. Cabe aclarar que, los contribuyentes que acrediten las condiciones, pueden disfrutar de este beneficio durante la totalidad del término otorgado en la norma y, por considerarse constitucionalmente este derecho como una situación jurídica consolidada, no puede ser afectada por cambios normativos posteriores. | D128: Rentas no laborales | E128: Azul
A129: =SUBSTITUTE(SUBSTITUTE(FORMULATEXTO_Act(Comentarios[[#This Row],[Formulada]]),"=",""),"'","") -> !$B$854 | B129: =' '!$B$854 -> Servicios hoteleros prestados en hoteles que se hayan remodelado y/o ampliado en al menos un 61% entre el 1 de enero de 2003 y el 31 de diciembre de 2017 | C129: El numeral 4 del artículo 207-2 del ET y el artículo 1.2.1.22.12 del Decreto 1625 de 2016 señalan que, los ingresos por servicios hoteleros prestados en hoteles que hayan sido remodelados o ampliados entre el 1 de enero de 2003 y el 31 de diciembre de 2017, pueden ser tratados como renta exenta durante 30 años contados a partir del año gravable en que se inicien las operaciones de prestación de servicios en el área remodelada o ampliada. La exención corresponderá a la proporción que represente el valor de la remodelación o ampliación en el costo fiscal del inmueble remodelado y/o ampliado. Para que proceda el tratamiento de renta exenta, el contribuyente debe cumplir las condiciones señaladas en el artículo 1.2.1.22.13 del Decreto 1625 de 2016. Cabe aclarar que, los contribuyentes que acrediten las condiciones, pueden disfrutar de este beneficio durante la totalidad del término otorgado en la norma y, por considerarse constitucionalmente este derecho como una situación jurídica consolidada, no puede ser afectada por cambios normativos posteriores. | D129: Rentas no laborales | E129: Azul
A130: =SUBSTITUTE(SUBSTITUTE(FORMULATEXTO_Act(Comentarios[[#This Row],[Formulada]]),"=",""),"'","") -> !$B$855 | B130: =' '!$B$855 -> Ingresos recibidos en países de la CAN | C130: En aplicación de lo contenido en la Decisión 578 del 2004 de la Comisión de la Comunidad Andina - CAN, los ingresos recibidos por los contribuyentes en los países miembros de esta -Bolivia, Ecuador y Perú-, sólo serán gravados en el territorio en el cual se realizaron las actividades que dieron origen a estos ingresos. Los ingresos serán considerados renta exenta en Colombia y no serán sometidos al límite general del 40% de la renta líquida que no puede exceder las 5.040 UVT (para el año gravable 2022 equivalen a $191.540.000). | D130: Rentas no laborales | E130: Azul
A131: =SUBSTITUTE(SUBSTITUTE(FORMULATEXTO_Act(Comentarios[[#This Row],[Formulada]]),"=",""),"'","") -> !$B$860 | B131: =' '!$B$860 -> Aportes a fondos de pensiones voluntarias | C131: El artículo 126-1 del ET indica que, los aportes voluntarios que haga el contribuyente a los seguros privados de pensiones y a los fondos de pensiones voluntarias, administrados por las entidades vigiladas por la Superintendencia Financiera de Colombia, serán considerados como una renta exenta, hasta una suma que en conjunto con el valor de los aportes a las Cuentas de Ahorro para el Fomento de la Construcción -AFC- señaladas en el artículo 126-4 del ET, no exceda el 30% del ingreso laboral o ingreso tributario del año, y hasta un monto máximo de 3.800 UVT por año (para el año gravable 2022 equivalen a $144.415.000). Adicionalmente, estos aportes sí deben someterse al límite general del 40% que no debe exceder las 5.040 UVT (para el año gravable 2022 equivalen a $191.540.000)., pues la norma no menciona ninguna excepción relacionada con estos aportes. | D131: Rentas no laborales | E131: Azul
A132: =SUBSTITUTE(SUBSTITUTE(FORMULATEXTO_Act(Comentarios[[#This Row],[Formulada]]),"=",""),"'","") -> !$B$861 | B132: =' '!$B$861 -> Aportes a cuentas AFC y/o cuentas AVC | C132: El artículo 126-4 del ET indica que, los aportes que haga el contribuyente a cuentas AFC y/o AVC administradas por entidades vigiladas por la Superintendencia Financiera de Colombia, serán considerados como una renta exenta, hasta una suma que en conjunto con el valor de los aportes a seguros privados de pensiones y a los fondos de pensiones voluntarias señalados en el artículo 126-1 del ET, no exceda el 30% del ingreso laboral o ingreso tributario del año, y hasta un monto máximo de 3.800 UVT por año (para el año gravable 2022 equivalen a $144.415.000). Adicionalmente, estos aportes sí deben someterse al límite general del 40% que no debe exceder las 5.040 UVT (para el año gravable 2022 equivalen a $191.540.000), pues la norma no menciona ninguna excepción relacionada con estos aportes. | D132: Rentas no laborales | E132: Azul
A133: =SUBSTITUTE(SUBSTITUTE(FORMULATEXTO_Act(Comentarios[[#This Row],[Formulada]]),"=",""),"'","") -> !$B$876 | B133: =' '!$B$876 -> Rentas exentas y/o deducciones imputables (limitadas) | C133: De acuerdo con las indicaciones del formulario 210 habilitado para el año gravable 2022, para calcular las rentas exentas y deducciones imputables limitadas de la cédula general, se deberá hacer la siguiente operación: Se suman los ingresos brutos de las Rentas de Trabajo (Casilla 32), más los ingresos brutos de las Rentas de Trabajo por honorarios y compensación de servicios personales sujetos a costos y gastos y no a las rentas exentas del numeral 10 del artículo 206 del ET (Casilla 43), más los ingresos brutos de las Rentas de Capital (Casilla 58), más los ingresos brutos de las Rentas no Laborales (casilla 74), y se restan los ingresos no constitutivos de renta de las Renta de Trabajo (Casilla 33), menos los ingresos no constitutivos de renta de las Rentas de Trabajo por honorarios y compensación de servicios personales sujetos a costos y gastos y no a las rentas exentas del numeral 10 del artículo 206 del ET (Casilla 44), menos los ingresos no constitutivos de las Rentas de Capital (Casilla 59), menos los ingresos no constitutivos de renta de las Rentas no Laborales (Casilla 76), menos las Devoluciones, rebajas y descuentos de la Casilla 75). Al resultado de la operación anterior, se restan las rentas exentas que conforme al numeral 3 del artículo 336 del ET, no les aplica el límite general del 40% ni el de las 5.040 UVT. A este resultado se le aplica el 40%, que en todo caso, no puede superar las 5.040 UVT. Al 40% o a las 5.040 UVT calculado anteriormente, se suman las rentas exentas no sometidas al límite. Una vez obtenido el valor total de las rentas exentas y deducciones imputables a la renta líquida de la cédula general, se distribuirá en las casillas correspondientes a las Rentas exentas y deducciones imputables (Limitadas), de la siguiente manera: primero a las Rentas de Trabajo, segundo a las rentas de Trabajo por honorarios y compensación de servicios personales sujetos a costos y gastos y no a las rentas exentas del numeral 10 del artículo 206 del ET, después a las Rentas de Capital y por último a las Rentas no laborales, hasta agotar el valor total de las rentas exentas y deducciones. | D133: Resumen Cédula General | E133: Azul
A134: =SUBSTITUTE(SUBSTITUTE(FORMULATEXTO_Act(Comentarios[[#This Row],[Formulada]]),"=",""),"'","") -> !$D$876 | B134: =' '!$D$876 -> $ 0 | C134: Este valor corresponde a las rentas exentas y deducciones imputables limitadas a que tiene derecho el contribuyente y que serán registradas en las casillas 37 y 40, controlando que dicho valor no supere el valor de la renta líquida registrada en la casilla 34, ni el valor de la sumatoria de las casilla 37 y 40 de las rentas de trabajo. | D134: Resumen Cédula General | E134: Azul
A135: =SUBSTITUTE(SUBSTITUTE(FORMULATEXTO_Act(Comentarios[[#This Row],[Formulada]]),"=",""),"'","") -> !$G$876 | B135: =' '!$G$876 -> $ 0 | C135: Este valor corresponde al valor de las rentas exentas y deducciones imputables a las que tiene derecho el contribuyente y que fueron registradas en las casillas 82 y 85, teniendo en cuenta el saldo de las rentas exentas y deducciones imputables, una vez restadas las rentas exentas y deducciones imputables limitadas de las rentas de trabajo (casilla 41), las rentas y deducciones imputables limitadas de las rentas de trabajo por honorarios y compensación de servicios personales (casilla 53), las rentas y deducciones imputables limitadas de las rentas de capital (casilla 69) controlando que dicho valor no supere el valor de la suma de las casilla 78 y 79, ni de la sumatoria de los valores de las casilla 82 y 85. | D135: Resumen Cédula General | E135: Azul
A136: =SUBSTITUTE(SUBSTITUTE(FORMULATEXTO_Act(Comentarios[[#This Row],[Formulada]]),"=",""),"'","") -> !$E$876 | B136: =' '!$E$876 -> $ 0 | C136: Este valor corresponde al valor de las rentas exentas y deducciones imputables a las que tiene derecho el contribuyente y que serán registradas en las casillas 49 y 52, teniendo en cuenta el saldo de las rentas exentas y deducciones imputables, una vez restadas las rentas exentas y deducciones imputables limitadas de las rentas de trabajo (casilla 41), controlando que dicho valor no supere el valor de la renta líquida registrada en la casilla 46, ni de la sumatoria de los valores de las casilla 49 y 52. | D136: Resumen Cédula General | E136: Azul
A137: =SUBSTITUTE(SUBSTITUTE(FORMULATEXTO_Act(Comentarios[[#This Row],[Formulada]]),"=",""),"'","") -> !$F$876 | B137: =' '!$F$876 -> $ 0 | C137: Este valor corresponde al valor de las rentas exentas y deducciones imputables a las que tiene derecho el contribuyente y que serán registradas en las casillas 65 y 68, teniendo en cuenta el saldo de las rentas exentas y deducciones imputables, una vez restadas las rentas exentas y deducciones imputables limitadas de las rentas de trabajo (casilla 41), las rentas y deducciones imputables limitadas de las rentas de trabajo por honorarios y compensación de servicios personales (casilla 53), controlando que dicho valor no supere el valor de la suma de las casilla 61 y 62, ni de la sumatoria de los valores de las casilla 65 y 68. | D137: Resumen Cédula General | E137: Azul
A138: =SUBSTITUTE(SUBSTITUTE(FORMULATEXTO_Act(Comentarios[[#This Row],[Formulada]]),"=",""),"'","") -> !$B$916 | B138: =' '!$B$916 -> Pensiones netas obtenidas de acuerdo con la legislación colombiana | C138: El numeral 5 del artículo 206 del ET señala que, las pensiones de jubilación, invalidez, vejez, de sobrevivientes y sobre Riesgos Profesionales, y las Indemnizaciones Sustitutivas de las Pensiones o las devoluciones de saldos de ahorro pensional, se encuentran exentas en un valor que mensualmente no exceda las 1.000 UVT (para el año gravable 2022 equivalen a $38.004.000). | D138: Cédula Pensiones | E138: Azul
A139: =SUBSTITUTE(SUBSTITUTE(FORMULATEXTO_Act(Comentarios[[#This Row],[Formulada]]),"=",""),"'","") -> !$B$917 | B139: =' '!$B$917 -> Ingresos recibidos en países de la CAN | C139: En aplicación de lo contenido en la Decisión 578 del 2004 de la Comisión de la Comunidad Andina - CAN, los ingresos recibidos por los contribuyentes en los países miembros de esta -Bolivia, Ecuador y Perú-, sólo serán gravados en el territorio en el cual se realizaron las actividades que dieron origen a estos ingresos. Los ingresos serán considerados renta exenta en Colombia y no serán sometidos al límite general del 40% de la renta líquida que no puede exceder las 5.040 UVT (para el año gravable 2022 equivalen a $191.540.000). | D139: Cédula Pensiones | E139: Azul
A140: =SUBSTITUTE(SUBSTITUTE(FORMULATEXTO_Act(Comentarios[[#This Row],[Formulada]]),"=",""),"'","") -> !$B$1127 | B140: =' '!$B$1127 -> Recompensas | C140: El artículo 42 del ET indica que, toda retribución en dinero recibida de organismos estatales, como recompensa por el suministro de datos e informaciones especiales a las secciones de inteligencia de los organismos de seguridad del Estado, sobre ubicación de antisociales o conocimiento de sus actividades delictivas, en un lugar determinado, es considerar un ingreso no constitutivo de renta ni ganancia ocasional. | D140: G. Ocasionales | E140: Azul
A141: =SUBSTITUTE(SUBSTITUTE(FORMULATEXTO_Act(Comentarios[[#This Row],[Formulada]]),"=",""),"'","") -> !$B$1128 | B141: =' '!$B$1128 -> Utilidad en venta de acciones inscritas en BVC, cuando no superen el 10% de las acciones en circulación de la sociedad | C141: De acuerdo con el artículo 36-1 del ET, no constituyen renta ni ganancia ocasional las utilidades provenientes de la enajenación de acciones inscritas en una Bolsa de Valores Colombiana, de las cuales sea titular un mismo beneficiario real, cuando dicha enajenación no supere el 10% de las acciones en circulación de la respectiva sociedad, durante un mismo año gravable. | D141: G. Ocasionales | E141: Azul
A142: =SUBSTITUTE(SUBSTITUTE(FORMULATEXTO_Act(Comentarios[[#This Row],[Formulada]]),"=",""),"'","") -> !$B$1129 | B142: =' '!$B$1129 -> Utilidad en venta de casa o apartamento de habitación adquirido con anterioridad al 1 de enero de 1987 | C142: De acuerdo con el artículo 44 del ET, cuando la casa o apartamento de habitación del contribuyente se haya adquirido antes del 1 de enero de 1987, no se causará impuesto de renta ni ganancia ocasional por concepto de su enajenación sobre una parte de la ganancia obtenida, en los porcentajes que se indican a continuación: 10% si fue adquirida durante el año 1986 20% si fue adquirida durante el año 1985 30% si fue adquirida durante el año 1984 40% si fue adquirida durante el año 1983 50% si fue adquirida durante el año 1982 60% si fue adquirida durante el año 1981 70% si fue adquirida durante el año 1980 80% si fue adquirida durante el año 1979 90% si fue adquirida durante el año 1978 100% si fue adquirida antes del 1o. de enero de 1978. | D142: G. Ocasionales | E142: Azul
A143: =SUBSTITUTE(SUBSTITUTE(FORMULATEXTO_Act(Comentarios[[#This Row],[Formulada]]),"=",""),"'","") -> !$B$1144 | B143: =' '!$B$1144 -> Indemnizaciones por seguros de vida | C143: El artículo 303-1 del ET señala que, las indemnizaciones por seguros de vida, están gravadas con la tarifa aplicable a las ganancias ocasionales, en el monto que supere 12.500 UVT (para el año gravable 2022 equivalen a $475.050.000). El monto que no supere las 12.500 UVT será considerado como una ganancia ocasional exenta. | D143: G. Ocasionales | E143: Azul
A144: =SUBSTITUTE(SUBSTITUTE(FORMULATEXTO_Act(Comentarios[[#This Row],[Formulada]]),"=",""),"'","") -> !$B$1201 | B144: =' '!$B$1201 -> Límite para compensación de pérdidas fiscales del año gravable 2018 y anteriores (Casilla 93 - Renta líquida ordinaria cédula general menos Casilla 42 - Renta líquida ordinaria rentas de trabajo) | C144: El artículo 1.2.1.20.6 del artículo 1625 de 2016 establece que tratamiento de las pérdidas fiscales de las personas naturales, indicando que "las pérdidas declaradas en los periodos gravables 2018 y anteriores únicamente podrán ser imputadas contra la renta líquida de la cédula general, teniendo en cuenta los límites y porcentajes de compensación establecidos en las normas vigentes, y sin afectar las rentas de trabajo, de conformidad con lo previsto en el artículo 156 y el parágrafo transitorio del artículo 330 del ET". | D144: Compensaciones | E144: Azul
A145: =SUBSTITUTE(SUBSTITUTE(FORMULATEXTO_Act(Comentarios[[#This Row],[Formulada]]),"=",""),"'","") -> !$B$1210 | B145: =' '!$B$1210 -> Límite para compensación por exceso de renta presuntiva | C145: Debe tenerse en cuenta que, el exceso de renta presuntiva se puede compensar con las rentas líquidas ordinarias; sin embargo, a este valor debe restarse, si es el caso, el valor correspondiente a la compensación por pérdidas fiscales del año gravable 2018 y anteriores, siendo la diferencia el valor límite para compensar el exceso de renta presuntiva. | D145: Compensaciones | E145: Azul
A146: =SUBSTITUTE(SUBSTITUTE(FORMULATEXTO_Act(Comentarios[[#This Row],[Formulada]]),"=",""),"'","") -> !$C$1218 | B146: =' '!$C$1218 -> 0 | C146: De acuerdo con el artículo 236 del ET, cuando la suma de la renta gravable, las rentas exentas y la ganancia ocasional neta, sea inferior a la diferencia entre el patrimonio líquido del último periodo gravable y el patrimonio líquido del periodo inmediatamente anterior, dicha diferencia se considera renta gravable, a menos que el contribuyente demuestre que el aumento patrimonial obedece a causas justificadas. | D146: Comparación Patrimonial | E146: Azul
A147: =SUBSTITUTE(SUBSTITUTE(FORMULATEXTO_Act(Comentarios[[#This Row],[Formulada]]),"=",""),"'","") -> !$D$1229 | B147: =' '!$D$1229 -> $ 0 | C147: Si el resultado de esta casilla es cero ($0) o menor a cero ($0), NO existe renta por comparación patrimonial, pues la variación presentada en el patrimonio líquido del año gravable 2022 con respecto al patrimonio líquido del año anterior, se encuentra justificada con las rentas percibidas en el año. En caso de que esta casilla sea mayor a cero ($0), SÍ existe renta por comparación patrimonial, es decir que, la variación presentada en el patrimonio líquido del año gravable 2022 con respecto al patrimonio líquido del año anterior, no se encuentra justificada con las rentas percibidas en el año, y por lo tanto, la variación no justificada debe ser reporta como renta líquida gravable en la casilla 96 del formulario, sin que sea posible disminuirla con deducciones y renta exenta (se sugiere hacer una revisión de los activos, deudas e ingresos registrados para validar que no hay omisión de algún dato o información. | D147: Comparación Patrimonial | E147: Azul
A148: =SUBSTITUTE(SUBSTITUTE(FORMULATEXTO_Act(Comentarios[[#This Row],[Formulada]]),"=",""),"'","") -> !$B$1249 | B148: =' '!$B$1249 -> Impuestos pagados en el exterior | C148: De acuerdo con el artículo 254 del ET “las personas naturales residentes en el país, que sean contribuyentes del impuesto de renta y que perciban rentas de fuente extranjera sujetas al impuesto de renta en el país de origen, tienen derecho a descontar del monto del impuesto colombiano de renta, el impuesto sobre la renta pagado en el extranjero, cualquiera que sea la denominación, liquidado sobre esas mismas rentas, siempre que el descuento no exceda del monto del impuesto que deba pagar el contribuyente en Colombia por esas mismas rentas". En consecuencia, en aquellos casos en que el impuesto pagado en el exterior sea superior a aquel que se generaría en Colombia por esas mismas rentas, el excedente no podrás ser aprovechado como descuento tributario; por lo anterior, es necesario hacer el cálculo correspondiente del impuesto de renta que se generaría en Colombia sobre las rentas que dieron origen al impuesto pagado en el exterior, y de esta manera, determinar el valor por descuento tributario que procede. | D148: Descuentos Tributarios | E148: Azul
A149: =SUBSTITUTE(SUBSTITUTE(FORMULATEXTO_Act(Comentarios[[#This Row],[Formulada]]),"=",""),"'","") -> !$B$1264 | B149: =' '!$B$1264 -> Donaciones o inversiones realizadas en investigación, desarrollo tecnológico o innovación | C149: El artículo 256 del ET señala que, las personas que realicen inversiones en proyectos calificados por el Consejo Nacional de Beneficios Tributarios en Ciencia y Tecnología en Innovación como de investigación, desarrollo tecnológico o innovación, de acuerdo con los criterios y condiciones definidas por dicho Consejo, pueden tomar como descuento tributario en el impuesto de renta el 25% del valor invertido en dichos proyectos en el periodo gravable en que se realizó la donación o inversión. Debe tenerse que en cuenta que, el valor de este descuento en conjunto con los otros descuentos señalados en el artículo 256 del ET y aquellos mencionados en el artículo 257 del ET, no pueden exceder el 25% del impuesto de renta a cargo del respectivo año gravable (artículo 258 del ET). El exceso de descuento que se presente podrá ser tomado dentro de los cuatro años gravables siguientes a aquel en el que se realizó la donación o inversión en investigación, desarrollo e innovación. Adicionalmente, se deberá considerar el límite general de los descuentos tributarios señalados en el artículo 259 del ET. | D149: Descuentos Tributarios | E149: Azul
A150: =SUBSTITUTE(SUBSTITUTE(FORMULATEXTO_Act(Comentarios[[#This Row],[Formulada]]),"=",""),"'","") -> !$B$1268 | B150: =' '!$B$1268 -> Donaciones hechas a programas creados por las instituciones de educación superior o por el ICETEX | C150: El parágrafo 2 del artículo 256 del ET indica que, los contribuyentes que realicen donaciones a programas creados por las instituciones de educación superior o por el Icetex, dirigidas a programas de becas o créditos condonables aprobados por el Ministerio de Educación Nacional y que beneficien a estudiantes de estratos 1, 2 y 3 a través de becas de estudio total o parcial o créditos condonables que incluyan manutención, hospedaje, transporte, matrícula, útiles y/o libros; pueden tomar el 25% del valor donado en el respectivo año gravable. Debe tenerse que en cuenta que, el valor a tomar por estas donaciones sumado con los otros descuentos señalados en el artículo 256 del ET y aquellos mencionados en el artículo 257 del ET, no puede exceder el 25% del impuesto de renta a cargo del respectivo año gravable. Sin embargo, el exceso de descuento que se presente podrá ser tomado dentro de los cuatro años gravables siguientes a aquel en el que se realizó la donación. Adicionalmente, se deberá considerar el límite general de los descuentos tributarios señalados en el artículo 259 del ET. | D150: Descuentos Tributarios | E150: Azul
A151: =SUBSTITUTE(SUBSTITUTE(FORMULATEXTO_Act(Comentarios[[#This Row],[Formulada]]),"=",""),"'","") -> !$B$1272 | B151: =' '!$B$1272 -> Donaciones a entidades sin ánimo de lucro pertenecientes al régimen especial | C151: El inciso 1 del artículo 257 del ET indica que los contribuyentes que realicen donaciones a entidades calificadas en el del régimen tributario especial y a las entidades no contribuyentes señaladas en los artículos 22 y 23 del ET, pueden tomar el 25% del valor donado como descuento tributario en el periodo gravable. El artículo 1.2.4.1.3 del Decreto 1625 de 2016, indica que, para que el descuento tributario proceda, las entidades que reciban las donaciones deben cumplir los requisitos señalados en el artículo 125-1 del ET. Debe tenerse en cuenta que, el valor a tomar por estas donaciones sumado con los otros descuentos señalados en el artículo 257 del ET y aquellos mencionados en el artículo 256 del ET, no puede exceder el 25% del impuesto de renta a cargo del respectivo año gravable. El exceso de descuento que se presente podrá ser tomado dentro del periodo gravable siguiente a aquel en el que se realice la donación. Adicionalmente, se deberá considerar el límite general de los descuentos tributarios señalados en el artículo 259 del ET. | D151: Descuentos Tributarios | E151: Azul
A152: =SUBSTITUTE(SUBSTITUTE(FORMULATEXTO_Act(Comentarios[[#This Row],[Formulada]]),"=",""),"'","") -> !$B$1276 | B152: =' '!$B$1276 -> Becas por impuestos | C152: El artícuo 257-1 del ET reglamentado por el artículo 1.6.2.5.5 del Decreto 1625 de 2016 indica que, los contribuyentes que celebren convenios con Coldeportes, hoy Ministerio del Deporte, para asignar becas de estudio y manutención a deportistas talento o reserva deportiva, recibirán a cambio títulos negociables representativos del descuento tributario de becas por impuestos para acreditar en las declaraciones del impuesto sobre la renta y complementarios. Los adquirientes del título negociable representativo del descuento tributario de becas por impuestos, solo podrán tomar como descuento tributario hasta un monto que no exceda del treinta por ciento (30%) del valor total del impuesto sobre la renta a cargo, en el respectivo periodo gravable en que se tome el descuento correspondiente. | D152: Descuentos Tributarios | E152: Azul
A153: =SUBSTITUTE(SUBSTITUTE(FORMULATEXTO_Act(Comentarios[[#This Row],[Formulada]]),"=",""),"'","") -> !$B$1280 | B153: =' '!$B$1280 -> Donaciones para el financiamiento y sostenimiento de las Instituciones Públicas de Educación Superior | C153: El parágrafo 2 del artículo 257 del ET señala que los contribuyentes que realicen donaciones para el financiamiento y sostenimiento de las instituciones públicas de educación superior a través de los cajeros automáticos, páginas web y plataformas digitales de entidades financieras vigiladas por la Superintendencia Financiera, pueden tomar como descuento tributario el 25% del valor donado. De acuerdo con el artículo 1.2.1.4.9 del Decreto 1625 de 2016 (adicionado mediante el artículo 1 del Decreto 743 de 2020), las personas que realizan estas donaciones deberán entregar la información necesaria a la entidad financiera para que se pueda certificar el valor donado. Cabe mencionar que, el valor a tomar por estas donaciones sumado con los otros descuentos señalados en el artículo 257 del ET y aquellos mencionados en el artículo 256 del ET, no puede exceder el 25% del impuesto de renta a cargo del respectivo año gravable. El exceso de descuento que se presente podrá ser tomado dentro del periodo gravable siguiente a aquel en el que se realice la donación. Adicionalmente, se deberá considerar el límite general de los descuentos tributarios señalados en el artículo 259 del ET. | D153: Descuentos Tributarios | E153: Azul
A154: =SUBSTITUTE(SUBSTITUTE(FORMULATEXTO_Act(Comentarios[[#This Row],[Formulada]]),"=",""),"'","") -> !$B$1290 | B154: =' '!$B$1290 -> 50% del impuesto de industria y comercio pagado | C154: El artículo 115 del ET establece que, el contribuyente puede tomar como descuento tributario en el impuesto de renta, el 50% del impuesto de industria y comercio, avisos y tableros. Para que proceda el descuento, es necesario que el impuesto de industria y comercio, avisos y tableros sea efectivamente pagado durante el año gravable y que tenga relación de causalidad con la actividad económica que desarrolla el contribuyente. Debe tenerse en cuenta que, el impuesto no podrá tomarse como costo o gasto. | D154: Descuentos Tributarios | E154: Azul
A155: =SUBSTITUTE(SUBSTITUTE(FORMULATEXTO_Act(Comentarios[[#This Row],[Formulada]]),"=",""),"'","") -> !$B$1291 | B155: =' '!$B$1291 -> IVA pagado en la importación, formación, construcción o adquisición de activos fijos reales productivos | C155: El artículo 258-1 del ET señala que los responsable del IVA podrán descontar del impuesto sobre la renta a cargo, el IVA pagado por la adquisición, construcción o formación e importación de activos fijos reales productivos, incluyendo el asociado a los servicios necesarios para ponerlos en condiciones de utilización, en año gravable en que se realice el pago o en cualquiera de los periodos gravables siguientes. En el caso de los activos fijos reales productivos formados o construidos, el impuesto sobre las ventas podrá descontarse en el año gravable en que dicho activo se active y comience a depreciarse o amortizarse, o en cualquiera de los periodos gravables siguientes. Debe tenerse en cuenta que, mediante la Sentencia C-379 de 2020, la Corte Constitucional declaró exequible la expresión "Los responsables del Impuesto sobre las Ventas (IVA)” contenida en el artículo 258-1 del ET, en el entendido de que al beneficio tributario contemplado dicha norma también pueden acceder aquellos sujetos que no son responsables del IVA. En consecuencia, este beneficio también podrá ser tomado por las personas naturales no obligadas a llevar contabilidad. | D155: Descuentos Tributarios | E155: Azul
A156: =SUBSTITUTE(SUBSTITUTE(FORMULATEXTO_Act(Comentarios[[#This Row],[Formulada]]),"=",""),"'","") -> !$B$1292 | B156: =' '!$B$1292 -> 50% del valor de las donaciones tendientes a lograr la inmunización de la población colombiana frente al COVID-19 y cualquier otra pandemia | C156: El artículo 257-2 del ET (adicionado a través del artículo 3 de la Ley 2064 de 2020) establece que, las donaciones que realicen las personas naturales residentes y las personas jurídicas contribuyentes del Impuesto de renta, a la Subcuenta de Mitigación de Emergencias - COVID19 del Fondo Nacional de Gestión del Riesgo o a cualquier otra subcuenta, destinadas a la adquisición de vacunas, moléculas en experimentación, anticipos reembolsables y no reembolsables para el desarrollo de vacunas, transferencia de ciencia y tecnología, capacidad instalada en el territorio nacional y todas las actividades tendientes a lograr la Inmunización de la población colombiana frente al Covid-19 y cualquier otra pandemia, darán lugar a un descuento del impuesto sobre la renta, equivalente al 50% de la donación realizada en el año o periodo gravable. El año gravable 2022 es el segundo y último en el cual se podrá tomar este descuento. | D156: Descuentos Tributarios | E156: Azul
A157: =SUBSTITUTE(SUBSTITUTE(FORMULATEXTO_Act(Comentarios[[#This Row],[Formulada]]),"=",""),"'","") -> !$B$1300 | B157: =' '!$B$1300 -> Cédula General y de Pensiones | C157: La tabla de tarifas del impuesto de renta a aplicar por las persona naturales con rentas en la cédula general y/o de pensiones, se encuentra contenida en el artículo 241 de ET. | D157: Impuesto Rentas Líquidas Gravab | E157: Azul
A158: =SUBSTITUTE(SUBSTITUTE(FORMULATEXTO_Act(Comentarios[[#This Row],[Formulada]]),"=",""),"'","") -> !$B$1313 | B158: =' '!$B$1313 -> Dividendos y participaciones de utilidades generadas en 2016 y/o anteriores, distribuidas según el parágrafo 2 del artículo 49 del ET (Gravados) | C158: La tabla de tarifas del impuesto de renta a aplicar por las personas naturales que hayan percibido ingresos por dividendos y/o participaciones de utilidades generadas en el año 2016 y/o anteriores, que hayan sido distribuidos como gravados, es la contenida en el artículo 241 del ET antes de ser modificada por la Ley 1819 de 2016. | D158: Impuesto Rentas Líquidas Gravab | E158: Azul
A159: =SUBSTITUTE(SUBSTITUTE(FORMULATEXTO_Act(Comentarios[[#This Row],[Formulada]]),"=",""),"'","") -> !$B$1322 | B159: =' '!$B$1322 -> Dividendos y participaciones aciones de utilidades generadas en 2017 y siguientes, distribuidos según el numeral 3 del artículo 49 del ET (No gravados) | C159: La tabla de tarifas del impuesto de renta a aplicar por las personas naturales que hayan percibido ingresos por dividendos y/o participaciones de utilidades generadas en el año 2017 y/o siguientes, que hayan sido distribuidos como no gravados, es la contenida en el artículo 242 del ET. | D159: Impuesto Rentas Líquidas Gravab | E159: Azul
A160: =SUBSTITUTE(SUBSTITUTE(FORMULATEXTO_Act(Comentarios[[#This Row],[Formulada]]),"=",""),"'","") -> !$B$1329 | B160: =' '!$B$1329 -> Dividendos y participaciones de utilidades generadas en el 2017 y siguientes, distribuidos según el parágrafo 2 del artículo 49 del ET (Gravados) | C160: Las tarifas del impuesto de renta a aplicar por las personas naturales que hayan percibido ingresos por dividendos y/o participaciones de utilidades generadas en el año 2017 y/o siguientes, que hayan sido distribuidos como gravados, son las contenidas en el artículo 242 del ET. | D160: Impuesto Rentas Líquidas Gravab | E160: Azul
A161: =SUBSTITUTE(SUBSTITUTE(FORMULATEXTO_Act(Comentarios[[#This Row],[Formulada]]),"=",""),"'","") -> !$C$1357 | B161: =' '!$C$1357 -> Seleccione la opción de anticipo de renta que el contribuyente desea reportar en la declaración de renta | C161: Los contribuyente que tengan impuesto neto de renta mayor a cero, deberán hacer el cálculo del anticipo de renta mencionado en el artículo 807 del ET, así: Al impuesto neto de renta del año gravable, o al promedio de los dos (2) últimos años (a opción del contribuyente), se aplica el porcentaje de anticipo dependiendo de si la declaración a presentar es la primera (25%), la segunda (50%) o la tercera o más (75%). Del resultado así obtenido se descuenta el valor de la retención en la fuente correspondiente al respectivo ejercicio fiscal, con lo cual se obtiene el anticipo a pagar. | D161: Anticipo Renta | E161: Azul
A162: =SUBSTITUTE(SUBSTITUTE(FORMULATEXTO_Act(Comentarios[[#This Row],[Formulada]]),"=",""),"'","") -> !$B$1467 | B162: =' '!$B$1467 -> ¿En los dos años anteriores a la generación de esta sanción por extemporaneidad, el contribuyente incurrió en la misma conducta sancionable? | C162: Mediante el numeral 1.1 del Concepto 14116 de 2017 (Concepto Unificado sobre Procedimiento Tributario), la DIAN precisa que en lo correspondiente a las sanciones por extemporaneidad (artículos 641, 642 y 645 del ET), por no declarar (artículo 643 del ET) y por corrección (artículos 644, 645 y 647-1 del ET), para efectos de la aplicación del artículo 640 del ET, es necesario verificar si la misma conducta sancionable se cometió en el pasado, independientemente del impuesto sobre el cual versa la declaración tributaria. | D162: Sanciones | E162: Azul
A163: =SUBSTITUTE(SUBSTITUTE(FORMULATEXTO_Act(Comentarios[[#This Row],[Formulada]]),"=",""),"'","") -> !$B$1472 | B163: =' '!$B$1472 -> ¿Aplica reducción de la sanción al 50%? | C163: De acuerdo con el numeral 1 del artículo 640 del ET, cuando la sanción deba ser liquidada por el contribuyente, podrá ser reducida al 50%, siempre y cuando se cumplan las siguientes condiciones: - Que dentro de los dos (2) años anteriores a la fecha de la comisión de la conducta sancionable no se hubiere cometido la misma; y - Que la Administración Tributaria no haya proferido pliego de cargos, requerimiento especial o emplazamiento previo por no declarar, según el caso. En caso de que no se cumplan las dos condiciones, el contribuyente no podrá acogerse al beneficio de la reducción de la sanción al 50%. | D163: Sanciones | E163: Azul
A164: =SUBSTITUTE(SUBSTITUTE(FORMULATEXTO_Act(Comentarios[[#This Row],[Formulada]]),"=",""),"'","") -> !$B$1473 | B164: =' '!$B$1473 -> ¿Aplica reducción de la sanción al 75%? | C164: El numeral 2 del artículo 640 del ET establece que, cuando la sanción deba ser liquidada por el contribuyente, podrá ser reducida al 75%, siempre y cuando se cumplan las siguientes condiciones: - Que dentro del año (1) año anterior a la fecha de la comisión de la conducta sancionable no se hubiere cometido la misma; y - Que la Administración Tributaria no haya proferido pliego de cargos, requerimiento especial o emplazamiento previo por no declarar, según el caso. En caso de que no se cumplan las dos condiciones, el contribuyente no podrá acogerse al beneficio de la reducción de la sanción al 75%. | D164: Sanciones | E164: Azul
A165: =SUBSTITUTE(SUBSTITUTE(FORMULATEXTO_Act(Comentarios[[#This Row],[Formulada]]),"=",""),"'","") -> !$B$1482 | B165: =' '!$B$1482 -> ¿Aplica reducción de la sanción al 50%? | C165: De acuerdo con el numeral 3 del artículo 640 del ET, cuando la sanción sea propuesta o determinada por la DIAN, podrá ser reducida al 50%, siempre y cuando se cumplan las siguientes condiciones: - Que dentro de los cuatro (4) años anteriores a la fecha de la comisión de la conducta sancionable no se hubiere cometido la misma, y esta se hubiere sancionado mediante acto administrativo en firme; y - Que la sanción sea aceptada y la infracción subsanada de conformidad con lo establecido en el tipo sancionatorio correspondiente. En caso de que no se cumplan las dos condiciones, el contribuyente no podrá acogerse al beneficio de la reducción de la sanción al 50%. | D165: Sanciones | E165: Azul
A166: =SUBSTITUTE(SUBSTITUTE(FORMULATEXTO_Act(Comentarios[[#This Row],[Formulada]]),"=",""),"'","") -> !$B$1483 | B166: =' '!$B$1483 -> ¿Aplica reducción de la sanción al 75%? | C166: El numeral 4 del artículo 640 del ET establece que, cuando la sanción sea propuesta o liquidada por la DIAN, podrá ser reducida al 75%, siempre y cuando se cumplan las siguientes condiciones: - Que dentro de los dos (2) años anteriores a la fecha de la comisión de la conducta sancionable no se hubiere cometido la misma, y esta se hubiere sancionado mediante acto administrativo en firme; y - Que la sanción sea aceptada y la infracción subsanada de conformidad con lo establecido en el tipo sancionatorio correspondiente. En caso de que no se cumplan las dos condiciones, el contribuyente no podrá acogerse al beneficio de la reducción de la sanción al 75%. | D166: Sanciones | E166: Azul
A167: =SUBSTITUTE(SUBSTITUTE(FORMULATEXTO_Act(Comentarios[[#This Row],[Formulada]]),"=",""),"'","") -> !$AF$1549 | B167: =' '!$AF$1549 -> $ 0 | C167: En caso de que haya saldo a pagar, pero la declaración se presente de forma extemporánea, esta casilla se debe diligenciar en cero, pues para realizar el pago se deberá diligenciar el Recibo de pago F490, liquidando además los intereses moratorios correspondientes. | D167: F210 | E167: Azul
A168: =SUBSTITUTE(SUBSTITUTE(FORMULATEXTO_Act(Comentarios[[#This Row],[Formulada]]),"=",""),"'","") -> !$B$1556 | B168: =' '!$B$1556 -> Costos y gastos procedentes | C168: De acuerdo con el artículo 1.21.20.5 del DEcreto 1625 de 2016, los costos y gastos que se pueden detraer para efectos de determinar la base gravable sobre la cual se calcula el impuesto de renta, corresponden a todas aquellas erogaciones en que se incurra el contribuyente para la obtención del ingreso y que cumplen todos los requisitos y limitaciones para su procedencia de conformidad con lo establecido en el ET. Cuando los costos y gastos procedentes, asociados a las rentas de trabajo provenientes de honorarios o compensaciones por servicios personales, a rentas de capital o a rentas no laborales, excedan los ingresos por concepto de cada una de dichas rentas, se generará una pérdida fiscal, la cual será declarada cuando el contribuyente perciba ingresos por un solo tipo de renta de la cédula general. En el evento en que se perciban ingresos para más de un tipo de renta de la cédula general, los costos y gastos antes mencionados, al momento de ser declarados, no podrán superar el valor resultante de restar, a los ingresos de las rentas de trabajo provenientes de honorarios o compensaciones por servicios personales, de las rentas de capital o de las rentas no laborales, los ingresos no constitutivos de renta. El valor que exceda deberá estar registrado en la contabilidad y/o el control de detalle de que trata el artículo 772-1 del ET para que proceda la compensación de la pérdida fiscal contra la renta que dio su origen, en los periodos gravables posteriores en los términos del artículo 147 del ET. | D168: Informe Costos | E168: Azul
A169: =SUBSTITUTE(SUBSTITUTE(FORMULATEXTO_Act(Comentarios[[#This Row],[Formulada]]),"=",""),"'","") -> !$B$1594 | B169: =' '!$B$1594 -> ¿La declaración de renta del año gravable del 2022 puede quedar en firme dentro de los 6 meses siguientes a su presentación? | C169: De acuerdo con el artículo 689-3 del ET, los contribuyentes del impuesto de renta que incrementen su impuesto neto de renta en por lo menos un porcentaje mínimo del 35% por el año gravable 2022, en relación con el impuesto neto de renta del año inmediatamente anterior, quedará en firme si dentro de los seis (6) meses siguientes a la fecha de su presentación no se hubiere notificado emplazamiento para corregir o requerimiento especial o emplazamiento especial o liquidación provisional, siempre que la declaración sea debidamente presentada en forma oportuna y el pago se realice en los plazos que para tal efecto fije el Gobierno nacional. Para que este beneficio proceda, también es necesario que el impuesto neto de renta del año gravable 2021 haya sido igual o superior al equivalente de 71 UVT. | D169: Beneficio Auditoría | E169: Azul
A170: =SUBSTITUTE(SUBSTITUTE(FORMULATEXTO_Act(Comentarios[[#This Row],[Formulada]]),"=",""),"'","") -> !$B$1595 | B170: =' '!$B$1595 -> ¿La declaración de renta del año gravable del 2022 puede quedar en firme dentro de los 12 meses siguientes a su presentación? | C170: De acuerdo con el artículo 689-3 del ET, los contribuyentes del impuesto de renta que incrementen su impuesto neto de renta en por lo menos un porcentaje mínimo del 25% por el año gravable 2022, en relación con el impuesto neto de renta del año inmediatamente anterior, quedará en firme si dentro de los doce (12) meses siguientes a la fecha de su presentación no se hubiere notificado emplazamiento para corregir o requerimiento especial o emplazamiento especial o liquidación provisional, siempre que la declaración sea debidamente presentada en forma oportuna y el pago se realice en los plazos que para tal efecto fije el Gobierno nacional. Para que este beneficio proceda, también es necesario que el impuesto neto de renta del año gravable 2021 haya sido igual o superior al equivalente de 71 UVT. | D170: Beneficio Auditoría | E170: Azul
A171: =SUBSTITUTE(SUBSTITUTE(FORMULATEXTO_Act(Comentarios[[#This Row],[Formulada]]),"=",""),"'","") -> !$B$1658 | B171: =' '!$B$1658 -> ¿En los dos años anteriores a la generación de esta sanción por extemporaneidad, el contribuyente incurrió en la misma conducta sancionable? | C171: Mediante el numeral 1.1 del Concepto 14116 de 2017 (Concepto Unificado sobre Procedimiento Tributario), la DIAN precisa que en lo correspondiente a las sanciones por extemporaneidad (artículos 641, 642 y 645 del ET), por no declarar (artículo 643 del ET) y por corrección (artículos 644, 645 y 647-1 del ET), para efectos de la aplicación del artículo 640 del ET, es necesario verificar si la misma conducta sancionable se cometió en el pasado, independientemente del impuesto sobre el cual versa la declaración tributaria. | D171: Sanciones Act. Ext | E171: Azul
A172: =SUBSTITUTE(SUBSTITUTE(FORMULATEXTO_Act(Comentarios[[#This Row],[Formulada]]),"=",""),"'","") -> !$B$1663 | B172: =' '!$B$1663 -> ¿Aplica reducción de la sanción al 50%? | C172: De acuerdo con el numeral 1 del artículo 640 del ET, cuando la sanción deba ser liquidada por el contribuyente, podrá ser reducida al 50%, siempre y cuando se cumplan las siguientes condiciones: - Que dentro de los dos (2) años anteriores a la fecha de la comisión de la conducta sancionable no se hubiere cometido la misma; y - Que la Administración Tributaria no haya proferido pliego de cargos, requerimiento especial o emplazamiento previo por no declarar, según el caso. En caso de que no se cumplan las dos condiciones, el contribuyente no podrá acogerse al beneficio de la reducción de la sanción al 50%. | D172: Sanciones Act. Ext | E172: Azul
A173: =SUBSTITUTE(SUBSTITUTE(FORMULATEXTO_Act(Comentarios[[#This Row],[Formulada]]),"=",""),"'","") -> !$B$1664 | B173: =' '!$B$1664 -> ¿Aplica reducción de la sanción al 75%? | C173: El numeral 2 del artículo 640 del ET establece que, cuando la sanción deba ser liquidada por el contribuyente, podrá ser reducida al 75%, siempre y cuando se cumplan las siguientes condiciones: - Que dentro del año (1) año anterior a la fecha de la comisión de la conducta sancionable no se hubiere cometido la misma; y - Que la Administración Tributaria no haya proferido pliego de cargos, requerimiento especial o emplazamiento previo por no declarar, según el caso. En caso de que no se cumplan las dos condiciones, el contribuyente no podrá acogerse al beneficio de la reducción de la sanción al 75%. | D173: Sanciones Act. Ext | E173: Azul
A174: =SUBSTITUTE(SUBSTITUTE(FORMULATEXTO_Act(Comentarios[[#This Row],[Formulada]]),"=",""),"'","") -> !$B$1673 | B174: =' '!$B$1673 -> ¿Aplica reducción de la sanción al 50%? | C174: De acuerdo con el numeral 3 del artículo 640 del ET, cuando la sanción sea propuesta o determinada por la DIAN, podrá ser reducida al 50%, siempre y cuando se cumplan las siguientes condiciones: - Que dentro de los cuatro (4) años anteriores a la fecha de la comisión de la conducta sancionable no se hubiere cometido la misma, y esta se hubiere sancionado mediante acto administrativo en firme; y - Que la sanción sea aceptada y la infracción subsanada de conformidad con lo establecido en el tipo sancionatorio correspondiente. En caso de que no se cumplan las dos condiciones, el contribuyente no podrá acogerse al beneficio de la reducción de la sanción al 50%. | D174: Sanciones Act. Ext | E174: Azul
A175: =SUBSTITUTE(SUBSTITUTE(FORMULATEXTO_Act(Comentarios[[#This Row],[Formulada]]),"=",""),"'","") -> !$B$1674 | B175: =' '!$B$1674 -> ¿Aplica reducción de la sanción al 75%? | C175: El numeral 4 del artículo 640 del ET establece que, cuando la sanción sea propuesta o liquidada por la DIAN, podrá ser reducida al 75%, siempre y cuando se cumplan las siguientes condiciones: - Que dentro de los dos (2) años anteriores a la fecha de la comisión de la conducta sancionable no se hubiere cometido la misma, y esta se hubiere sancionado mediante acto administrativo en firme; y - Que la sanción sea aceptada y la infracción subsanada de conformidad con lo establecido en el tipo sancionatorio correspondiente. En caso de que no se cumplan las dos condiciones, el contribuyente no podrá acogerse al beneficio de la reducción de la sanción al 75%. | D175: Sanciones Act. Ext | E175: Azul

Sheet Campos_Ingreso_Datos (hidden)
A1: SEGMENTO | B1: Vinculo | C1: Rango | D1: Formato | E1: Lista | F1: Lista2 | G1: Restablacer
A2: Lista de chequeo | B2: =' '!$C$46 -> 0 | C2: =IFERROR(FORMULATEXTO_Act(Campos_Ingreso_Datos[[#This Row],[Vinculo]]),"") -> =' '!$C$46 | D2: General | E2: =Listas!$B$2:$B$4
A3: Lista de chequeo | B3: =' '!$D$46 -> 0 | C3: =IFERROR(FORMULATEXTO_Act(Campos_Ingreso_Datos[[#This Row],[Vinculo]]),"") -> =' '!$D$46 | D3: General | E3: =Listas!$B$2:$B$4
A4: Lista de chequeo | B4: =' '!$C$47 -> 0 | C4: =IFERROR(FORMULATEXTO_Act(Campos_Ingreso_Datos[[#This Row],[Vinculo]]),"") -> =' '!$C$47 | D4: General | E4: =Listas!$B$2:$B$4
A5: Lista de chequeo | B5: =' '!$D$47 -> 0 | C5: =IFERROR(FORMULATEXTO_Act(Campos_Ingreso_Datos[[#This Row],[Vinculo]]),"") -> =' '!$D$47 | D5: General | E5: =Listas!$B$2:$B$4
A6: Lista de chequeo | B6: =' '!$C$48 -> 0 | C6: =IFERROR(FORMULATEXTO_Act(Campos_Ingreso_Datos[[#This Row],[Vinculo]]),"") -> =' '!$C$48 | D6: General | E6: =Listas!$B$2:$B$4
A7: Lista de chequeo | B7: =' '!$D$48 -> 0 | C7: =IFERROR(FORMULATEXTO_Act(Campos_Ingreso_Datos[[#This Row],[Vinculo]]),"") -> =' '!$D$48 | D7: General | E7: =Listas!$B$2:$B$4
A8: Lista de chequeo | B8: =' '!$C$51 -> 0 | C8: =IFERROR(FORMULATEXTO_Act(Campos_Ingreso_Datos[[#This Row],[Vinculo]]),"") -> =' '!$C$51 | D8: General | E8: =Listas!$B$2:$B$4
A9: Lista de chequeo | B9: =' '!$D$51 -> 0 | C9: =IFERROR(FORMULATEXTO_Act(Campos_Ingreso_Datos[[#This Row],[Vinculo]]),"") -> =' '!$D$51 | D9: General | E9: =Listas!$B$2:$B$4
A10: Lista de chequeo | B10: =' '!$C$52 -> 0 | C10: =IFERROR(FORMULATEXTO_Act(Campos_Ingreso_Datos[[#This Row],[Vinculo]]),"") -> =' '!$C$52 | D10: General | E10: =Listas!$B$2:$B$4
A11: Lista de chequeo | B11: =' '!$D$52 -> 0 | C11: =IFERROR(FORMULATEXTO_Act(Campos_Ingreso_Datos[[#This Row],[Vinculo]]),"") -> =' '!$D$52 | D11: General | E11: =Listas!$B$2:$B$4
A12: Lista de chequeo | B12: =' '!$C$53 -> 0 | C12: =IFERROR(FORMULATEXTO_Act(Campos_Ingreso_Datos[[#This Row],[Vinculo]]),"") -> =' '!$C$53 | D12: General | E12: =Listas!$B$2:$B$4
A13: Lista de chequeo | B13: =' '!$D$53 -> 0 | C13: =IFERROR(FORMULATEXTO_Act(Campos_Ingreso_Datos[[#This Row],[Vinculo]]),"") -> =' '!$D$53 | D13: General | E13: =Listas!$B$2:$B$4
A14: Lista de chequeo | B14: =' '!$C$54 -> 0 | C14: =IFERROR(FORMULATEXTO_Act(Campos_Ingreso_Datos[[#This Row],[Vinculo]]),"") -> =' '!$C$54 | D14: General | E14: =Listas!$B$2:$B$4
A15: Lista de chequeo | B15: =' '!$D$54 -> 0 | C15: =IFERROR(FORMULATEXTO_Act(Campos_Ingreso_Datos[[#This Row],[Vinculo]]),"") -> =' '!$D$54 | D15: General | E15: =Listas!$B$2:$B$4
A16: Lista de chequeo | B16: =' '!$C$55 -> 0 | C16: =IFERROR(FORMULATEXTO_Act(Campos_Ingreso_Datos[[#This Row],[Vinculo]]),"") -> =' '!$C$55 | D16: General | E16: =Listas!$B$2:$B$4
A17: Lista de chequeo | B17: =' '!$D$55 -> 0 | C17: =IFERROR(FORMULATEXTO_Act(Campos_Ingreso_Datos[[#This Row],[Vinculo]]),"") -> =' '!$D$55 | D17: General | E17: =Listas!$B$2:$B$4
A18: Lista de chequeo | B18: =' '!$C$56 -> 0 | C18: =IFERROR(FORMULATEXTO_Act(Campos_Ingreso_Datos[[#This Row],[Vinculo]]),"") -> =' '!$C$56 | D18: General | E18: =Listas!$B$2:$B$4
A19: Lista de chequeo | B19: =' '!$D$56 -> 0 | C19: =IFERROR(FORMULATEXTO_Act(Campos_Ingreso_Datos[[#This Row],[Vinculo]]),"") -> =' '!$D$56 | D19: General | E19: =Listas!$B$2:$B$4
A20: Lista de chequeo | B20: =' '!$C$57 -> 0 | C20: =IFERROR(FORMULATEXTO_Act(Campos_Ingreso_Datos[[#This Row],[Vinculo]]),"") -> =' '!$C$57 | D20: General | E20: =Listas!$B$2:$B$4
A21: Lista de chequeo | B21: =' '!$D$57 -> 0 | C21: =IFERROR(FORMULATEXTO_Act(Campos_Ingreso_Datos[[#This Row],[Vinculo]]),"") -> =' '!$D$57 | D21: General | E21: =Listas!$B$2:$B$4
A22: Lista de chequeo | B22: =' '!$C$58 -> 0 | C22: =IFERROR(FORMULATEXTO_Act(Campos_Ingreso_Datos[[#This Row],[Vinculo]]),"") -> =' '!$C$58 | D22: General | E22: =Listas!$B$2:$B$4
A23: Lista de chequeo | B23: =' '!$D$58 -> 0 | C23: =IFERROR(FORMULATEXTO_Act(Campos_Ingreso_Datos[[#This Row],[Vinculo]]),"") -> =' '!$D$58 | D23: General | E23: =Listas!$B$2:$B$4
A24: Lista de chequeo | B24: =' '!$C$60 -> 0 | C24: =IFERROR(FORMULATEXTO_Act(Campos_Ingreso_Datos[[#This Row],[Vinculo]]),"") -> =' '!$C$60 | D24: General | E24: =Listas!$B$2:$B$4
A25: Lista de chequeo | B25: =' '!$D$60 -> 0 | C25: =IFERROR(FORMULATEXTO_Act(Campos_Ingreso_Datos[[#This Row],[Vinculo]]),"") -> =' '!$D$60 | D25: General | E25: =Listas!$B$2:$B$4
A26: Lista de chequeo | B26: =' '!$C$61 -> 0 | C26: =IFERROR(FORMULATEXTO_Act(Campos_Ingreso_Datos[[#This Row],[Vinculo]]),"") -> =' '!$C$61 | D26: General | E26: =Listas!$B$2:$B$4
A27: Lista de chequeo | B27: =' '!$D$61 -> 0 | C27: =IFERROR(FORMULATEXTO_Act(Campos_Ingreso_Datos[[#This Row],[Vinculo]]),"") -> =' '!$D$61 | D27: General | E27: =Listas!$B$2:$B$4
A28: Lista de chequeo | B28: =' '!$C$64 -> 0 | C28: =IFERROR(FORMULATEXTO_Act(Campos_Ingreso_Datos[[#This Row],[Vinculo]]),"") -> =' '!$C$64 | D28: General | E28: =Listas!$B$2:$B$4
A29: Lista de chequeo | B29: =' '!$D$64 -> 0 | C29: =IFERROR(FORMULATEXTO_Act(Campos_Ingreso_Datos[[#This Row],[Vinculo]]),"") -> =' '!$D$64 | D29: General | E29: =Listas!$B$2:$B$4
A30: Lista de chequeo | B30: =' '!$C$65 -> 0 | C30: =IFERROR(FORMULATEXTO_Act(Campos_Ingreso_Datos[[#This Row],[Vinculo]]),"") -> =' '!$C$65 | D30: General | E30: =Listas!$B$2:$B$4
A31: Lista de chequeo | B31: =' '!$D$65 -> 0 | C31: =IFERROR(FORMULATEXTO_Act(Campos_Ingreso_Datos[[#This Row],[Vinculo]]),"") -> =' '!$D$65 | D31: General | E31: =Listas!$B$2:$B$4
A32: Lista de chequeo | B32: =' '!$C$66 -> 0 | C32: =IFERROR(FORMULATEXTO_Act(Campos_Ingreso_Datos[[#This Row],[Vinculo]]),"") -> =' '!$C$66 | D32: General | E32: =Listas!$B$2:$B$4
A33: Lista de chequeo | B33: =' '!$D$66 -> 0 | C33: =IFERROR(FORMULATEXTO_Act(Campos_Ingreso_Datos[[#This Row],[Vinculo]]),"") -> =' '!$D$66 | D33: General | E33: =Listas!$B$2:$B$4
A34: Lista de chequeo | B34: =' '!$C$67 -> 0 | C34: =IFERROR(FORMULATEXTO_Act(Campos_Ingreso_Datos[[#This Row],[Vinculo]]),"") -> =' '!$C$67 | D34: General | E34: =Listas!$B$2:$B$4
A35: Lista de chequeo | B35: =' '!$D$67 -> 0 | C35: =IFERROR(FORMULATEXTO_Act(Campos_Ingreso_Datos[[#This Row],[Vinculo]]),"") -> =' '!$D$67 | D35: General | E35: =Listas!$B$2:$B$4
A36: Lista de chequeo | B36: =' '!$C$68 -> 0 | C36: =IFERROR(FORMULATEXTO_Act(Campos_Ingreso_Datos[[#This Row],[Vinculo]]),"") -> =' '!$C$68 | D36: General | E36: =Listas!$B$2:$B$4
A37: Lista de chequeo | B37: =' '!$D$68 -> 0 | C37: =IFERROR(FORMULATEXTO_Act(Campos_Ingreso_Datos[[#This Row],[Vinculo]]),"") -> =' '!$D$68 | D37: General | E37: =Listas!$B$2:$B$4
A38: Lista de chequeo | B38: =' '!$C$69 -> 0 | C38: =IFERROR(FORMULATEXTO_Act(Campos_Ingreso_Datos[[#This Row],[Vinculo]]),"") -> =' '!$C$69 | D38: General | E38: =Listas!$B$2:$B$4
A39: Lista de chequeo | B39: =' '!$D$69 -> 0 | C39: =IFERROR(FORMULATEXTO_Act(Campos_Ingreso_Datos[[#This Row],[Vinculo]]),"") -> =' '!$D$69 | D39: General | E39: =Listas!$B$2:$B$4
A40: Lista de chequeo | B40: =' '!$C$70 -> 0 | C40: =IFERROR(FORMULATEXTO_Act(Campos_Ingreso_Datos[[#This Row],[Vinculo]]),"") -> =' '!$C$70 | D40: General | E40: =Listas!$B$2:$B$4
A41: Lista de chequeo | B41: =' '!$D$70 -> 0 | C41: =IFERROR(FORMULATEXTO_Act(Campos_Ingreso_Datos[[#This Row],[Vinculo]]),"") -> =' '!$D$70 | D41: General | E41: =Listas!$B$2:$B$4
A42: Lista de chequeo | B42: =' '!$C$72 -> 0 | C42: =IFERROR(FORMULATEXTO_Act(Campos_Ingreso_Datos[[#This Row],[Vinculo]]),"") -> =' '!$C$72 | D42: General | E42: =Listas!$B$2:$B$4
A43: Lista de chequeo | B43: =' '!$D$72 -> 0 | C43: =IFERROR(FORMULATEXTO_Act(Campos_Ingreso_Datos[[#This Row],[Vinculo]]),"") -> =' '!$D$72 | D43: General | E43: =Listas!$B$2:$B$4
A44: Lista de chequeo | B44: =' '!$C$73 -> 0 | C44: =IFERROR(FORMULATEXTO_Act(Campos_Ingreso_Datos[[#This Row],[Vinculo]]),"") -> =' '!$C$73 | D44: General | E44: =Listas!$B$2:$B$4
A45: Lista de chequeo | B45: =' '!$D$73 -> 0 | C45: =IFERROR(FORMULATEXTO_Act(Campos_Ingreso_Datos[[#This Row],[Vinculo]]),"") -> =' '!$D$73 | D45: General | E45: =Listas!$B$2:$B$4
A46: Lista de chequeo | B46: =' '!$C$75 -> 0 | C46: =IFERROR(FORMULATEXTO_Act(Campos_Ingreso_Datos[[#This Row],[Vinculo]]),"") -> =' '!$C$75 | D46: General | E46: =Listas!$B$2:$B$4
A47: Lista de chequeo | B47: =' '!$D$75 -> 0 | C47: =IFERROR(FORMULATEXTO_Act(Campos_Ingreso_Datos[[#This Row],[Vinculo]]),"") -> =' '!$D$75 | D47: General | E47: =Listas!$B$2:$B$4
A48: Lista de chequeo | B48: =' '!$C$76 -> 0 | C48: =IFERROR(FORMULATEXTO_Act(Campos_Ingreso_Datos[[#This Row],[Vinculo]]),"") -> =' '!$C$76 | D48: General | E48: =Listas!$B$2:$B$4
A49: Lista de chequeo | B49: =' '!$D$76 -> 0 | C49: =IFERROR(FORMULATEXTO_Act(Campos_Ingreso_Datos[[#This Row],[Vinculo]]),"") -> =' '!$D$76 | D49: General | E49: =Listas!$B$2:$B$4
A50: Lista de chequeo | B50: =' '!$C$78 -> 0 | C50: =IFERROR(FORMULATEXTO_Act(Campos_Ingreso_Datos[[#This Row],[Vinculo]]),"") -> =' '!$C$78 | D50: General | E50: =Listas!$B$2:$B$4
A51: Lista de chequeo | B51: =' '!$D$78 -> 0 | C51: =IFERROR(FORMULATEXTO_Act(Campos_Ingreso_Datos[[#This Row],[Vinculo]]),"") -> =' '!$D$78 | D51: General | E51: =Listas!$B$2:$B$4
A52: Lista de chequeo | B52: =' '!$C$79 -> 0 | C52: =IFERROR(FORMULATEXTO_Act(Campos_Ingreso_Datos[[#This Row],[Vinculo]]),"") -> =' '!$C$79 | D52: General | E52: =Listas!$B$2:$B$4
A53: Lista de chequeo | B53: =' '!$D$79 -> 0 | C53: =IFERROR(FORMULATEXTO_Act(Campos_Ingreso_Datos[[#This Row],[Vinculo]]),"") -> =' '!$D$79 | D53: General | E53: =Listas!$B$2:$B$4
A54: Lista de chequeo | B54: =' '!$C$80 -> 0 | C54: =IFERROR(FORMULATEXTO_Act(Campos_Ingreso_Datos[[#This Row],[Vinculo]]),"") -> =' '!$C$80 | D54: General | E54: =Listas!$B$2:$B$4
A55: Lista de chequeo | B55: =' '!$D$80 -> 0 | C55: =IFERROR(FORMULATEXTO_Act(Campos_Ingreso_Datos[[#This Row],[Vinculo]]),"") -> =' '!$D$80 | D55: General | E55: =Listas!$B$2:$B$4
A56: Lista de chequeo | B56: =' '!$C$81 -> 0 | C56: =IFERROR(FORMULATEXTO_Act(Campos_Ingreso_Datos[[#This Row],[Vinculo]]),"") -> =' '!$C$81 | D56: General | E56: =Listas!$B$2:$B$4
A57: Lista de chequeo | B57: =' '!$D$81 -> 0 | C57: =IFERROR(FORMULATEXTO_Act(Campos_Ingreso_Datos[[#This Row],[Vinculo]]),"") -> =' '!$D$81 | D57: General | E57: =Listas!$B$2:$B$4
A58: Lista de chequeo | B58: =' '!$C$82 -> 0 | C58: =IFERROR(FORMULATEXTO_Act(Campos_Ingreso_Datos[[#This Row],[Vinculo]]),"") -> =' '!$C$82 | D58: General | E58: =Listas!$B$2:$B$4
A59: Lista de chequeo | B59: =' '!$D$82 -> 0 | C59: =IFERROR(FORMULATEXTO_Act(Campos_Ingreso_Datos[[#This Row],[Vinculo]]),"") -> =' '!$D$82 | D59: General | E59: =Listas!$B$2:$B$4
A60: Lista de chequeo | B60: =' '!$C$83 -> 0 | C60: =IFERROR(FORMULATEXTO_Act(Campos_Ingreso_Datos[[#This Row],[Vinculo]]),"") -> =' '!$C$83 | D60: General | E60: =Listas!$B$2:$B$4
A61: Lista de chequeo | B61: =' '!$D$83 -> 0 | C61: =IFERROR(FORMULATEXTO_Act(Campos_Ingreso_Datos[[#This Row],[Vinculo]]),"") -> =' '!$D$83 | D61: General | E61: =Listas!$B$2:$B$4
A62: Lista de chequeo | B62: =' '!$C$84 -> 0 | C62: =IFERROR(FORMULATEXTO_Act(Campos_Ingreso_Datos[[#This Row],[Vinculo]]),"") -> =' '!$C$84 | D62: General | E62: =Listas!$B$2:$B$4
A63: Lista de chequeo | B63: =' '!$D$84 -> 0 | C63: =IFERROR(FORMULATEXTO_Act(Campos_Ingreso_Datos[[#This Row],[Vinculo]]),"") -> =' '!$D$84 | D63: General | E63: =Listas!$B$2:$B$4
A64: Lista de chequeo | B64: =' '!$C$85 -> 0 | C64: =IFERROR(FORMULATEXTO_Act(Campos_Ingreso_Datos[[#This Row],[Vinculo]]),"") -> =' '!$C$85 | D64: General | E64: =Listas!$B$2:$B$4
A65: Lista de chequeo | B65: =' '!$D$85 -> 0 | C65: =IFERROR(FORMULATEXTO_Act(Campos_Ingreso_Datos[[#This Row],[Vinculo]]),"") -> =' '!$D$85 | D65: General | E65: =Listas!$B$2:$B$4
A66: Lista de chequeo | B66: =' '!$C$86 -> 0 | C66: =IFERROR(FORMULATEXTO_Act(Campos_Ingreso_Datos[[#This Row],[Vinculo]]),"") -> =' '!$C$86 | D66: General | E66: =Listas!$B$2:$B$4
A67: Lista de chequeo | B67: =' '!$D$86 -> 0 | C67: =IFERROR(FORMULATEXTO_Act(Campos_Ingreso_Datos[[#This Row],[Vinculo]]),"") -> =' '!$D$86 | D67: General | E67: =Listas!$B$2:$B$4
A68: Lista de chequeo | B68: =' '!$C$87 -> 0 | C68: =IFERROR(FORMULATEXTO_Act(Campos_Ingreso_Datos[[#This Row],[Vinculo]]),"") -> =' '!$C$87 | D68: General | E68: =Listas!$B$2:$B$4
A69: Lista de chequeo | B69: =' '!$D$87 -> 0 | C69: =IFERROR(FORMULATEXTO_Act(Campos_Ingreso_Datos[[#This Row],[Vinculo]]),"") -> =' '!$D$87 | D69: General | E69: =Listas!$B$2:$B$4
A70: Lista de chequeo | B70: =' '!$C$88 -> 0 | C70: =IFERROR(FORMULATEXTO_Act(Campos_Ingreso_Datos[[#This Row],[Vinculo]]),"") -> =' '!$C$88 | D70: General | E70: =Listas!$B$2:$B$4
A71: Lista de chequeo | B71: =' '!$D$88 -> 0 | C71: =IFERROR(FORMULATEXTO_Act(Campos_Ingreso_Datos[[#This Row],[Vinculo]]),"") -> =' '!$D$88 | D71: General | E71: =Listas!$B$2:$B$4
A72: Lista de chequeo | B72: =' '!$C$89 -> 0 | C72: =IFERROR(FORMULATEXTO_Act(Campos_Ingreso_Datos[[#This Row],[Vinculo]]),"") -> =' '!$C$89 | D72: General | E72: =Listas!$B$2:$B$4
A73: Lista de chequeo | B73: =' '!$D$89 -> 0 | C73: =IFERROR(FORMULATEXTO_Act(Campos_Ingreso_Datos[[#This Row],[Vinculo]]),"") -> =' '!$D$89 | D73: General | E73: =Listas!$B$2:$B$4
A74: Lista de chequeo | B74: =' '!$C$90 -> 0 | C74: =IFERROR(FORMULATEXTO_Act(Campos_Ingreso_Datos[[#This Row],[Vinculo]]),"") -> =' '!$C$90 | D74: General | E74: =Listas!$B$2:$B$4
A75: Lista de chequeo | B75: =' '!$D$90 -> 0 | C75: =IFERROR(FORMULATEXTO_Act(Campos_Ingreso_Datos[[#This Row],[Vinculo]]),"") -> =' '!$D$90 | D75: General | E75: =Listas!$B$2:$B$4
A76: Lista de chequeo | B76: =' '!$C$91 -> 0 | C76: =IFERROR(FORMULATEXTO_Act(Campos_Ingreso_Datos[[#This Row],[Vinculo]]),"") -> =' '!$C$91 | D76: General | E76: =Listas!$B$2:$B$4
A77: Lista de chequeo | B77: =' '!$D$91 -> 0 | C77: =IFERROR(FORMULATEXTO_Act(Campos_Ingreso_Datos[[#This Row],[Vinculo]]),"") -> =' '!$D$91 | D77: General | E77: =Listas!$B$2:$B$4
A78: Lista de chequeo | B78: =' '!$C$92 -> 0 | C78: =IFERROR(FORMULATEXTO_Act(Campos_Ingreso_Datos[[#This Row],[Vinculo]]),"") -> =' '!$C$92 | D78: General | E78: =Listas!$B$2:$B$4
A79: Lista de chequeo | B79: =' '!$D$92 -> 0 | C79: =IFERROR(FORMULATEXTO_Act(Campos_Ingreso_Datos[[#This Row],[Vinculo]]),"") -> =' '!$D$92 | D79: General | E79: =Listas!$B$2:$B$4
A80: Lista de chequeo | B80: =' '!$C$93 -> 0 | C80: =IFERROR(FORMULATEXTO_Act(Campos_Ingreso_Datos[[#This Row],[Vinculo]]),"") -> =' '!$C$93 | D80: General | E80: =Listas!$B$2:$B$4
A81: Lista de chequeo | B81: =' '!$D$93 -> 0 | C81: =IFERROR(FORMULATEXTO_Act(Campos_Ingreso_Datos[[#This Row],[Vinculo]]),"") -> =' '!$D$93 | D81: General | E81: =Listas!$B$2:$B$4
A82: Lista de chequeo | B82: =' '!$C$94 -> 0 | C82: =IFERROR(FORMULATEXTO_Act(Campos_Ingreso_Datos[[#This Row],[Vinculo]]),"") -> =' '!$C$94 | D82: General | E82: =Listas!$B$2:$B$4
A83: Lista de chequeo | B83: =' '!$D$94 -> 0 | C83: =IFERROR(FORMULATEXTO_Act(Campos_Ingreso_Datos[[#This Row],[Vinculo]]),"") -> =' '!$D$94 | D83: General | E83: =Listas!$B$2:$B$4
A84: Lista de chequeo | B84: =' '!$C$95 -> 0 | C84: =IFERROR(FORMULATEXTO_Act(Campos_Ingreso_Datos[[#This Row],[Vinculo]]),"") -> =' '!$C$95 | D84: General | E84: =Listas!$B$2:$B$4
A85: Lista de chequeo | B85: =' '!$D$95 -> 0 | C85: =IFERROR(FORMULATEXTO_Act(Campos_Ingreso_Datos[[#This Row],[Vinculo]]),"") -> =' '!$D$95 | D85: General | E85: =Listas!$B$2:$B$4
A86: Lista de chequeo | B86: =' '!$C$96 -> 0 | C86: =IFERROR(FORMULATEXTO_Act(Campos_Ingreso_Datos[[#This Row],[Vinculo]]),"") -> =' '!$C$96 | D86: General | E86: =Listas!$B$2:$B$4
A87: Lista de chequeo | B87: =' '!$D$96 -> 0 | C87: =IFERROR(FORMULATEXTO_Act(Campos_Ingreso_Datos[[#This Row],[Vinculo]]),"") -> =' '!$D$96 | D87: General | E87: =Listas!$B$2:$B$4
A88: Lista de chequeo | B88: =' '!$C$98 -> 0 | C88: =IFERROR(FORMULATEXTO_Act(Campos_Ingreso_Datos[[#This Row],[Vinculo]]),"") -> =' '!$C$98 | D88: General | E88: =Listas!$B$2:$B$4
A89: Lista de chequeo | B89: =' '!$D$98 -> 0 | C89: =IFERROR(FORMULATEXTO_Act(Campos_Ingreso_Datos[[#This Row],[Vinculo]]),"") -> =' '!$D$98 | D89: General | E89: =Listas!$B$2:$B$4
A90: Lista de chequeo | B90: =' '!$C$99 -> 0 | C90: =IFERROR(FORMULATEXTO_Act(Campos_Ingreso_Datos[[#This Row],[Vinculo]]),"") -> =' '!$C$99 | D90: General | E90: =Listas!$B$2:$B$4
A91: Lista de chequeo | B91: =' '!$D$99 -> 0 | C91: =IFERROR(FORMULATEXTO_Act(Campos_Ingreso_Datos[[#This Row],[Vinculo]]),"") -> =' '!$D$99 | D91: General | E91: =Listas!$B$2:$B$4
A92: Lista de chequeo | B92: =' '!$C$101 -> 0 | C92: =IFERROR(FORMULATEXTO_Act(Campos_Ingreso_Datos[[#This Row],[Vinculo]]),"") -> =' '!$C$101 | D92: General | E92: =Listas!$B$2:$B$4
A93: Lista de chequeo | B93: =' '!$D$101 -> 0 | C93: =IFERROR(FORMULATEXTO_Act(Campos_Ingreso_Datos[[#This Row],[Vinculo]]),"") -> =' '!$D$101 | D93: General | E93: =Listas!$B$2:$B$4
A94: Lista de chequeo | B94: =' '!$C$102 -> 0 | C94: =IFERROR(FORMULATEXTO_Act(Campos_Ingreso_Datos[[#This Row],[Vinculo]]),"") -> =' '!$C$102 | D94: General | E94: =Listas!$B$2:$B$4
A95: Lista de chequeo | B95: =' '!$D$102 -> 0 | C95: =IFERROR(FORMULATEXTO_Act(Campos_Ingreso_Datos[[#This Row],[Vinculo]]),"") -> =' '!$D$102 | D95: General | E95: =Listas!$B$2:$B$4
A96: Lista de chequeo | B96: =' '!$C$104 -> 0 | C96: =IFERROR(FORMULATEXTO_Act(Campos_Ingreso_Datos[[#This Row],[Vinculo]]),"") -> =' '!$C$104 | D96: General | E96: =Listas!$B$2:$B$4
A97: Lista de chequeo | B97: =' '!$D$104 -> 0 | C97: =IFERROR(FORMULATEXTO_Act(Campos_Ingreso_Datos[[#This Row],[Vinculo]]),"") -> =' '!$D$104 | D97: General | E97: =Listas!$B$2:$B$4
A98: Lista de chequeo | B98: =' '!$C$105 -> 0 | C98: =IFERROR(FORMULATEXTO_Act(Campos_Ingreso_Datos[[#This Row],[Vinculo]]),"") -> =' '!$C$105 | D98: General | E98: =Listas!$B$2:$B$4
A99: Lista de chequeo | B99: =' '!$D$105 -> 0 | C99: =IFERROR(FORMULATEXTO_Act(Campos_Ingreso_Datos[[#This Row],[Vinculo]]),"") -> =' '!$D$105 | D99: General | E99: =Listas!$B$2:$B$4
A100: Lista de chequeo | B100: =' '!$C$106 -> 0 | C100: =IFERROR(FORMULATEXTO_Act(Campos_Ingreso_Datos[[#This Row],[Vinculo]]),"") -> =' '!$C$106 | D100: General | E100: =Listas!$B$2:$B$4
A101: Lista de chequeo | B101: =' '!$D$106 -> 0 | C101: =IFERROR(FORMULATEXTO_Act(Campos_Ingreso_Datos[[#This Row],[Vinculo]]),"") -> =' '!$D$106 | D101: General | E101: =Listas!$B$2:$B$4
A102: Lista de chequeo | B102: =' '!$C$107 -> 0 | C102: =IFERROR(FORMULATEXTO_Act(Campos_Ingreso_Datos[[#This Row],[Vinculo]]),"") -> =' '!$C$107 | D102: General | E102: =Listas!$B$2:$B$4
A103: Lista de chequeo | B103: =' '!$D$107 -> 0 | C103: =IFERROR(FORMULATEXTO_Act(Campos_Ingreso_Datos[[#This Row],[Vinculo]]),"") -> =' '!$D$107 | D103: General | E103: =Listas!$B$2:$B$4
A104: Datos Contribuyente | B104: =' '!$D$129 -> Andrés | C104: =IFERROR(FORMULATEXTO_Act(Campos_Ingreso_Datos[[#This Row],[Vinculo]]),"") -> =' '!$D$129 | D104: General
A105: Datos Contribuyente | B105: =' '!$D$130 -> 0 | C105: =IFERROR(FORMULATEXTO_Act(Campos_Ingreso_Datos[[#This Row],[Vinculo]]),"") -> =' '!$D$130 | D105: General
A106: Datos Contribuyente | B106: =' '!$D$131 -> Julián | C106: =IFERROR(FORMULATEXTO_Act(Campos_Ingreso_Datos[[#This Row],[Vinculo]]),"") -> =' '!$D$131 | D106: General
A107: Datos Contribuyente | B107: =' '!$D$132 -> Martínez | C107: =IFERROR(FORMULATEXTO_Act(Campos_Ingreso_Datos[[#This Row],[Vinculo]]),"") -> =' '!$D$132 | D107: General
A108: Datos Contribuyente | B108: =' '!$D$133 -> 1112674696 | C108: =IFERROR(FORMULATEXTO_Act(Campos_Ingreso_Datos[[#This Row],[Vinculo]]),"") -> =' '!$D$133 | D108: General
A109: Datos Contribuyente | B109: =' '!$D$136 -> 0020 | C109: =IFERROR(FORMULATEXTO_Act(Campos_Ingreso_Datos[[#This Row],[Vinculo]]),"") -> =' '!$D$136 | D109: @ | E109: =Lista_CIIU
A110: Datos Contribuyente | B110: =' '!$D$137 -> 05 | C110: =IFERROR(FORMULATEXTO_Act(Campos_Ingreso_Datos[[#This Row],[Vinculo]]),"") -> =' '!$D$137 | D110: @ | E110: =Lista_Seccionales_DIAN
A111: Datos Contribuyente | B111: =' '!$D$138 -> No | C111: =IFERROR(FORMULATEXTO_Act(Campos_Ingreso_Datos[[#This Row],[Vinculo]]),"") -> =' '!$D$138 | D111: General | E111: =Listas!$B$2:$B$3
A112: Datos Contribuyente | B112: =' '!$D$139 -> 0 | C112: =IFERROR(FORMULATEXTO_Act(Campos_Ingreso_Datos[[#This Row],[Vinculo]]),"") -> =' '!$D$139 | D112: General | E112: =Listas!$G$63:$G$67
A113: Datos Contribuyente | B113: =' '!$D$140 -> 0 | C113: =IFERROR(FORMULATEXTO_Act(Campos_Ingreso_Datos[[#This Row],[Vinculo]]),"") -> =' '!$D$140 | D113: General
A114: Datos Contribuyente | B114: =' '!$D$142 -> 0 | C114: =IFERROR(FORMULATEXTO_Act(Campos_Ingreso_Datos[[#This Row],[Vinculo]]),"") -> =' '!$D$142 | D114: General
A115: Datos Contribuyente | B115: =' '!$D$143 -> No | C115: =IFERROR(FORMULATEXTO_Act(Campos_Ingreso_Datos[[#This Row],[Vinculo]]),"") -> =' '!$D$143 | D115: General | E115: =Listas!$B$2:$B$3
A116: Datos Contribuyente | B116: =' '!$D$144 -> 0 | C116: =IFERROR(FORMULATEXTO_Act(Campos_Ingreso_Datos[[#This Row],[Vinculo]]),"") -> =' '!$D$144 | D116: General | E116: =Listas!$B$2:$B$3
A117: Datos Contribuyente | B117: =' '!$D$145 -> 0 | C117: =IFERROR(FORMULATEXTO_Act(Campos_Ingreso_Datos[[#This Row],[Vinculo]]),"") -> =' '!$D$145 | D117: General | E117: =Listas!$B$2:$B$3
A118: Datos Contribuyente | B118: =' '!$D$146 -> No | C118: =IFERROR(FORMULATEXTO_Act(Campos_Ingreso_Datos[[#This Row],[Vinculo]]),"") -> =' '!$D$146 | D118: General | E118: =Listas!$B$2:$B$3
A119: Datos Contribuyente | B119: =' '!$D$147 -> Esta es la tercera vez o más | C119: =IFERROR(FORMULATEXTO_Act(Campos_Ingreso_Datos[[#This Row],[Vinculo]]),"") -> =' '!$D$147 | D119: General | E119: =Listas!$M$7:$M$9
A120: Datos Contribuyente | B120: =' '!$D$148 -> $ 0 | C120: =IFERROR(FORMULATEXTO_Act(Campos_Ingreso_Datos[[#This Row],[Vinculo]]),"") -> =' '!$D$148 | D120: [$$-240A] #,##0
A121: Datos Contribuyente | B121: =' '!$D$152 -> $ 269,780,000 | C121: =IFERROR(FORMULATEXTO_Act(Campos_Ingreso_Datos[[#This Row],[Vinculo]]),"") -> =' '!$D$152 | D121: [$$-240A] #,##0
A122: Datos Contribuyente | B122: =' '!$D$153 -> $ 241,560,000 | C122: =IFERROR(FORMULATEXTO_Act(Campos_Ingreso_Datos[[#This Row],[Vinculo]]),"") -> =' '!$D$153 | D122: [$$-240A] #,##0
A123: Datos Contribuyente | B123: =' '!$D$154 -> $ 0 | C123: =IFERROR(FORMULATEXTO_Act(Campos_Ingreso_Datos[[#This Row],[Vinculo]]),"") -> =' '!$D$154 | D123: [$$-240A] #,##0
A124: Datos Contribuyente | B124: =' '!$D$155 -> $ 0 | C124: =IFERROR(FORMULATEXTO_Act(Campos_Ingreso_Datos[[#This Row],[Vinculo]]),"") -> =' '!$D$155 | D124: [$$-240A] #,##0
A125: Datos Contribuyente | B125: =' '!$D$156 -> $ 0 | C125: =IFERROR(FORMULATEXTO_Act(Campos_Ingreso_Datos[[#This Row],[Vinculo]]),"") -> =' '!$D$156 | D125: [$$-240A] #,##0
A126: Datos Contribuyente | B126: =' '!$D$157 -> $ 0 | C126: =IFERROR(FORMULATEXTO_Act(Campos_Ingreso_Datos[[#This Row],[Vinculo]]),"") -> =' '!$D$157 | D126: [$$-240A] #,##0
A127: Datos Contribuyente | B127: =' '!$D$158 -> $ 0 | C127: =IFERROR(FORMULATEXTO_Act(Campos_Ingreso_Datos[[#This Row],[Vinculo]]),"") -> =' '!$D$158 | D127: [$$-240A] #,##0
A128: Datos Contribuyente | B128: =' '!$D$159 -> $ 0 | C128: =IFERROR(FORMULATEXTO_Act(Campos_Ingreso_Datos[[#This Row],[Vinculo]]),"") -> =' '!$D$159 | D128: [$$-240A] #,##0
A129: Datos Contribuyente | B129: =' '!$D$160 -> 0 | C129: =IFERROR(FORMULATEXTO_Act(Campos_Ingreso_Datos[[#This Row],[Vinculo]]),"") -> =' '!$D$160 | D129: General | E129: =Listas!$B$2:$B$3
A130: Datos Contribuyente | B130: =' '!$D$161 -> $ 0 | C130: =IFERROR(FORMULATEXTO_Act(Campos_Ingreso_Datos[[#This Row],[Vinculo]]),"") -> =' '!$D$161 | D130: [$$-240A] #,##0
A131: Datos Contribuyente | B131: =' '!$D$162 -> 0 | C131: =IFERROR(FORMULATEXTO_Act(Campos_Ingreso_Datos[[#This Row],[Vinculo]]),"") -> =' '!$D$162 | D131: General | E131: =Listas!$B$2:$B$3
A132: Datos Contribuyente | B132: =' '!$D$163 -> $ 0 | C132: =IFERROR(FORMULATEXTO_Act(Campos_Ingreso_Datos[[#This Row],[Vinculo]]),"") -> =' '!$D$163 | D132: [$$-240A] #,##0
A133: Datos Contribuyente | B133: =' '!$D$164 -> 0 | C133: =IFERROR(FORMULATEXTO_Act(Campos_Ingreso_Datos[[#This Row],[Vinculo]]),"") -> =' '!$D$164 | D133: General | E133: =Listas!$B$2:$B$3
A134: Datos Contribuyente | B134: =' '!$D$165 -> $ 0 | C134: =IFERROR(FORMULATEXTO_Act(Campos_Ingreso_Datos[[#This Row],[Vinculo]]),"") -> =' '!$D$165 | D134: [$$-240A] #,##0
A135: Datos Contribuyente | B135: =' '!$D$166 -> 0 | C135: =IFERROR(FORMULATEXTO_Act(Campos_Ingreso_Datos[[#This Row],[Vinculo]]),"") -> =' '!$D$166 | D135: General | E135: =Listas!$B$2:$B$3
A136: Datos Contribuyente | B136: =' '!$D$167 -> $ 0 | C136: =IFERROR(FORMULATEXTO_Act(Campos_Ingreso_Datos[[#This Row],[Vinculo]]),"") -> =' '!$D$167 | D136: [$$-240A] #,##0
A137: Datos Contribuyente | B137: =' '!$D$168 -> 0 | C137: =IFERROR(FORMULATEXTO_Act(Campos_Ingreso_Datos[[#This Row],[Vinculo]]),"") -> =' '!$D$168 | D137: General | E137: =Listas!$B$2:$B$3
A138: Datos Contribuyente | B138: =' '!$D$173 -> 22/08/2023 | C138: =IFERROR(FORMULATEXTO_Act(Campos_Ingreso_Datos[[#This Row],[Vinculo]]),"") -> =' '!$D$173 | D138: dd/mm/yyyy;@ | E138: 2022-01-01 | F138: 2100-12-31
A139: Datos Contribuyente | B139: =' '!$D$176 -> 0 | C139: =IFERROR(FORMULATEXTO_Act(Campos_Ingreso_Datos[[#This Row],[Vinculo]]),"") -> =' '!$D$176 | D139: General | E139: =Listas!$B$2:$B$3
A140: Rentas de Trabajo | B140: =' '!$C$505 -> $ 0 | C140: =IFERROR(FORMULATEXTO_Act(Campos_Ingreso_Datos[[#This Row],[Vinculo]]),"") -> =' '!$C$505 | D140: [$$-240A] #,##0
A141: Rentas de Trabajo | B141: =' '!$D$505 -> $ 0 | C141: =IFERROR(FORMULATEXTO_Act(Campos_Ingreso_Datos[[#This Row],[Vinculo]]),"") -> =' '!$D$505 | D141: [$$-240A] #,##0
A142: Rentas de Trabajo | B142: =' '!$E$505 -> $ 0 | C142: =IFERROR(FORMULATEXTO_Act(Campos_Ingreso_Datos[[#This Row],[Vinculo]]),"") -> =' '!$E$505 | D142: [$$-240A] #,##0
A143: Rentas de Trabajo | B143: =' '!$C$506 -> $ 0 | C143: =IFERROR(FORMULATEXTO_Act(Campos_Ingreso_Datos[[#This Row],[Vinculo]]),"") -> =' '!$C$506 | D143: [$$-240A] #,##0
A144: Rentas de Trabajo | B144: =' '!$D$506 -> $ 0 | C144: =IFERROR(FORMULATEXTO_Act(Campos_Ingreso_Datos[[#This Row],[Vinculo]]),"") -> =' '!$D$506 | D144: [$$-240A] #,##0
A145: Rentas de Trabajo | B145: =' '!$E$506 -> $ 0 | C145: =IFERROR(FORMULATEXTO_Act(Campos_Ingreso_Datos[[#This Row],[Vinculo]]),"") -> =' '!$E$506 | D145: [$$-240A] #,##0
A146: Rentas de Trabajo | B146: =' '!$C$507 -> $ 0 | C146: =IFERROR(FORMULATEXTO_Act(Campos_Ingreso_Datos[[#This Row],[Vinculo]]),"") -> =' '!$C$507 | D146: [$$-240A] #,##0
A147: Rentas de Trabajo | B147: =' '!$D$507 -> $ 0 | C147: =IFERROR(FORMULATEXTO_Act(Campos_Ingreso_Datos[[#This Row],[Vinculo]]),"") -> =' '!$D$507 | D147: [$$-240A] #,##0
A148: Rentas de Trabajo | B148: =' '!$E$507 -> $ 0 | C148: =IFERROR(FORMULATEXTO_Act(Campos_Ingreso_Datos[[#This Row],[Vinculo]]),"") -> =' '!$E$507 | D148: [$$-240A] #,##0
A149: Rentas de Trabajo | B149: =' '!$C$508 -> $ 0 | C149: =IFERROR(FORMULATEXTO_Act(Campos_Ingreso_Datos[[#This Row],[Vinculo]]),"") -> =' '!$C$508 | D149: [$$-240A] #,##0
A150: Rentas de Trabajo | B150: =' '!$D$508 -> $ 0 | C150: =IFERROR(FORMULATEXTO_Act(Campos_Ingreso_Datos[[#This Row],[Vinculo]]),"") -> =' '!$D$508 | D150: [$$-240A] #,##0
A151: Rentas de Trabajo | B151: =' '!$E$508 -> $ 0 | C151: =IFERROR(FORMULATEXTO_Act(Campos_Ingreso_Datos[[#This Row],[Vinculo]]),"") -> =' '!$E$508 | D151: [$$-240A] #,##0
A152: Rentas de Trabajo | B152: =' '!$C$509 -> $ 0 | C152: =IFERROR(FORMULATEXTO_Act(Campos_Ingreso_Datos[[#This Row],[Vinculo]]),"") -> =' '!$C$509 | D152: [$$-240A] #,##0
A153: Rentas de Trabajo | B153: =' '!$D$509 -> $ 0 | C153: =IFERROR(FORMULATEXTO_Act(Campos_Ingreso_Datos[[#This Row],[Vinculo]]),"") -> =' '!$D$509 | D153: [$$-240A] #,##0
A154: Rentas de Trabajo | B154: =' '!$E$509 -> $ 0 | C154: =IFERROR(FORMULATEXTO_Act(Campos_Ingreso_Datos[[#This Row],[Vinculo]]),"") -> =' '!$E$509 | D154: [$$-240A] #,##0
A155: Rentas de Trabajo | B155: =' '!$C$510 -> $ 0 | C155: =IFERROR(FORMULATEXTO_Act(Campos_Ingreso_Datos[[#This Row],[Vinculo]]),"") -> =' '!$C$510 | D155: [$$-240A] #,##0
A156: Rentas de Trabajo | B156: =' '!$D$510 -> $ 0 | C156: =IFERROR(FORMULATEXTO_Act(Campos_Ingreso_Datos[[#This Row],[Vinculo]]),"") -> =' '!$D$510 | D156: [$$-240A] #,##0
A157: Rentas de Trabajo | B157: =' '!$E$510 -> $ 0 | C157: =IFERROR(FORMULATEXTO_Act(Campos_Ingreso_Datos[[#This Row],[Vinculo]]),"") -> =' '!$E$510 | D157: [$$-240A] #,##0
A158: Rentas de Trabajo | B158: =' '!$C$511 -> $ 0 | C158: =IFERROR(FORMULATEXTO_Act(Campos_Ingreso_Datos[[#This Row],[Vinculo]]),"") -> =' '!$C$511 | D158: [$$-240A] #,##0
A159: Rentas de Trabajo | B159: =' '!$D$511 -> $ 0 | C159: =IFERROR(FORMULATEXTO_Act(Campos_Ingreso_Datos[[#This Row],[Vinculo]]),"") -> =' '!$D$511 | D159: [$$-240A] #,##0
A160: Rentas de Trabajo | B160: =' '!$E$511 -> $ 0 | C160: =IFERROR(FORMULATEXTO_Act(Campos_Ingreso_Datos[[#This Row],[Vinculo]]),"") -> =' '!$E$511 | D160: [$$-240A] #,##0
A161: Rentas de Trabajo | B161: =' '!$C$512 -> $ 0 | C161: =IFERROR(FORMULATEXTO_Act(Campos_Ingreso_Datos[[#This Row],[Vinculo]]),"") -> =' '!$C$512 | D161: [$$-240A] #,##0
A162: Rentas de Trabajo | B162: =' '!$D$512 -> $ 0 | C162: =IFERROR(FORMULATEXTO_Act(Campos_Ingreso_Datos[[#This Row],[Vinculo]]),"") -> =' '!$D$512 | D162: [$$-240A] #,##0
A163: Rentas de Trabajo | B163: =' '!$E$512 -> $ 0 | C163: =IFERROR(FORMULATEXTO_Act(Campos_Ingreso_Datos[[#This Row],[Vinculo]]),"") -> =' '!$E$512 | D163: [$$-240A] #,##0
A164: Rentas de Trabajo | B164: =' '!$C$513 -> $ 0 | C164: =IFERROR(FORMULATEXTO_Act(Campos_Ingreso_Datos[[#This Row],[Vinculo]]),"") -> =' '!$C$513 | D164: [$$-240A] #,##0
A165: Rentas de Trabajo | B165: =' '!$D$513 -> $ 0 | C165: =IFERROR(FORMULATEXTO_Act(Campos_Ingreso_Datos[[#This Row],[Vinculo]]),"") -> =' '!$D$513 | D165: [$$-240A] #,##0
A166: Rentas de Trabajo | B166: =' '!$E$513 -> $ 0 | C166: =IFERROR(FORMULATEXTO_Act(Campos_Ingreso_Datos[[#This Row],[Vinculo]]),"") -> =' '!$E$513 | D166: [$$-240A] #,##0
A167: Rentas de Trabajo | B167: =' '!$C$514 -> $ 0 | C167: =IFERROR(FORMULATEXTO_Act(Campos_Ingreso_Datos[[#This Row],[Vinculo]]),"") -> =' '!$C$514 | D167: [$$-240A] #,##0
A168: Rentas de Trabajo | B168: =' '!$D$514 -> $ 0 | C168: =IFERROR(FORMULATEXTO_Act(Campos_Ingreso_Datos[[#This Row],[Vinculo]]),"") -> =' '!$D$514 | D168: [$$-240A] #,##0
A169: Rentas de Trabajo | B169: =' '!$E$514 -> $ 0 | C169: =IFERROR(FORMULATEXTO_Act(Campos_Ingreso_Datos[[#This Row],[Vinculo]]),"") -> =' '!$E$514 | D169: [$$-240A] #,##0
A170: Rentas de Trabajo | B170: =' '!$C$515 -> $ 0 | C170: =IFERROR(FORMULATEXTO_Act(Campos_Ingreso_Datos[[#This Row],[Vinculo]]),"") -> =' '!$C$515 | D170: [$$-240A] #,##0
A171: Rentas de Trabajo | B171: =' '!$D$515 -> $ 0 | C171: =IFERROR(FORMULATEXTO_Act(Campos_Ingreso_Datos[[#This Row],[Vinculo]]),"") -> =' '!$D$515 | D171: [$$-240A] #,##0
A172: Rentas de Trabajo | B172: =' '!$E$515 -> $ 0 | C172: =IFERROR(FORMULATEXTO_Act(Campos_Ingreso_Datos[[#This Row],[Vinculo]]),"") -> =' '!$E$515 | D172: [$$-240A] #,##0
A173: Rentas de Trabajo | B173: =' '!$C$516 -> $ 0 | C173: =IFERROR(FORMULATEXTO_Act(Campos_Ingreso_Datos[[#This Row],[Vinculo]]),"") -> =' '!$C$516 | D173: [$$-240A] #,##0
A174: Rentas de Trabajo | B174: =' '!$D$516 -> $ 0 | C174: =IFERROR(FORMULATEXTO_Act(Campos_Ingreso_Datos[[#This Row],[Vinculo]]),"") -> =' '!$D$516 | D174: [$$-240A] #,##0
A175: Rentas de Trabajo | B175: =' '!$E$516 -> $ 0 | C175: =IFERROR(FORMULATEXTO_Act(Campos_Ingreso_Datos[[#This Row],[Vinculo]]),"") -> =' '!$E$516 | D175: [$$-240A] #,##0
A176: Rentas de Trabajo | B176: =' '!$C$517 -> $ 0 | C176: =IFERROR(FORMULATEXTO_Act(Campos_Ingreso_Datos[[#This Row],[Vinculo]]),"") -> =' '!$C$517 | D176: [$$-240A] #,##0
A177: Rentas de Trabajo | B177: =' '!$D$517 -> $ 0 | C177: =IFERROR(FORMULATEXTO_Act(Campos_Ingreso_Datos[[#This Row],[Vinculo]]),"") -> =' '!$D$517 | D177: [$$-240A] #,##0
A178: Rentas de Trabajo | B178: =' '!$E$517 -> $ 0 | C178: =IFERROR(FORMULATEXTO_Act(Campos_Ingreso_Datos[[#This Row],[Vinculo]]),"") -> =' '!$E$517 | D178: [$$-240A] #,##0
A179: Rentas de Trabajo | B179: =' '!$C$518 -> $ 0 | C179: =IFERROR(FORMULATEXTO_Act(Campos_Ingreso_Datos[[#This Row],[Vinculo]]),"") -> =' '!$C$518 | D179: [$$-240A] #,##0
A180: Rentas de Trabajo | B180: =' '!$D$518 -> $ 0 | C180: =IFERROR(FORMULATEXTO_Act(Campos_Ingreso_Datos[[#This Row],[Vinculo]]),"") -> =' '!$D$518 | D180: [$$-240A] #,##0
A181: Rentas de Trabajo | B181: =' '!$E$518 -> $ 0 | C181: =IFERROR(FORMULATEXTO_Act(Campos_Ingreso_Datos[[#This Row],[Vinculo]]),"") -> =' '!$E$518 | D181: [$$-240A] #,##0
A182: Rentas de Trabajo | B182: =' '!$C$519 -> $ 0 | C182: =IFERROR(FORMULATEXTO_Act(Campos_Ingreso_Datos[[#This Row],[Vinculo]]),"") -> =' '!$C$519 | D182: [$$-240A] #,##0
A183: Rentas de Trabajo | B183: =' '!$D$519 -> $ 0 | C183: =IFERROR(FORMULATEXTO_Act(Campos_Ingreso_Datos[[#This Row],[Vinculo]]),"") -> =' '!$D$519 | D183: [$$-240A] #,##0
A184: Rentas de Trabajo | B184: =' '!$E$519 -> $ 0 | C184: =IFERROR(FORMULATEXTO_Act(Campos_Ingreso_Datos[[#This Row],[Vinculo]]),"") -> =' '!$E$519 | D184: [$$-240A] #,##0
A185: Rentas de Trabajo | B185: =' '!$C$520 -> $ 0 | C185: =IFERROR(FORMULATEXTO_Act(Campos_Ingreso_Datos[[#This Row],[Vinculo]]),"") -> =' '!$C$520 | D185: [$$-240A] #,##0
A186: Rentas de Trabajo | B186: =' '!$D$520 -> $ 0 | C186: =IFERROR(FORMULATEXTO_Act(Campos_Ingreso_Datos[[#This Row],[Vinculo]]),"") -> =' '!$D$520 | D186: [$$-240A] #,##0
A187: Rentas de Trabajo | B187: =' '!$E$520 -> $ 0 | C187: =IFERROR(FORMULATEXTO_Act(Campos_Ingreso_Datos[[#This Row],[Vinculo]]),"") -> =' '!$E$520 | D187: [$$-240A] #,##0
A188: Rentas de Trabajo | B188: =' '!$C$521 -> $ 0 | C188: =IFERROR(FORMULATEXTO_Act(Campos_Ingreso_Datos[[#This Row],[Vinculo]]),"") -> =' '!$C$521 | D188: [$$-240A] #,##0
A189: Rentas de Trabajo | B189: =' '!$D$521 -> $ 0 | C189: =IFERROR(FORMULATEXTO_Act(Campos_Ingreso_Datos[[#This Row],[Vinculo]]),"") -> =' '!$D$521 | D189: [$$-240A] #,##0
A190: Rentas de Trabajo | B190: =' '!$E$521 -> $ 0 | C190: =IFERROR(FORMULATEXTO_Act(Campos_Ingreso_Datos[[#This Row],[Vinculo]]),"") -> =' '!$E$521 | D190: [$$-240A] #,##0
A191: Rentas de Trabajo | B191: =' '!$C$522 -> $ 0 | C191: =IFERROR(FORMULATEXTO_Act(Campos_Ingreso_Datos[[#This Row],[Vinculo]]),"") -> =' '!$C$522 | D191: [$$-240A] #,##0
A192: Rentas de Trabajo | B192: =' '!$D$522 -> $ 0 | C192: =IFERROR(FORMULATEXTO_Act(Campos_Ingreso_Datos[[#This Row],[Vinculo]]),"") -> =' '!$D$522 | D192: [$$-240A] #,##0
A193: Rentas de Trabajo | B193: =' '!$E$522 -> $ 0 | C193: =IFERROR(FORMULATEXTO_Act(Campos_Ingreso_Datos[[#This Row],[Vinculo]]),"") -> =' '!$E$522 | D193: [$$-240A] #,##0
A194: Rentas de Trabajo | B194: =' '!$C$523 -> $ 0 | C194: =IFERROR(FORMULATEXTO_Act(Campos_Ingreso_Datos[[#This Row],[Vinculo]]),"") -> =' '!$C$523 | D194: [$$-240A] #,##0
A195: Rentas de Trabajo | B195: =' '!$D$523 -> $ 0 | C195: =IFERROR(FORMULATEXTO_Act(Campos_Ingreso_Datos[[#This Row],[Vinculo]]),"") -> =' '!$D$523 | D195: [$$-240A] #,##0
A196: Rentas de Trabajo | B196: =' '!$E$523 -> $ 0 | C196: =IFERROR(FORMULATEXTO_Act(Campos_Ingreso_Datos[[#This Row],[Vinculo]]),"") -> =' '!$E$523 | D196: [$$-240A] #,##0
A197: Rentas de Trabajo | B197: =' '!$C$524 -> $ 0 | C197: =IFERROR(FORMULATEXTO_Act(Campos_Ingreso_Datos[[#This Row],[Vinculo]]),"") -> =' '!$C$524 | D197: [$$-240A] #,##0
A198: Rentas de Trabajo | B198: =' '!$D$524 -> $ 0 | C198: =IFERROR(FORMULATEXTO_Act(Campos_Ingreso_Datos[[#This Row],[Vinculo]]),"") -> =' '!$D$524 | D198: [$$-240A] #,##0
A199: Rentas de Trabajo | B199: =' '!$E$524 -> $ 0 | C199: =IFERROR(FORMULATEXTO_Act(Campos_Ingreso_Datos[[#This Row],[Vinculo]]),"") -> =' '!$E$524 | D199: [$$-240A] #,##0
A200: Rentas de Trabajo | B200: =' '!$C$525 -> $ 0 | C200: =IFERROR(FORMULATEXTO_Act(Campos_Ingreso_Datos[[#This Row],[Vinculo]]),"") -> =' '!$C$525 | D200: [$$-240A] #,##0
... 353 more rows

Sheet Desarrollador (hidden)
A1: Accion | B1: Grupo | C1: Tipo | D1: Imagen | E1: Left | F1: Top | G1: Height | H1: Width | I1: Visible | L1: Segmento | M1: Fila | N1: Alto | O1: Herramienta | P1: Version | Q1: Formato_Editar | R1: Avisos | S1: Cambios | T1: Tipo | U1: Inicio | V1: Volver_a | W1: Limpiar | X1: Prediligenciado | Y1: Actual | Z1: Fecha_Seleccion_Vencimiento | AA1: Certi_Depend | AB1: Contribuyentes | AC1: Scrollrow
C2: Imagen | D2: Titulo_Segmento | E2: =E4+G4+30 -> 217 | F2: 7 | G2: 90 | H2: 650 | I2: =IF(Parametros[Segmento]="Fondo_Menu",1,0) -> 1 | L2: Fondo_Menu | M2: =IFERROR(MATCH(Parametros[[#This Row],[Segmento]],' '!$AO:$AO,0),0) -> 6 | N2: =Alto_Segmento(Parametros[[#This Row],[Segmento]]) -> 35 | O2: Actualicese 210 | P2: 20230623 | R2: 0 | S2: 1 | T2: 2 | W2: 0 | Y2: 0 | Z2: 45177 | AA2: 0 | AB2: =IF(Parametros[[#This Row],[Segmento]]="Contribuyentes",ROW(Contribuyentes[#Headers])+IF(COUNTA(Contribuyentes[])<=5,0,ROWS(Contribuyentes[])),0) -> 0 | AC2: 0
C3: Imagen | D3: Logo | E3: 25 | F3: 15 | G3: 70 | H3: 169 | I3: 1 | L3: =IF(Parametros[Segmento]="Fondo_Menu","Liquidador del impuesto de renta para personas naturales no obligadas a llevar contabilidad","") -> Liquidador del impuesto de renta para personas naturales no obligadas a llevar contabilidad | U3: =TEXT(MAX(Parametros[Inicio]+10/(24*60)-NOW(),0),"mm:ss") -> 00:00
C4: Imagen | D4: Division_1 | E4: =E3+H3-15 -> 179 | F4: 48 | G4: 8 | H4: 80 | I4: 1
C5: Imagen | D5: Guardar | E5: =$E$6+H6+20 -> 413 | F5: 28 | G5: 43 | H5: 135 | I5: =I6*(Parametros[Segmento]<>"Contribuyentes") -> 0 | K5: =SI.ERROR((Parametros[Segmento]<>"Fondo_Menu")*1;1)
C6: Imagen | D6: Regresar_Al_Menu | E6: =IF(I53<>0,E53+H53+20,IF(I59<>0,E59+H59+20,IF(Parametros[Segmento]="Contribuyentes",E13+H13+6,IF($I$7=1,$E$7+60,$E$4+70)))) -> 249 | F6: =IF(Parametros[Segmento]="Contribuyentes",F9+G9-Botones_e_Imagenes[[#This Row],[Height]],F5) -> 28 | G6: =IF(Parametros[Segmento]="Contribuyentes",33,$G$5) -> 43 | H6: =IF(Parametros[Segmento]="Contribuyentes",111,144) -> 144 | I6: =IFERROR((Parametros[Segmento]<>"Fondo_Menu")*1,1) -> 0
C7: Imagen | D7: Division_2 | E7: =IF($I$56=1,E56+H56+5,IF($I$57=1,E57+H57+5,E67+G67+50)) -> 532 | F7: =F4 -> 48 | G7: =G4 -> 8 | H7: =H4 -> 80 | I7: =IFERROR((SUM($I$62:$I$71,$I$52,$I$56)>0)*1,0) -> 0
C8: Imagen | D8: Titulo_Contribuyentes | E8: 200 | F8: 7 | G8: 90 | H8: 300 | I8: =IFERROR((Parametros[Segmento]="Contribuyentes")*1,0) -> 0
B9: =IF(Parametros[Tipo]=2,"Esta sección no está disponible en la versión de prueba de Actualícese 210.xls. Si quieres realizar tu declaración de renta de personas naturales de forma rápida, adquiere nuestra herramienta ingresando a:","") -> Esta sección no está disponible en la versión de prueba de Actualícese 210.xls. Si quieres realizar tu declaración de renta de personas naturales de forma rápida, adquiere nuestra herramienta ingresando a: | C9: Imagen | D9: Importar | E9: =$E$4+270 -> 449 | F9: 14 | G9: 72 | H9: 72 | I9: =IFERROR((Parametros[Segmento]="Contribuyentes")*1,0) -> 0
C10: Imagen | D10: Eliminar | E10: =E9+H9+6 -> 527 | F10: =F9+G9-Botones_e_Imagenes[[#This Row],[Height]] -> 53 | G10: 33 | H10: 111 | I10: =IFERROR((Parametros[Segmento]="Contribuyentes")*1,0) -> 0
B11: =IF(AND(Parametros[Tipo]=2,IF(COUNTA(Contribuyentes[])<=5,0,ROWS(Contribuyentes[]))>0),"Para la versión de prueba de Actualícese 210.xls solo puede tener creado 1 contribuyente. Si quieres realizar tu declaración de renta de personas naturales de forma rápida, adquiere nuestra herramienta ingresando a:","") ->  | C11: Imagen | D11: Nuevo | E11: =E9+H9+6 -> 527 | F11: =$F$9 -> 14 | G11: 33 | H11: 111 | I11: =IFERROR((Parametros[Segmento]="Contribuyentes")*1,0) -> 0
C12: Imagen | D12: Ordenar_Ascendente | E12: =E11+H11+6 -> 644 | F12: =$F$9 -> 14 | G12: 33 | H12: 111 | I12: =IFERROR((Parametros[Segmento]="Contribuyentes")*1,0) -> 0
C13: Imagen | D13: Ordenar_Descendente | E13: =E11+H11+6 -> 644 | F13: =F9+G9-Botones_e_Imagenes[[#This Row],[Height]] -> 53 | G13: 33 | H13: 111 | I13: =IFERROR((Parametros[Segmento]="Contribuyentes")*1,0) -> 0
C14: Imagen | D14: Vencimientos_BSA | E14: =E13+H13+6 -> 761 | F14: =$F$9 -> 14 | G14: 33 | H14: 111 | I14: =IFERROR((Parametros[Segmento]="Contribuyentes")*1,0) -> 0
C16: Imagen | D16: Informacion_Contribuyente | E16: 40 | F16: 130 | G16: 45 | H16: 145 | I16: =IFERROR((Parametros[Segmento]="Fondo_Menu")*1,0) -> 1
C17: Imagen | D17: Contribuyentes | E17: =$E$16 -> 40 | F17: =F16+G16+8 -> 183 | G17: 22 | H17: 140 | I17: =IFERROR((Parametros[Segmento]="Fondo_Menu")*1,0) -> 1
C18: Imagen | D18: Datos Contribuyente | E18: =$E$16 -> 40 | F18: =F17+G17+5 -> 210 | G18: 35 | H18: =$H$17 -> 140 | I18: =IFERROR((Parametros[Segmento]="Fondo_Menu")*(Parametros[Actual]>0),0) -> 0
B19: =IF(Parametros[Tipo]=2,"Esta sección no está disponible en la versión de prueba de Actualícese 210.xls. Si quieres realizar tu declaración de renta de personas naturales de forma rápida, adquiere nuestra herramienta ingresando a:","") -> Esta sección no está disponible en la versión de prueba de Actualícese 210.xls. Si quieres realizar tu declaración de renta de personas naturales de forma rápida, adquiere nuestra herramienta ingresando a: | C19: Imagen | D19: Lista de chequeo | E19: 40 | F19: =F18+G18+5 -> 250 | G19: 22 | H19: =$H$17 -> 140 | I19: =IFERROR((Parametros[Segmento]="Fondo_Menu")*(Parametros[Actual]>0),0) -> 0
C20: Imagen | D20: Informacion_General | E20: 40 | F20: =F19+G19+23 -> 295 | G20: =$G$16 -> 45 | H20: 125 | I20: =IFERROR((Parametros[Segmento]="Fondo_Menu")*(Parametros[Actual]>0),0) -> 0
B21: =IF(Parametros[Tipo]=2,"Esta sección no está disponible en la versión de prueba de Actualícese 210.xls. Si quieres realizar tu declaración de renta de personas naturales de forma rápida, adquiere nuestra herramienta ingresando a:","") -> Esta sección no está disponible en la versión de prueba de Actualícese 210.xls. Si quieres realizar tu declaración de renta de personas naturales de forma rápida, adquiere nuestra herramienta ingresando a: | C21: Imagen | D21: Vencimientos | E21: 40 | F21: =F20+G20+8 -> 348 | G21: =$G$17 -> 22 | H21: =$H$17 -> 140 | I21: =IFERROR((Parametros[Segmento]="Fondo_Menu")*(Parametros[Actual]>0),0) -> 0
B22: =IF(Parametros[Tipo]=2,"Esta sección no está disponible en la versión de prueba de Actualícese 210.xls. Si quieres realizar tu declaración de renta de personas naturales de forma rápida, adquiere nuestra herramienta ingresando a:","") -> Esta sección no está disponible en la versión de prueba de Actualícese 210.xls. Si quieres realizar tu declaración de renta de personas naturales de forma rápida, adquiere nuestra herramienta ingresando a: | C22: Imagen | D22: Cifras, tablas e indicadores | E22: 40 | F22: =F21+G21+5 -> 375 | G22: =$G$17 -> 22 | H22: =$H$17 -> 140 | I22: =IFERROR((Parametros[Segmento]="Fondo_Menu")*(Parametros[Actual]>0),0) -> 0
C23: Imagen | D23: Ingresos_Ocasionales | E23: 40 | F23: =F22+G22+23 -> 420 | G23: =$G$16 -> 45 | H23: =$H$20 -> 125 | I23: =IFERROR((Parametros[Segmento]="Fondo_Menu")*(Parametros[Actual]>0),0) -> 0
C24: Imagen | D24: G. Ocasionales | E24: 40 | F24: =F23+G23+8 -> 473 | G24: =$G$17 -> 22 | H24: =$H$17 -> 140 | I24: =IFERROR((Parametros[Segmento]="Fondo_Menu")*(Parametros[Actual]>0),0) -> 0 | L24: Celda | M24: Segmento | N24: Vinculo | O24: Diligenciar_Detalle | P24: Primera_vez | Q24: Marcar Primera Vez
C25: Imagen | D25: Patrimonio | E25: =$E$16+220 -> 260 | F25: =$F$16 -> 130 | G25: =$G$16 -> 45 | H25: =$H$20 -> 125 | I25: =IFERROR((Parametros[Segmento]="Fondo_Menu")*(Parametros[Actual]>0),0) -> 0 | L25: =SUBSTITUTE(FORMULATEXTO_Act(Redireccionar[[#This Row],[Vinculo]]),"=","") -> ' '!$C$223 | M25: Reajuste fiscal de los activos | N25: =' '!$C$223 -> 0 | O25: ¿Desea registrar acciones y/o aportes sociales poseídos por el contribuyente a 31 de diciembre de 2022? | P25: =' '!$O$223 -> 1 | Q25: =' '!$B$223 -> Acciones y/o aportes sociales
C26: Imagen | D26: Activos | E26: =$E$25 -> 260 | F26: =F25+G25+8 -> 183 | G26: =$G$17 -> 22 | H26: =$H$17 -> 140 | I26: =IFERROR((Parametros[Segmento]="Fondo_Menu")*(Parametros[Actual]>0),0) -> 0 | L26: =SUBSTITUTE(FORMULATEXTO_Act(Redireccionar[[#This Row],[Vinculo]]),"=","") -> ' '!$D$223 | M26: Reajuste fiscal de los activos | N26: =' '!$D$223 -> 0 | O26: ¿Desea registrar acciones y/o aportes sociales poseídos por el contribuyente a 31 de diciembre de 2022? | P26: =' '!$P$223 -> 1 | Q26: =' '!$B$223 -> Acciones y/o aportes sociales
C27: Imagen | D27: Deudas | E27: 260 | F27: =F26+G26+5 -> 210 | G27: =$G$17 -> 22 | H27: =$H$17 -> 140 | I27: =IFERROR((Parametros[Segmento]="Fondo_Menu")*(Parametros[Actual]>0),0) -> 0 | L27: =SUBSTITUTE(FORMULATEXTO_Act(Redireccionar[[#This Row],[Vinculo]]),"=","") -> ' '!$C$279 | M27: Intereses Presuntivos | N27: =' '!$C$279 -> 0 | O27: ¿Desea registrar cuentas por cobrar a sociedades de las cuales el contribuyente es socio, poseídos a 31 de diciembre de 2022? | P27: =' '!$O$279 -> 0 | Q27: =' '!$B$279 -> Cuentas por cobrar a sociedades de las cuales el contribuyente es socio
C28: Imagen | D28: Cedulacion | E28: 260 | F28: =F27+G27+23 -> 255 | G28: =$G$16 -> 45 | H28: =$H$20 -> 125 | I28: =IFERROR((Parametros[Segmento]="Fondo_Menu")*(Parametros[Actual]>0),0) -> 0 | L28: =SUBSTITUTE(FORMULATEXTO_Act(Redireccionar[[#This Row],[Vinculo]]),"=","") -> ' '!$D$279 | M28: Intereses Presuntivos | N28: =' '!$D$279 -> 0 | O28: ¿Desea registrar cuentas por cobrar a sociedades de las cuales el contribuyente es socio, poseídos a 31 de diciembre de 2022? | P28: =' '!$P$279 -> 0 | Q28: =' '!$B$279 -> Cuentas por cobrar a sociedades de las cuales el contribuyente es socio
C29: Imagen | D29: Cédula General | E29: 260 | F29: =F28+G28+8 -> 308 | G29: =$G$17 -> 22 | H29: =$H$17 -> 140 | I29: =IFERROR((Parametros[Segmento]="Fondo_Menu")*(Parametros[Actual]>0),0) -> 0 | L29: =SUBSTITUTE(FORMULATEXTO_Act(Redireccionar[[#This Row],[Vinculo]]),"=","") -> ' '!$C$313 | M29: Reajuste fiscal de los activos | N29: =' '!$C$313 -> 56000000 | O29: ¿Desea registrar vehículos poseídos por el contribuyente a 31 de diciembre de 2022? | P29: =' '!$O$313 -> 1 | Q29: =' '!$B$313 -> Vehículos (Carro, motocicletas, camionetas, etc.)
B30: =IF(Parametros[Tipo]=2,"Esta sección no está disponible en la versión de prueba de Actualícese 210.xls. Si quieres realizar tu declaración de renta de personas naturales de forma rápida, adquiere nuestra herramienta ingresando a:","") -> Esta sección no está disponible en la versión de prueba de Actualícese 210.xls. Si quieres realizar tu declaración de renta de personas naturales de forma rápida, adquiere nuestra herramienta ingresando a: | C30: Imagen | D30: Cédula Pensiones | E30: 260 | F30: =F29+G29+5 -> 335 | G30: =$G$17 -> 22 | H30: =$H$17 -> 140 | I30: =IFERROR((Parametros[Segmento]="Fondo_Menu")*(Parametros[Actual]>0),0) -> 0 | L30: =SUBSTITUTE(FORMULATEXTO_Act(Redireccionar[[#This Row],[Vinculo]]),"=","") -> ' '!$D$313 | M30: Reajuste fiscal de los activos | N30: =' '!$D$313 -> 0 | O30: ¿Desea registrar vehículos poseídos por el contribuyente a 31 de diciembre de 2022? | P30: =' '!$P$313 -> 1 | Q30: =' '!$B$313 -> Vehículos (Carro, motocicletas, camionetas, etc.)
B31: =IF(Parametros[Tipo]=2,"Esta sección no está disponible en la versión de prueba de Actualícese 210.xls. Si quieres realizar tu declaración de renta de personas naturales de forma rápida, adquiere nuestra herramienta ingresando a:","") -> Esta sección no está disponible en la versión de prueba de Actualícese 210.xls. Si quieres realizar tu declaración de renta de personas naturales de forma rápida, adquiere nuestra herramienta ingresando a: | C31: Imagen | D31: Cédula Dividendos | E31: 260 | F31: =F30+G30+5 -> 362 | G31: =$G$17 -> 22 | H31: =$H$17 -> 140 | I31: =IFERROR((Parametros[Segmento]="Fondo_Menu")*(Parametros[Actual]>0),0) -> 0 | L31: =SUBSTITUTE(FORMULATEXTO_Act(Redireccionar[[#This Row],[Vinculo]]),"=","") -> ' '!$C$389 | M31: Reajuste fiscal de los activos | N31: =' '!$C$389 -> 217424525 | O31: ¿Desea registrar bienes inmuebles poseídos por el contribuyente a 31 de diciembre de 2022? | P31: =' '!$O$389 -> 1 | Q31: =' '!$B$389 -> Bienes inmuebles
C32: Imagen | D32: Calculos_Adicionales | E32: =$E$25+220 -> 480 | F32: =$F$16 -> 130 | G32: =$G$16 -> 45 | H32: =$H$20 -> 125 | I32: =IFERROR((Parametros[Segmento]="Fondo_Menu")*(Parametros[Actual]>0),0) -> 0 | L32: =SUBSTITUTE(FORMULATEXTO_Act(Redireccionar[[#This Row],[Vinculo]]),"=","") -> ' '!$D$389 | M32: Reajuste fiscal de los activos | N32: =' '!$D$389 -> 0 | O32: ¿Desea registrar bienes inmuebles poseídos por el contribuyente a 31 de diciembre de 2022? | P32: =' '!$P$389 -> 1 | Q32: =' '!$B$389 -> Bienes inmuebles
B33: =IF(Parametros[Tipo]=2,"Esta sección no está disponible en la versión de prueba de Actualícese 210.xls. Si quieres realizar tu declaración de renta de personas naturales de forma rápida, adquiere nuestra herramienta ingresando a:","") -> Esta sección no está disponible en la versión de prueba de Actualícese 210.xls. Si quieres realizar tu declaración de renta de personas naturales de forma rápida, adquiere nuestra herramienta ingresando a: | C33: Imagen | D33: Compensaciones | E33: =$E$32 -> 480 | F33: =F32+G32+8 -> 183 | G33: =$G$17 -> 22 | H33: =$H$17 -> 140 | I33: =IFERROR((Parametros[Segmento]="Fondo_Menu")*(Parametros[Actual]>0),0) -> 0 | L33: =SUBSTITUTE(FORMULATEXTO_Act(Redireccionar[[#This Row],[Vinculo]]),"=","") -> ' '!$C$488 | M33: Subcapitalización | N33: =' '!$C$488 -> 0 | O33: ¿Desea registrar cuentas por pagar a vinculados económicos, pendientes a 31 de diciembre de 2022? | P33: =' '!$O$488 -> 1 | Q33: =' '!$B$488 -> Cuentas por pagar a vinculados económicos
B34: =IF(Parametros[Tipo]=2,"Esta sección no está disponible en la versión de prueba de Actualícese 210.xls. Si quieres realizar tu declaración de renta de personas naturales de forma rápida, adquiere nuestra herramienta ingresando a:","") -> Esta sección no está disponible en la versión de prueba de Actualícese 210.xls. Si quieres realizar tu declaración de renta de personas naturales de forma rápida, adquiere nuestra herramienta ingresando a: | C34: Imagen | D34: Comparación Patrimonial | E34: =$E$32 -> 480 | F34: =F33+G33+5 -> 210 | G34: =$G$18 -> 35 | H34: 140 | I34: =IFERROR((Parametros[Segmento]="Fondo_Menu")*(Parametros[Actual]>0),0) -> 0 | L34: =SUBSTITUTE(FORMULATEXTO_Act(Redireccionar[[#This Row],[Vinculo]]),"=","") -> ' '!$D$488 | M34: Subcapitalización | N34: =' '!$D$488 -> 0 | O34: ¿Desea registrar cuentas por pagar a vinculados económicos, pendientes a 31 de diciembre de 2022? | P34: =' '!$P$488 -> 1 | Q34: =' '!$B$488 -> Cuentas por pagar a vinculados económicos
B35: =IF(Parametros[Tipo]=2,"Esta sección no está disponible en la versión de prueba de Actualícese 210.xls. Si quieres realizar tu declaración de renta de personas naturales de forma rápida, adquiere nuestra herramienta ingresando a:","") -> Esta sección no está disponible en la versión de prueba de Actualícese 210.xls. Si quieres realizar tu declaración de renta de personas naturales de forma rápida, adquiere nuestra herramienta ingresando a: | C35: Imagen | D35: Descuentos Tributarios | E35: 480 | F35: =F34+G34+5 -> 250 | G35: =$G$17 -> 22 | H35: 140 | I35: =IFERROR((Parametros[Segmento]="Fondo_Menu")*(Parametros[Actual]>0),0) -> 0
B36: =IF(Parametros[Tipo]=2,"Esta sección no está disponible en la versión de prueba de Actualícese 210.xls. Si quieres realizar tu declaración de renta de personas naturales de forma rápida, adquiere nuestra herramienta ingresando a:","") -> Esta sección no está disponible en la versión de prueba de Actualícese 210.xls. Si quieres realizar tu declaración de renta de personas naturales de forma rápida, adquiere nuestra herramienta ingresando a: | C36: Imagen | D36: Anticipo Renta | E36: 480 | F36: =F35+G35+5 -> 277 | G36: =$G$17 -> 22 | H36: 140 | I36: =IFERROR((Parametros[Segmento]="Fondo_Menu")*(Parametros[Actual]>0),0) -> 0
B37: =IF(Parametros[Tipo]=2,"Esta sección no está disponible en la versión de prueba de Actualícese 210.xls. Si quieres realizar tu declaración de renta de personas naturales de forma rápida, adquiere nuestra herramienta ingresando a:","") -> Esta sección no está disponible en la versión de prueba de Actualícese 210.xls. Si quieres realizar tu declaración de renta de personas naturales de forma rápida, adquiere nuestra herramienta ingresando a: | C37: Imagen | D37: Sanciones | E37: 480 | F37: =F36+G36+5 -> 304 | G37: =$G$17 -> 22 | H37: 140 | I37: =IFERROR((Parametros[Segmento]="Fondo_Menu")*(Parametros[Actual]>0),0) -> 0
B38: =IF(Parametros[Tipo]=2,"Esta sección no está disponible en la versión de prueba de Actualícese 210.xls. Si quieres realizar tu declaración de renta de personas naturales de forma rápida, adquiere nuestra herramienta ingresando a:","") -> Esta sección no está disponible en la versión de prueba de Actualícese 210.xls. Si quieres realizar tu declaración de renta de personas naturales de forma rápida, adquiere nuestra herramienta ingresando a: | C38: Imagen | D38: Retenciones | E38: 480 | F38: =F37+G37+5 -> 331 | G38: =$G$17 -> 22 | H38: 140 | I38: =IFERROR((Parametros[Segmento]="Fondo_Menu")*(Parametros[Actual]>0),0) -> 0
C39: Imagen | D39: Calculo_de_Impuestos | E39: 480 | F39: =F38+G38+23 -> 376 | G39: =$G$16 -> 45 | H39: =$H$20 -> 125 | I39: =IFERROR((Parametros[Segmento]="Fondo_Menu")*(Parametros[Actual]>0),0) -> 0
B40: =IF(Parametros[Tipo]=2,"Esta sección no está disponible en la versión de prueba de Actualícese 210.xls. Si quieres realizar tu declaración de renta de personas naturales de forma rápida, adquiere nuestra herramienta ingresando a:","") -> Esta sección no está disponible en la versión de prueba de Actualícese 210.xls. Si quieres realizar tu declaración de renta de personas naturales de forma rápida, adquiere nuestra herramienta ingresando a: | C40: Imagen | D40: ImpRentasLíquidasGravab | E40: 480 | F40: =F39+G39+8 -> 429 | G40: =$G$18 -> 35 | H40: =$H$17 -> 140 | I40: =IFERROR((Parametros[Segmento]="Fondo_Menu")*(Parametros[Actual]>0),0) -> 0
C41: Imagen | D41: Formulario_210 | E41: =$E$32+220 -> 700 | F41: =$F$16 -> 130 | G41: =$G$16 -> 45 | H41: =$H$20 -> 125 | I41: =IFERROR((Parametros[Segmento]="Fondo_Menu")*(Parametros[Actual]>0),0) -> 0
C42: Imagen | D42: F210 | E42: =$E$41 -> 700 | F42: =F41+G41+8 -> 183 | G42: =$G$17 -> 22 | H42: =$H$17 -> 140 | I42: =IFERROR((Parametros[Segmento]="Fondo_Menu")*(Parametros[Actual]>0),0) -> 0
C43: Imagen | D43: Informes | E43: =$E$41 -> 700 | F43: =F42+G42+5 -> 210 | G43: 22 | H43: 140 | I43: =IFERROR((Parametros[Segmento]="Fondo_Menu")*(Parametros[Actual]>0),0) -> 0
C44: Imagen | D44: Gráficos | E44: 700 | F44: =F43+G43+5 -> 237 | G44: 22 | H44: 140 | I44: =IFERROR((Parametros[Segmento]="Fondo_Menu")*(Parametros[Actual]>0),0) -> 0
B45: =IF(Parametros[Tipo]=2,"Esta sección no está disponible en la versión de prueba de Actualícese 210.xls. Si quieres realizar tu declaración de renta de personas naturales de forma rápida, adquiere nuestra herramienta ingresando a:","") -> Esta sección no está disponible en la versión de prueba de Actualícese 210.xls. Si quieres realizar tu declaración de renta de personas naturales de forma rápida, adquiere nuestra herramienta ingresando a: | C45: Imagen | D45: Informe Costos | E45: 700 | F45: =F44+G44+5 -> 264 | G45: 22 | H45: 140 | I45: =IFERROR((Parametros[Segmento]="Fondo_Menu")*(Parametros[Actual]>0),0) -> 0
B46: =IF(Parametros[Tipo]=2,"Esta sección no está disponible en la versión de prueba de Actualícese 210.xls. Si quieres realizar tu declaración de renta de personas naturales de forma rápida, adquiere nuestra herramienta ingresando a:","") -> Esta sección no está disponible en la versión de prueba de Actualícese 210.xls. Si quieres realizar tu declaración de renta de personas naturales de forma rápida, adquiere nuestra herramienta ingresando a: | C46: Imagen | D46: Certificado_Dependientes | E46: 700 | F46: =F45+G45+5 -> 291 | G46: 22 | H46: 140 | I46: =IFERROR((Parametros[Segmento]="Fondo_Menu")*(Parametros[Actual]>0),0) -> 0
B47: =IF(Parametros[Tipo]=2,"Esta sección no está disponible en la versión de prueba de Actualícese 210.xls. Si quieres realizar tu declaración de renta de personas naturales de forma rápida, adquiere nuestra herramienta ingresando a:","") -> Esta sección no está disponible en la versión de prueba de Actualícese 210.xls. Si quieres realizar tu declaración de renta de personas naturales de forma rápida, adquiere nuestra herramienta ingresando a: | C47: Imagen | D47: Beneficio Auditoría | E47: 700 | F47: =F46+G46+5 -> 318 | G47: 22 | H47: 140 | I47: =IFERROR((Parametros[Segmento]="Fondo_Menu")*(Parametros[Actual]>0),0) -> 0
C48: Imagen | D48: Formulario_160 | E48: 700 | F48: =F47+G47+23 -> 363 | G48: =$G$16 -> 45 | H48: =$H$20 -> 125 | I48: =IFERROR((Parametros[Segmento]="Fondo_Menu")*(Parametros[Actual]>0),0) -> 0
B49: =IF(Parametros[Tipo]=2,"Esta sección no está disponible en la versión de prueba de Actualícese 210.xls. Si quieres realizar tu declaración de renta de personas naturales de forma rápida, adquiere nuestra herramienta ingresando a:","") -> Esta sección no está disponible en la versión de prueba de Actualícese 210.xls. Si quieres realizar tu declaración de renta de personas naturales de forma rápida, adquiere nuestra herramienta ingresando a: | C49: Imagen | D49: Info. Activos Ext. | E49: 700 | F49: =F48+G48+8 -> 416 | G49: =$G$18 -> 35 | H49: =$H$17 -> 140 | I49: =IFERROR((Parametros[Segmento]="Fondo_Menu")*(Parametros[Actual]>0),0) -> 0
C50: Imagen | D50: F160 H1 | E50: 700 | F50: =F49+G49+5 -> 456 | G50: =$G$17 -> 22 | H50: =$H$17 -> 140 | I50: =IFERROR((Parametros[Segmento]="Fondo_Menu")*(Parametros[Actual]>0),0) -> 0 | L50: m | M50: s | N50: l | O50: a
B51: =IF(Parametros[Tipo]=2,"Esta sección no está disponible en la versión de prueba de Actualícese 210.xls. Si quieres realizar tu declaración de renta de personas naturales de forma rápida, adquiere nuestra herramienta ingresando a:","") -> Esta sección no está disponible en la versión de prueba de Actualícese 210.xls. Si quieres realizar tu declaración de renta de personas naturales de forma rápida, adquiere nuestra herramienta ingresando a: | C51: Imagen | D51: Sanciones Act. Ext | E51: 700 | F51: =F50+G50+5 -> 483 | G51: =$G$17 -> 22 | H51: =$H$17 -> 140 | I51: =IFERROR((Parametros[Segmento]="Fondo_Menu")*(Parametros[Actual]>0),0) -> 0 | L51: 5E3720524153
C52: Imagen | D52: Seleccionar_Cedula | E52: 270 | F52: 190 | G52: 185 | H52: 255 | I52: =IFERROR((Parametros[Segmento]="Cédula General")*1,0) -> 0 | L52: 5E3720524153
C53: Imagen | D53: F160 H1_BSA2 | E53: =IF(Botones_e_Imagenes[[#This Row],[Visible]]=1,$E$4+(H4+20)*I4,0) -> 0 | F53: =F6 -> 28 | G53: =G6 -> 43 | H53: 144 | I53: =(Parametros[Segmento]="Info. Activos Ext.")*1 -> 0 | L53: 48E7DAC5AF37
C54: Imagen | D54: F160 H1_BSA | E54: =E4+78 -> 257 | F54: 35 | G54: 29 | H54: 120 | I54: =((I57)>0)*(I55=0) -> 0 | L54: 48E7DAC5AF36
C55: Imagen | D55: F160 H1_BS | E55: =E4+78 -> 257 | F55: 35 | G55: 29 | H55: 120 | I55: =(SUBSTITUTE(Botones_e_Imagenes[[#This Row],[Imagen]],"_BS","")=Parametros[Segmento])*1 -> 0 | L55: 4AE7DAC5AF27
B56: =IF(Parametros[Tipo]=2,"Esta sección no está disponible en la versión de prueba de Actualícese 210.xls. Si quieres realizar tu declaración de renta de personas naturales de forma rápida, adquiere nuestra herramienta ingresando a:","") -> Esta sección no está disponible en la versión de prueba de Actualícese 210.xls. Si quieres realizar tu declaración de renta de personas naturales de forma rápida, adquiere nuestra herramienta ingresando a: | C56: Imagen | D56: F160 H2_BSA | E56: =E54+H54+20 -> 397 | F56: 35 | G56: 29 | H56: 120 | I56: =((I55)>0)*(I57=0) -> 0 | L56: 4AE7DAC5AF37
B57: =IF(Parametros[Tipo]=2,"Esta sección no está disponible en la versión de prueba de Actualícese 210.xls. Si quieres realizar tu declaración de renta de personas naturales de forma rápida, adquiere nuestra herramienta ingresando a:","") -> Esta sección no está disponible en la versión de prueba de Actualícese 210.xls. Si quieres realizar tu declaración de renta de personas naturales de forma rápida, adquiere nuestra herramienta ingresando a: | C57: Imagen | D57: F160 H2_BS | E57: =E55+H55+20 -> 397 | F57: 35 | G57: 29 | H57: 120 | I57: =(SUBSTITUTE(Botones_e_Imagenes[[#This Row],[Imagen]],"_BS","")=Parametros[Segmento])*1 -> 0 | L57: 002020524153 | M57: MDAyMDIwNTI0MTUzLDAyNUMyMDUyNDE1MywwNDI5MjA1MjQxNTMsMTA2ODM4NTI0MjY2LDEwNjgzODUyNDI2NywxMjY4Mzg1MjYyNDYsMTI2ODM4NTI3MjU2/ZGx1bmFAYWN0dWFsaWNlc2UuY29t | N57: dluna@actualicese.com | O57: Tu licencia ha sido activada por ser Suscriptor
L58: 025C20524153 | M58: MDAyMDIwNTI0MTUzLDAyNUMyMDUyNDE1MywwNDI5MjA1MjQxNTMsMTA2ODM4NTI0MjY2LDEwNjgzODUyNDI2NywxMjY4Mzg1MjYyNDYsMTI2ODM4NTI3MjU2/ZGx1bmFAYWN0dWFsaWNlc2UuY29t | N58: dluna@actualicese.com | O58: Tu licencia ha sido activada por ser Suscriptor
B59: =IF(Parametros[Tipo]=2,"Esta sección no está disponible en la versión de prueba de Actualícese 210.xls. Si quieres realizar tu declaración de renta de personas naturales de forma rápida, adquiere nuestra herramienta ingresando a:","") -> Esta sección no está disponible en la versión de prueba de Actualícese 210.xls. Si quieres realizar tu declaración de renta de personas naturales de forma rápida, adquiere nuestra herramienta ingresando a: | C59: Imagen | D59: Info. Activos Ext._BSA | E59: =IF(Botones_e_Imagenes[[#This Row],[Visible]]=1,$E$7+(H7+20)*I7,0) -> 0 | F59: =F6 -> 28 | G59: =G6 -> 43 | H59: =H6 -> 144 | I59: =(Parametros[Segmento]="F160 H1")+(Parametros[Segmento]="F160 H2") -> 0 | L59: 042920524153 | M59: MDAyMDIwNTI0MTUzLDAyNUMyMDUyNDE1MywwNDI5MjA1MjQxNTMsMTA2ODM4NTI0MjY2LDEwNjgzODUyNDI2NywxMjY4Mzg1MjYyNDYsMTI2ODM4NTI3MjU2/ZGx1bmFAYWN0dWFsaWNlc2UuY29t | N59: dluna@actualicese.com | O59: Tu licencia ha sido activada por ser Suscriptor
L60: 106838524266 | M60: MDAyMDIwNTI0MTUzLDAyNUMyMDUyNDE1MywwNDI5MjA1MjQxNTMsMTA2ODM4NTI0MjY2LDEwNjgzODUyNDI2NywxMjY4Mzg1MjYyNDYsMTI2ODM4NTI3MjU2/ZGx1bmFAYWN0dWFsaWNlc2UuY29t | N60: dluna@actualicese.com | O60: Tu licencia ha sido activada por ser Suscriptor
L61: 106838524267 | M61: MDAyMDIwNTI0MTUzLDAyNUMyMDUyNDE1MywwNDI5MjA1MjQxNTMsMTA2ODM4NTI0MjY2LDEwNjgzODUyNDI2NywxMjY4Mzg1MjYyNDYsMTI2ODM4NTI3MjU2/ZGx1bmFAYWN0dWFsaWNlc2UuY29t | N61: dluna@actualicese.com | O61: Tu licencia ha sido activada por ser Suscriptor
C62: Imagen | D62: Rentas de Trabajo_BSA | E62: =E4+60 -> 239 | F62: 19 | G62: 29 | H62: 100 | I62: =(($I$63+$I$65+$I$67+$I$69+$I$71+$I$52)>0)*(I63=0) -> 0 | L62: 126838526246 | M62: MDAyMDIwNTI0MTUzLDAyNUMyMDUyNDE1MywwNDI5MjA1MjQxNTMsMTA2ODM4NTI0MjY2LDEwNjgzODUyNDI2NywxMjY4Mzg1MjYyNDYsMTI2ODM4NTI3MjU2/ZGx1bmFAYWN0dWFsaWNlc2UuY29t | N62: dluna@actualicese.com | O62: Tu licencia ha sido activada por ser Suscriptor
C63: Imagen | D63: Rentas de Trabajo_BS | E63: =E62 -> 239 | F63: =$F$62 -> 19 | G63: =$G$62 -> 29 | H63: =$H$62 -> 100 | I63: =(SUBSTITUTE(Botones_e_Imagenes[[#This Row],[Imagen]],"_BS","")=Parametros[Segmento])*1 -> 0 | L63: 126838527256 | M63: MDAyMDIwNTI0MTUzLDAyNUMyMDUyNDE1MywwNDI5MjA1MjQxNTMsMTA2ODM4NTI0MjY2LDEwNjgzODUyNDI2NywxMjY4Mzg1MjYyNDYsMTI2ODM4NTI3MjU2/ZGx1bmFAYWN0dWFsaWNlc2UuY29t | N63: dluna@actualicese.com | O63: Tu licencia ha sido activada por ser Suscriptor
B64: =IF(Parametros[Tipo]=2,"Esta sección no está disponible en la versión de prueba de Actualícese 210.xls. Si quieres realizar tu declaración de renta de personas naturales de forma rápida, adquiere nuestra herramienta ingresando a:","") -> Esta sección no está disponible en la versión de prueba de Actualícese 210.xls. Si quieres realizar tu declaración de renta de personas naturales de forma rápida, adquiere nuestra herramienta ingresando a: | C64: Imagen | D64: RentaHonorariosServicios_BSA | E64: =E62+H62+7 -> 346 | F64: =$F$62 -> 19 | G64: 29 | H64: 100 | I64: =(($I$63+$I$65+$I$67+$I$69+$I$71+$I$52)>0)*(I65=0) -> 0 | L64: 145B20524153 | M64: MTQ1QjIwNTI0MTUzLDE0QTUyMDUyNDE1MywxNEY3MjA1MjQxNTMsMDQ0MjFBRjEzM0I0LDAwRkYyRjY1MTA1MQ==/anZlbGFuZGlhQGFjdHVhbGljZXNlLmNvbQ== | N64: jvelandia@actualicese.com | O64: Tu licencia ha sido activada por ser Suscriptor
C65: Imagen | D65: RentaHonorariosServicios_BS | E65: =E63+H63+7 -> 346 | F65: =$F$62 -> 19 | G65: 29 | H65: 100 | I65: =(SUBSTITUTE(Botones_e_Imagenes[[#This Row],[Imagen]],"_BS","")=Parametros[Segmento])*1 -> 0 | L65: 14A520524153 | M65: MTQ1QjIwNTI0MTUzLDE0QTUyMDUyNDE1MywxNEY3MjA1MjQxNTMsMDQ0MjFBRjEzM0I0LDAwRkYyRjY1MTA1MQ==/anZlbGFuZGlhQGFjdHVhbGljZXNlLmNvbQ== | N65: jvelandia@actualicese.com | O65: Tu licencia ha sido activada por ser Suscriptor
B66: =IF(Parametros[Tipo]=2,"Esta sección no está disponible en la versión de prueba de Actualícese 210.xls. Si quieres realizar tu declaración de renta de personas naturales de forma rápida, adquiere nuestra herramienta ingresando a:","") -> Esta sección no está disponible en la versión de prueba de Actualícese 210.xls. Si quieres realizar tu declaración de renta de personas naturales de forma rápida, adquiere nuestra herramienta ingresando a: | C66: Imagen | D66: Rentas de Capital_BSA | E66: =E64+H64+7 -> 453 | F66: =$F$62 -> 19 | G66: 29 | H66: 100 | I66: =(($I$63+$I$65+$I$67+$I$69+$I$71+$I$52)>0)*(I67=0) -> 0 | L66: 14F720524153 | M66: MTQ1QjIwNTI0MTUzLDE0QTUyMDUyNDE1MywxNEY3MjA1MjQxNTMsMDQ0MjFBRjEzM0I0LDAwRkYyRjY1MTA1MQ==/anZlbGFuZGlhQGFjdHVhbGljZXNlLmNvbQ== | N66: jvelandia@actualicese.com | O66: Tu licencia ha sido activada por ser Suscriptor
C67: Imagen | D67: Rentas de Capital_BS | E67: =E65+H65+7 -> 453 | F67: =$F$62 -> 19 | G67: 29 | H67: 100 | I67: =(SUBSTITUTE(Botones_e_Imagenes[[#This Row],[Imagen]],"_BS","")=Parametros[Segmento])*1 -> 0 | L67: 04421AF133B4 | M67: MTQ1QjIwNTI0MTUzLDE0QTUyMDUyNDE1MywxNEY3MjA1MjQxNTMsMDQ0MjFBRjEzM0I0LDAwRkYyRjY1MTA1MQ==/anZlbGFuZGlhQGFjdHVhbGljZXNlLmNvbQ== | N67: jvelandia@actualicese.com | O67: Tu licencia ha sido activada por ser Suscriptor
B68: =IF(Parametros[Tipo]=2,"Esta sección no está disponible en la versión de prueba de Actualícese 210.xls. Si quieres realizar tu declaración de renta de personas naturales de forma rápida, adquiere nuestra herramienta ingresando a:","") -> Esta sección no está disponible en la versión de prueba de Actualícese 210.xls. Si quieres realizar tu declaración de renta de personas naturales de forma rápida, adquiere nuestra herramienta ingresando a: | C68: Imagen | D68: Rentas no laborales_BSA | E68: =E62 -> 239 | F68: =F62+G62+7 -> 55 | G68: 29 | H68: 100 | I68: =(($I$63+$I$65+$I$67+$I$69+$I$71+$I$52)>0)*(I69=0) -> 0 | L68: 00FF2F651051 | M68: MTQ1QjIwNTI0MTUzLDE0QTUyMDUyNDE1MywxNEY3MjA1MjQxNTMsMDQ0MjFBRjEzM0I0LDAwRkYyRjY1MTA1MQ==/anZlbGFuZGlhQGFjdHVhbGljZXNlLmNvbQ== | N68: jvelandia@actualicese.com | O68: Tu licencia ha sido activada por ser Suscriptor
C69: Imagen | D69: Rentas no laborales_BS | E69: =E63 -> 239 | F69: =F63+G63+7 -> 55 | G69: 29 | H69: 100 | I69: =(SUBSTITUTE(Botones_e_Imagenes[[#This Row],[Imagen]],"_BS","")=Parametros[Segmento])*1 -> 0
C70: Imagen | D70: Resumen Cédula General_BSA | E70: =E68+H68+7 -> 346 | F70: =F64+G64+7 -> 55 | G70: 29 | H70: 100 | I70: =(($I$63+$I$65+$I$67+$I$69+$I$71+$I$52)>0)*(I71=0) -> 0
C71: Imagen | D71: Resumen Cédula General_BS | E71: =E69+H69+7 -> 346 | F71: =F65+G65+7 -> 55 | G71: 29 | H71: 100 | I71: =(SUBSTITUTE(Botones_e_Imagenes[[#This Row],[Imagen]],"_BS","")=Parametros[Segmento])*1 -> 0
C73: Imagen | D73: Cronometro | E73: =MAX(($E$74+$H$74)*$I$74,($E$76+$H$76)*$I$76,($E$77+H77)*$I$77,($E$5+$H$5)*$I$5,($E$2+$H$2)*$I$2)+30 -> 897 | F73: =$F$6 -> 28 | G73: =$G$6 -> 43 | H73: =Botones_e_Imagenes[[#This Row],[Height]]*3 -> 129 | I73: =IF(Parametros[Tipo]=1,1,0) -> 0
B74: =IF(AND(Parametros[Tipo]<>0,Parametros[Tipo]<>""),"Esta sección no está disponible en la versión de prueba de Actualícese 210.xls. Si quieres realizar tu declaración de renta de personas naturales de forma rápida, adquiere nuestra herramienta ingresando a:","") -> Esta sección no está disponible en la versión de prueba de Actualícese 210.xls. Si quieres realizar tu declaración de renta de personas naturales de forma rápida, adquiere nuestra herramienta ingresando a: | C74: Imagen | D74: Exportar_PDF | E74: =$E$5+H5+20 -> 568 | F74: =F6 -> 28 | G74: =G6 -> 43 | H74: 160 | I74: =IFERROR(OR(Parametros[Segmento]=$D$50,Parametros[Segmento]=$D$44,Parametros[Segmento]=$D$42,Parametros[Segmento]=$D$43,Parametros[Segmento]=$D$56)*1,0) -> 0
C75: Imagen | D75: Barra Horizontal | E75: 55 | F75: 535 | G75: 10 | H75: 765 | I75: =IFERROR((Parametros[Segmento]="Fondo_Menu")*1+(Parametros[Segmento]="Cédula General")*1,0) -> 1
B76: =IF(Parametros[Tipo]=2,"Esta sección no está disponible en la versión de prueba de Actualícese 210.xls. Si quieres realizar tu declaración de renta de personas naturales de forma rápida, adquiere nuestra herramienta ingresando a:","") -> Esta sección no está disponible en la versión de prueba de Actualícese 210.xls. Si quieres realizar tu declaración de renta de personas naturales de forma rápida, adquiere nuestra herramienta ingresando a: | C76: Imagen | D76: Ajustar_Filas | E76: =E5+H5+20 -> 568 | F76: =F6 -> 28 | G76: =G6 -> 43 | H76: 120 | I76: =(COUNTIF(Bloques[Segmento],Parametros[Segmento])>0)*1 -> 0
C77: Imagen | D77: Logo_Graficos | E77: 400 | F77: 424 | G77: 54 | H77: 134 | I77: =(Parametros[Segmento]="Gráficos")*1 -> 0
A81: Segmento | B81: Grupo | C81: Bloque | D81: Actuales | E81: Temp | F81: Con_Datos | G81: Columna1 | H81: Columna2
A82: Activos | B82: Activos | C82: Efectivo | D82: =IF(Bloques[[#This Row],[Segmento]]=Parametros[Segmento],COUNTIFS(OFFSET(Ref_Segmento,Parametros[Fila]-1,0,Parametros[Alto]),Bloques[[#This Row],[Segmento]],OFFSET(Ref_Conteo,Parametros[Fila]-1,0,Parametros[Alto]),Bloques[[#This Row],[Bloque]],OFFSET(Ref_Conteo,Parametros[Fila]-1,-1,Parametros[Alto]),Bloques[[#This Row],[Grupo]])-1,0) -> 0 | G82: =COUNTIFS(OFFSET(Ref_Segmento,1,0,10000),Bloques[[#This Row],[Segmento]],OFFSET(Ref_Conteo,1,0,10000),Bloques[[#This Row],[Bloque]],OFFSET(Ref_Conteo,1,-1,10000),Bloques[[#This Row],[Grupo]])-1 -> 1 | H82: =COUNTIFS(OFFSET(Ref_Segmento,1,0,10000),Bloques[[#This Row],[Segmento]],OFFSET(Ref_Conteo,1,0,10000),Bloques[[#This Row],[Bloque]],OFFSET(Ref_Conteo,1,-1,10000),Bloques[[#This Row],[Grupo]]) -> 2
A83: Activos | B83: Activos | C83: Saldos en cuentas de ahorros | D83: =IF(Bloques[[#This Row],[Segmento]]=Parametros[Segmento],COUNTIFS(OFFSET(Ref_Segmento,Parametros[Fila]-1,0,Parametros[Alto]),Bloques[[#This Row],[Segmento]],OFFSET(Ref_Conteo,Parametros[Fila]-1,0,Parametros[Alto]),Bloques[[#This Row],[Bloque]],OFFSET(Ref_Conteo,Parametros[Fila]-1,-1,Parametros[Alto]),Bloques[[#This Row],[Grupo]])-1,0) -> 0 | G83: =COUNTIFS(OFFSET(Ref_Segmento,1,0,10000),Bloques[[#This Row],[Segmento]],OFFSET(Ref_Conteo,1,0,10000),Bloques[[#This Row],[Bloque]],OFFSET(Ref_Conteo,1,-1,10000),Bloques[[#This Row],[Grupo]])-1 -> 2 | H83: =COUNTIFS(OFFSET(Ref_Segmento,1,0,10000),Bloques[[#This Row],[Segmento]],OFFSET(Ref_Conteo,1,0,10000),Bloques[[#This Row],[Bloque]],OFFSET(Ref_Conteo,1,-1,10000),Bloques[[#This Row],[Grupo]]) -> 3
A84: Activos | B84: Activos | C84: Saldos en cuentas corrientes | D84: =IF(Bloques[[#This Row],[Segmento]]=Parametros[Segmento],COUNTIFS(OFFSET(Ref_Segmento,Parametros[Fila]-1,0,Parametros[Alto]),Bloques[[#This Row],[Segmento]],OFFSET(Ref_Conteo,Parametros[Fila]-1,0,Parametros[Alto]),Bloques[[#This Row],[Bloque]],OFFSET(Ref_Conteo,Parametros[Fila]-1,-1,Parametros[Alto]),Bloques[[#This Row],[Grupo]])-1,0) -> 0 | G84: =COUNTIFS(OFFSET(Ref_Segmento,1,0,10000),Bloques[[#This Row],[Segmento]],OFFSET(Ref_Conteo,1,0,10000),Bloques[[#This Row],[Bloque]],OFFSET(Ref_Conteo,1,-1,10000),Bloques[[#This Row],[Grupo]])-1 -> 1 | H84: =COUNTIFS(OFFSET(Ref_Segmento,1,0,10000),Bloques[[#This Row],[Segmento]],OFFSET(Ref_Conteo,1,0,10000),Bloques[[#This Row],[Bloque]],OFFSET(Ref_Conteo,1,-1,10000),Bloques[[#This Row],[Grupo]]) -> 2
A85: Activos | B85: Activos | C85: Saldos en cuentas AFC | D85: =IF(Bloques[[#This Row],[Segmento]]=Parametros[Segmento],COUNTIFS(OFFSET(Ref_Segmento,Parametros[Fila]-1,0,Parametros[Alto]),Bloques[[#This Row],[Segmento]],OFFSET(Ref_Conteo,Parametros[Fila]-1,0,Parametros[Alto]),Bloques[[#This Row],[Bloque]],OFFSET(Ref_Conteo,Parametros[Fila]-1,-1,Parametros[Alto]),Bloques[[#This Row],[Grupo]])-1,0) -> 0 | G85: =COUNTIFS(OFFSET(Ref_Segmento,1,0,10000),Bloques[[#This Row],[Segmento]],OFFSET(Ref_Conteo,1,0,10000),Bloques[[#This Row],[Bloque]],OFFSET(Ref_Conteo,1,-1,10000),Bloques[[#This Row],[Grupo]])-1 -> 1 | H85: =COUNTIFS(OFFSET(Ref_Segmento,1,0,10000),Bloques[[#This Row],[Segmento]],OFFSET(Ref_Conteo,1,0,10000),Bloques[[#This Row],[Bloque]],OFFSET(Ref_Conteo,1,-1,10000),Bloques[[#This Row],[Grupo]]) -> 2
A86: Activos | B86: Activos | C86: Saldos en fondos de pensiones voluntarias | D86: =IF(Bloques[[#This Row],[Segmento]]=Parametros[Segmento],COUNTIFS(OFFSET(Ref_Segmento,Parametros[Fila]-1,0,Parametros[Alto]),Bloques[[#This Row],[Segmento]],OFFSET(Ref_Conteo,Parametros[Fila]-1,0,Parametros[Alto]),Bloques[[#This Row],[Bloque]],OFFSET(Ref_Conteo,Parametros[Fila]-1,-1,Parametros[Alto]),Bloques[[#This Row],[Grupo]])-1,0) -> 0 | G86: =COUNTIFS(OFFSET(Ref_Segmento,1,0,10000),Bloques[[#This Row],[Segmento]],OFFSET(Ref_Conteo,1,0,10000),Bloques[[#This Row],[Bloque]],OFFSET(Ref_Conteo,1,-1,10000),Bloques[[#This Row],[Grupo]])-1 -> 1 | H86: =COUNTIFS(OFFSET(Ref_Segmento,1,0,10000),Bloques[[#This Row],[Segmento]],OFFSET(Ref_Conteo,1,0,10000),Bloques[[#This Row],[Bloque]],OFFSET(Ref_Conteo,1,-1,10000),Bloques[[#This Row],[Grupo]]) -> 2
A87: Activos | B87: Activos | C87: Saldo acumulado en el fondo de cesantía a 31 de diciembre de 2022 | D87: =IF(Bloques[[#This Row],[Segmento]]=Parametros[Segmento],COUNTIFS(OFFSET(Ref_Segmento,Parametros[Fila]-1,0,Parametros[Alto]),Bloques[[#This Row],[Segmento]],OFFSET(Ref_Conteo,Parametros[Fila]-1,0,Parametros[Alto]),Bloques[[#This Row],[Bloque]],OFFSET(Ref_Conteo,Parametros[Fila]-1,-1,Parametros[Alto]),Bloques[[#This Row],[Grupo]])-1,0) -> 0 | G87: =COUNTIFS(OFFSET(Ref_Segmento,1,0,10000),Bloques[[#This Row],[Segmento]],OFFSET(Ref_Conteo,1,0,10000),Bloques[[#This Row],[Bloque]],OFFSET(Ref_Conteo,1,-1,10000),Bloques[[#This Row],[Grupo]])-1 -> 1 | H87: =COUNTIFS(OFFSET(Ref_Segmento,1,0,10000),Bloques[[#This Row],[Segmento]],OFFSET(Ref_Conteo,1,0,10000),Bloques[[#This Row],[Bloque]],OFFSET(Ref_Conteo,1,-1,10000),Bloques[[#This Row],[Grupo]]) -> 2
A88: Activos | B88: Activos | C88: Otros activos del disponibles | D88: =IF(Bloques[[#This Row],[Segmento]]=Parametros[Segmento],COUNTIFS(OFFSET(Ref_Segmento,Parametros[Fila]-1,0,Parametros[Alto]),Bloques[[#This Row],[Segmento]],OFFSET(Ref_Conteo,Parametros[Fila]-1,0,Parametros[Alto]),Bloques[[#This Row],[Bloque]],OFFSET(Ref_Conteo,Parametros[Fila]-1,-1,Parametros[Alto]),Bloques[[#This Row],[Grupo]])-1,0) -> 0 | G88: =COUNTIFS(OFFSET(Ref_Segmento,1,0,10000),Bloques[[#This Row],[Segmento]],OFFSET(Ref_Conteo,1,0,10000),Bloques[[#This Row],[Bloque]],OFFSET(Ref_Conteo,1,-1,10000),Bloques[[#This Row],[Grupo]])-1 -> 1 | H88: =COUNTIFS(OFFSET(Ref_Segmento,1,0,10000),Bloques[[#This Row],[Segmento]],OFFSET(Ref_Conteo,1,0,10000),Bloques[[#This Row],[Bloque]],OFFSET(Ref_Conteo,1,-1,10000),Bloques[[#This Row],[Grupo]]) -> 2
A89: Activos | B89: Activos | C89: Fiducuentas | D89: =IF(Bloques[[#This Row],[Segmento]]=Parametros[Segmento],COUNTIFS(OFFSET(Ref_Segmento,Parametros[Fila]-1,0,Parametros[Alto]),Bloques[[#This Row],[Segmento]],OFFSET(Ref_Conteo,Parametros[Fila]-1,0,Parametros[Alto]),Bloques[[#This Row],[Bloque]],OFFSET(Ref_Conteo,Parametros[Fila]-1,-1,Parametros[Alto]),Bloques[[#This Row],[Grupo]])-1,0) -> 0 | G89: =COUNTIFS(OFFSET(Ref_Segmento,1,0,10000),Bloques[[#This Row],[Segmento]],OFFSET(Ref_Conteo,1,0,10000),Bloques[[#This Row],[Bloque]],OFFSET(Ref_Conteo,1,-1,10000),Bloques[[#This Row],[Grupo]])-1 -> 1 | H89: =COUNTIFS(OFFSET(Ref_Segmento,1,0,10000),Bloques[[#This Row],[Segmento]],OFFSET(Ref_Conteo,1,0,10000),Bloques[[#This Row],[Bloque]],OFFSET(Ref_Conteo,1,-1,10000),Bloques[[#This Row],[Grupo]]) -> 2
A90: Activos | B90: Activos | C90: CDT y/o CDAT | D90: =IF(Bloques[[#This Row],[Segmento]]=Parametros[Segmento],COUNTIFS(OFFSET(Ref_Segmento,Parametros[Fila]-1,0,Parametros[Alto]),Bloques[[#This Row],[Segmento]],OFFSET(Ref_Conteo,Parametros[Fila]-1,0,Parametros[Alto]),Bloques[[#This Row],[Bloque]],OFFSET(Ref_Conteo,Parametros[Fila]-1,-1,Parametros[Alto]),Bloques[[#This Row],[Grupo]])-1,0) -> 0 | G90: =COUNTIFS(OFFSET(Ref_Segmento,1,0,10000),Bloques[[#This Row],[Segmento]],OFFSET(Ref_Conteo,1,0,10000),Bloques[[#This Row],[Bloque]],OFFSET(Ref_Conteo,1,-1,10000),Bloques[[#This Row],[Grupo]])-1 -> 1 | H90: =COUNTIFS(OFFSET(Ref_Segmento,1,0,10000),Bloques[[#This Row],[Segmento]],OFFSET(Ref_Conteo,1,0,10000),Bloques[[#This Row],[Bloque]],OFFSET(Ref_Conteo,1,-1,10000),Bloques[[#This Row],[Grupo]]) -> 2
A91: Activos | B91: Activos | C91: Inversiones en fondos | D91: =IF(Bloques[[#This Row],[Segmento]]=Parametros[Segmento],COUNTIFS(OFFSET(Ref_Segmento,Parametros[Fila]-1,0,Parametros[Alto]),Bloques[[#This Row],[Segmento]],OFFSET(Ref_Conteo,Parametros[Fila]-1,0,Parametros[Alto]),Bloques[[#This Row],[Bloque]],OFFSET(Ref_Conteo,Parametros[Fila]-1,-1,Parametros[Alto]),Bloques[[#This Row],[Grupo]])-1,0) -> 0 | G91: =COUNTIFS(OFFSET(Ref_Segmento,1,0,10000),Bloques[[#This Row],[Segmento]],OFFSET(Ref_Conteo,1,0,10000),Bloques[[#This Row],[Bloque]],OFFSET(Ref_Conteo,1,-1,10000),Bloques[[#This Row],[Grupo]])-1 -> 1 | H91: =COUNTIFS(OFFSET(Ref_Segmento,1,0,10000),Bloques[[#This Row],[Segmento]],OFFSET(Ref_Conteo,1,0,10000),Bloques[[#This Row],[Bloque]],OFFSET(Ref_Conteo,1,-1,10000),Bloques[[#This Row],[Grupo]]) -> 2
A92: Activos | B92: Activos | C92: Otros ahorros e inversiones | D92: =IF(Bloques[[#This Row],[Segmento]]=Parametros[Segmento],COUNTIFS(OFFSET(Ref_Segmento,Parametros[Fila]-1,0,Parametros[Alto]),Bloques[[#This Row],[Segmento]],OFFSET(Ref_Conteo,Parametros[Fila]-1,0,Parametros[Alto]),Bloques[[#This Row],[Bloque]],OFFSET(Ref_Conteo,Parametros[Fila]-1,-1,Parametros[Alto]),Bloques[[#This Row],[Grupo]])-1,0) -> 0 | G92: =COUNTIFS(OFFSET(Ref_Segmento,1,0,10000),Bloques[[#This Row],[Segmento]],OFFSET(Ref_Conteo,1,0,10000),Bloques[[#This Row],[Bloque]],OFFSET(Ref_Conteo,1,-1,10000),Bloques[[#This Row],[Grupo]])-1 -> 1 | H92: =COUNTIFS(OFFSET(Ref_Segmento,1,0,10000),Bloques[[#This Row],[Segmento]],OFFSET(Ref_Conteo,1,0,10000),Bloques[[#This Row],[Bloque]],OFFSET(Ref_Conteo,1,-1,10000),Bloques[[#This Row],[Grupo]]) -> 2
A93: Activos | B93: Activos | C93: Cuentas por cobrar a terceros | D93: =IF(Bloques[[#This Row],[Segmento]]=Parametros[Segmento],COUNTIFS(OFFSET(Ref_Segmento,Parametros[Fila]-1,0,Parametros[Alto]),Bloques[[#This Row],[Segmento]],OFFSET(Ref_Conteo,Parametros[Fila]-1,0,Parametros[Alto]),Bloques[[#This Row],[Bloque]],OFFSET(Ref_Conteo,Parametros[Fila]-1,-1,Parametros[Alto]),Bloques[[#This Row],[Grupo]])-1,0) -> 0 | G93: =COUNTIFS(OFFSET(Ref_Segmento,1,0,10000),Bloques[[#This Row],[Segmento]],OFFSET(Ref_Conteo,1,0,10000),Bloques[[#This Row],[Bloque]],OFFSET(Ref_Conteo,1,-1,10000),Bloques[[#This Row],[Grupo]])-1 -> 1 | H93: =COUNTIFS(OFFSET(Ref_Segmento,1,0,10000),Bloques[[#This Row],[Segmento]],OFFSET(Ref_Conteo,1,0,10000),Bloques[[#This Row],[Bloque]],OFFSET(Ref_Conteo,1,-1,10000),Bloques[[#This Row],[Grupo]]) -> 2
A94: Activos | B94: Activos | C94: Otras cuentas por cobrar | D94: =IF(Bloques[[#This Row],[Segmento]]=Parametros[Segmento],COUNTIFS(OFFSET(Ref_Segmento,Parametros[Fila]-1,0,Parametros[Alto]),Bloques[[#This Row],[Segmento]],OFFSET(Ref_Conteo,Parametros[Fila]-1,0,Parametros[Alto]),Bloques[[#This Row],[Bloque]],OFFSET(Ref_Conteo,Parametros[Fila]-1,-1,Parametros[Alto]),Bloques[[#This Row],[Grupo]])-1,0) -> 0 | G94: =COUNTIFS(OFFSET(Ref_Segmento,1,0,10000),Bloques[[#This Row],[Segmento]],OFFSET(Ref_Conteo,1,0,10000),Bloques[[#This Row],[Bloque]],OFFSET(Ref_Conteo,1,-1,10000),Bloques[[#This Row],[Grupo]])-1 -> 1 | H94: =COUNTIFS(OFFSET(Ref_Segmento,1,0,10000),Bloques[[#This Row],[Segmento]],OFFSET(Ref_Conteo,1,0,10000),Bloques[[#This Row],[Bloque]],OFFSET(Ref_Conteo,1,-1,10000),Bloques[[#This Row],[Grupo]]) -> 2
A95: Activos | B95: Activos | C95: Inventarios | D95: =IF(Bloques[[#This Row],[Segmento]]=Parametros[Segmento],COUNTIFS(OFFSET(Ref_Segmento,Parametros[Fila]-1,0,Parametros[Alto]),Bloques[[#This Row],[Segmento]],OFFSET(Ref_Conteo,Parametros[Fila]-1,0,Parametros[Alto]),Bloques[[#This Row],[Bloque]],OFFSET(Ref_Conteo,Parametros[Fila]-1,-1,Parametros[Alto]),Bloques[[#This Row],[Grupo]])-1,0) -> 0 | G95: =COUNTIFS(OFFSET(Ref_Segmento,1,0,10000),Bloques[[#This Row],[Segmento]],OFFSET(Ref_Conteo,1,0,10000),Bloques[[#This Row],[Bloque]],OFFSET(Ref_Conteo,1,-1,10000),Bloques[[#This Row],[Grupo]])-1 -> 1 | H95: =COUNTIFS(OFFSET(Ref_Segmento,1,0,10000),Bloques[[#This Row],[Segmento]],OFFSET(Ref_Conteo,1,0,10000),Bloques[[#This Row],[Bloque]],OFFSET(Ref_Conteo,1,-1,10000),Bloques[[#This Row],[Grupo]]) -> 2
A96: Activos | B96: Activos | C96: Muebles y enseres | D96: =IF(Bloques[[#This Row],[Segmento]]=Parametros[Segmento],COUNTIFS(OFFSET(Ref_Segmento,Parametros[Fila]-1,0,Parametros[Alto]),Bloques[[#This Row],[Segmento]],OFFSET(Ref_Conteo,Parametros[Fila]-1,0,Parametros[Alto]),Bloques[[#This Row],[Bloque]],OFFSET(Ref_Conteo,Parametros[Fila]-1,-1,Parametros[Alto]),Bloques[[#This Row],[Grupo]])-1,0) -> 0 | G96: =COUNTIFS(OFFSET(Ref_Segmento,1,0,10000),Bloques[[#This Row],[Segmento]],OFFSET(Ref_Conteo,1,0,10000),Bloques[[#This Row],[Bloque]],OFFSET(Ref_Conteo,1,-1,10000),Bloques[[#This Row],[Grupo]])-1 -> 1 | H96: =COUNTIFS(OFFSET(Ref_Segmento,1,0,10000),Bloques[[#This Row],[Segmento]],OFFSET(Ref_Conteo,1,0,10000),Bloques[[#This Row],[Bloque]],OFFSET(Ref_Conteo,1,-1,10000),Bloques[[#This Row],[Grupo]]) -> 2
A97: Activos | B97: Activos | C97: Maquinaria y equipo | D97: =IF(Bloques[[#This Row],[Segmento]]=Parametros[Segmento],COUNTIFS(OFFSET(Ref_Segmento,Parametros[Fila]-1,0,Parametros[Alto]),Bloques[[#This Row],[Segmento]],OFFSET(Ref_Conteo,Parametros[Fila]-1,0,Parametros[Alto]),Bloques[[#This Row],[Bloque]],OFFSET(Ref_Conteo,Parametros[Fila]-1,-1,Parametros[Alto]),Bloques[[#This Row],[Grupo]])-1,0) -> 0 | G97: =COUNTIFS(OFFSET(Ref_Segmento,1,0,10000),Bloques[[#This Row],[Segmento]],OFFSET(Ref_Conteo,1,0,10000),Bloques[[#This Row],[Bloque]],OFFSET(Ref_Conteo,1,-1,10000),Bloques[[#This Row],[Grupo]])-1 -> 1 | H97: =COUNTIFS(OFFSET(Ref_Segmento,1,0,10000),Bloques[[#This Row],[Segmento]],OFFSET(Ref_Conteo,1,0,10000),Bloques[[#This Row],[Bloque]],OFFSET(Ref_Conteo,1,-1,10000),Bloques[[#This Row],[Grupo]]) -> 2
A98: Activos | B98: Activos | C98: Otros bienes de propiedad, planta y equipo | D98: =IF(Bloques[[#This Row],[Segmento]]=Parametros[Segmento],COUNTIFS(OFFSET(Ref_Segmento,Parametros[Fila]-1,0,Parametros[Alto]),Bloques[[#This Row],[Segmento]],OFFSET(Ref_Conteo,Parametros[Fila]-1,0,Parametros[Alto]),Bloques[[#This Row],[Bloque]],OFFSET(Ref_Conteo,Parametros[Fila]-1,-1,Parametros[Alto]),Bloques[[#This Row],[Grupo]])-1,0) -> 0 | G98: =COUNTIFS(OFFSET(Ref_Segmento,1,0,10000),Bloques[[#This Row],[Segmento]],OFFSET(Ref_Conteo,1,0,10000),Bloques[[#This Row],[Bloque]],OFFSET(Ref_Conteo,1,-1,10000),Bloques[[#This Row],[Grupo]])-1 -> 1 | H98: =COUNTIFS(OFFSET(Ref_Segmento,1,0,10000),Bloques[[#This Row],[Segmento]],OFFSET(Ref_Conteo,1,0,10000),Bloques[[#This Row],[Bloque]],OFFSET(Ref_Conteo,1,-1,10000),Bloques[[#This Row],[Grupo]]) -> 2
A99: Activos | B99: Activos | C99: Bienes intangibles | D99: =IF(Bloques[[#This Row],[Segmento]]=Parametros[Segmento],COUNTIFS(OFFSET(Ref_Segmento,Parametros[Fila]-1,0,Parametros[Alto]),Bloques[[#This Row],[Segmento]],OFFSET(Ref_Conteo,Parametros[Fila]-1,0,Parametros[Alto]),Bloques[[#This Row],[Bloque]],OFFSET(Ref_Conteo,Parametros[Fila]-1,-1,Parametros[Alto]),Bloques[[#This Row],[Grupo]])-1,0) -> 0 | G99: =COUNTIFS(OFFSET(Ref_Segmento,1,0,10000),Bloques[[#This Row],[Segmento]],OFFSET(Ref_Conteo,1,0,10000),Bloques[[#This Row],[Bloque]],OFFSET(Ref_Conteo,1,-1,10000),Bloques[[#This Row],[Grupo]])-1 -> 1 | H99: =COUNTIFS(OFFSET(Ref_Segmento,1,0,10000),Bloques[[#This Row],[Segmento]],OFFSET(Ref_Conteo,1,0,10000),Bloques[[#This Row],[Bloque]],OFFSET(Ref_Conteo,1,-1,10000),Bloques[[#This Row],[Grupo]]) -> 2
A100: Activos | B100: Activos | C100: Criptomonedas | D100: =IF(Bloques[[#This Row],[Segmento]]=Parametros[Segmento],COUNTIFS(OFFSET(Ref_Segmento,Parametros[Fila]-1,0,Parametros[Alto]),Bloques[[#This Row],[Segmento]],OFFSET(Ref_Conteo,Parametros[Fila]-1,0,Parametros[Alto]),Bloques[[#This Row],[Bloque]],OFFSET(Ref_Conteo,Parametros[Fila]-1,-1,Parametros[Alto]),Bloques[[#This Row],[Grupo]])-1,0) -> 0 | G100: =COUNTIFS(OFFSET(Ref_Segmento,1,0,10000),Bloques[[#This Row],[Segmento]],OFFSET(Ref_Conteo,1,0,10000),Bloques[[#This Row],[Bloque]],OFFSET(Ref_Conteo,1,-1,10000),Bloques[[#This Row],[Grupo]])-1 -> 1 | H100: =COUNTIFS(OFFSET(Ref_Segmento,1,0,10000),Bloques[[#This Row],[Segmento]],OFFSET(Ref_Conteo,1,0,10000),Bloques[[#This Row],[Bloque]],OFFSET(Ref_Conteo,1,-1,10000),Bloques[[#This Row],[Grupo]]) -> 2
A101: Activos | B101: Activos | C101: Otros bienes | D101: =IF(Bloques[[#This Row],[Segmento]]=Parametros[Segmento],COUNTIFS(OFFSET(Ref_Segmento,Parametros[Fila]-1,0,Parametros[Alto]),Bloques[[#This Row],[Segmento]],OFFSET(Ref_Conteo,Parametros[Fila]-1,0,Parametros[Alto]),Bloques[[#This Row],[Bloque]],OFFSET(Ref_Conteo,Parametros[Fila]-1,-1,Parametros[Alto]),Bloques[[#This Row],[Grupo]])-1,0) -> 0 | G101: =COUNTIFS(OFFSET(Ref_Segmento,1,0,10000),Bloques[[#This Row],[Segmento]],OFFSET(Ref_Conteo,1,0,10000),Bloques[[#This Row],[Bloque]],OFFSET(Ref_Conteo,1,-1,10000),Bloques[[#This Row],[Grupo]])-1 -> 1 | H101: =COUNTIFS(OFFSET(Ref_Segmento,1,0,10000),Bloques[[#This Row],[Segmento]],OFFSET(Ref_Conteo,1,0,10000),Bloques[[#This Row],[Bloque]],OFFSET(Ref_Conteo,1,-1,10000),Bloques[[#This Row],[Grupo]]) -> 2
A102: Descuentos Tributarios | B102: Descuentos Tributarios | C102: Impuestos pagados en el exterior | D102: =IF(Bloques[[#This Row],[Segmento]]=Parametros[Segmento],COUNTIFS(OFFSET(Ref_Segmento,Parametros[Fila]-1,0,Parametros[Alto]),Bloques[[#This Row],[Segmento]],OFFSET(Ref_Conteo,Parametros[Fila]-1,0,Parametros[Alto]),Bloques[[#This Row],[Bloque]],OFFSET(Ref_Conteo,Parametros[Fila]-1,-1,Parametros[Alto]),Bloques[[#This Row],[Grupo]])-1,0) -> 0 | G102: =COUNTIFS(OFFSET(Ref_Segmento,1,0,10000),Bloques[[#This Row],[Segmento]],OFFSET(Ref_Conteo,1,0,10000),Bloques[[#This Row],[Bloque]],OFFSET(Ref_Conteo,1,-1,10000),Bloques[[#This Row],[Grupo]])-1 -> 1 | H102: =COUNTIFS(OFFSET(Ref_Segmento,1,0,10000),Bloques[[#This Row],[Segmento]],OFFSET(Ref_Conteo,1,0,10000),Bloques[[#This Row],[Bloque]],OFFSET(Ref_Conteo,1,-1,10000),Bloques[[#This Row],[Grupo]]) -> 2
A103: Descuentos Tributarios | B103: Descuentos Tributarios | C103: Impuestos pagados en el exterior por rentas pasivas - ECE | D103: =IF(Bloques[[#This Row],[Segmento]]=Parametros[Segmento],COUNTIFS(OFFSET(Ref_Segmento,Parametros[Fila]-1,0,Parametros[Alto]),Bloques[[#This Row],[Segmento]],OFFSET(Ref_Conteo,Parametros[Fila]-1,0,Parametros[Alto]),Bloques[[#This Row],[Bloque]],OFFSET(Ref_Conteo,Parametros[Fila]-1,-1,Parametros[Alto]),Bloques[[#This Row],[Grupo]])-1,0) -> 0 | G103: =COUNTIFS(OFFSET(Ref_Segmento,1,0,10000),Bloques[[#This Row],[Segmento]],OFFSET(Ref_Conteo,1,0,10000),Bloques[[#This Row],[Bloque]],OFFSET(Ref_Conteo,1,-1,10000),Bloques[[#This Row],[Grupo]])-1 -> 1 | H103: =COUNTIFS(OFFSET(Ref_Segmento,1,0,10000),Bloques[[#This Row],[Segmento]],OFFSET(Ref_Conteo,1,0,10000),Bloques[[#This Row],[Bloque]],OFFSET(Ref_Conteo,1,-1,10000),Bloques[[#This Row],[Grupo]]) -> 2
A104: Descuentos Tributarios | B104: Descuentos Tributarios | C104: Impuesto pagados en el exterior por ganancias ocasionales | D104: =IF(Bloques[[#This Row],[Segmento]]=Parametros[Segmento],COUNTIFS(OFFSET(Ref_Segmento,Parametros[Fila]-1,0,Parametros[Alto]),Bloques[[#This Row],[Segmento]],OFFSET(Ref_Conteo,Parametros[Fila]-1,0,Parametros[Alto]),Bloques[[#This Row],[Bloque]],OFFSET(Ref_Conteo,Parametros[Fila]-1,-1,Parametros[Alto]),Bloques[[#This Row],[Grupo]])-1,0) -> 0 | G104: =COUNTIFS(OFFSET(Ref_Segmento,1,0,10000),Bloques[[#This Row],[Segmento]],OFFSET(Ref_Conteo,1,0,10000),Bloques[[#This Row],[Bloque]],OFFSET(Ref_Conteo,1,-1,10000),Bloques[[#This Row],[Grupo]])-1 -> 1 | H104: =COUNTIFS(OFFSET(Ref_Segmento,1,0,10000),Bloques[[#This Row],[Segmento]],OFFSET(Ref_Conteo,1,0,10000),Bloques[[#This Row],[Bloque]],OFFSET(Ref_Conteo,1,-1,10000),Bloques[[#This Row],[Grupo]]) -> 2
A105: Deudas | B105: Deudas | C105: Tarjetas de crédito | D105: =IF(Bloques[[#This Row],[Segmento]]=Parametros[Segmento],COUNTIFS(OFFSET(Ref_Segmento,Parametros[Fila]-1,0,Parametros[Alto]),Bloques[[#This Row],[Segmento]],OFFSET(Ref_Conteo,Parametros[Fila]-1,0,Parametros[Alto]),Bloques[[#This Row],[Bloque]],OFFSET(Ref_Conteo,Parametros[Fila]-1,-1,Parametros[Alto]),Bloques[[#This Row],[Grupo]])-1,0) -> 0 | G105: =COUNTIFS(OFFSET(Ref_Segmento,1,0,10000),Bloques[[#This Row],[Segmento]],OFFSET(Ref_Conteo,1,0,10000),Bloques[[#This Row],[Bloque]],OFFSET(Ref_Conteo,1,-1,10000),Bloques[[#This Row],[Grupo]])-1 -> 1 | H105: =COUNTIFS(OFFSET(Ref_Segmento,1,0,10000),Bloques[[#This Row],[Segmento]],OFFSET(Ref_Conteo,1,0,10000),Bloques[[#This Row],[Bloque]],OFFSET(Ref_Conteo,1,-1,10000),Bloques[[#This Row],[Grupo]]) -> 2
A106: Deudas | B106: Deudas | C106: Créditos con entidades financieras | D106: =IF(Bloques[[#This Row],[Segmento]]=Parametros[Segmento],COUNTIFS(OFFSET(Ref_Segmento,Parametros[Fila]-1,0,Parametros[Alto]),Bloques[[#This Row],[Segmento]],OFFSET(Ref_Conteo,Parametros[Fila]-1,0,Parametros[Alto]),Bloques[[#This Row],[Bloque]],OFFSET(Ref_Conteo,Parametros[Fila]-1,-1,Parametros[Alto]),Bloques[[#This Row],[Grupo]])-1,0) -> 0 | G106: =COUNTIFS(OFFSET(Ref_Segmento,1,0,10000),Bloques[[#This Row],[Segmento]],OFFSET(Ref_Conteo,1,0,10000),Bloques[[#This Row],[Bloque]],OFFSET(Ref_Conteo,1,-1,10000),Bloques[[#This Row],[Grupo]])-1 -> 1 | H106: =COUNTIFS(OFFSET(Ref_Segmento,1,0,10000),Bloques[[#This Row],[Segmento]],OFFSET(Ref_Conteo,1,0,10000),Bloques[[#This Row],[Bloque]],OFFSET(Ref_Conteo,1,-1,10000),Bloques[[#This Row],[Grupo]]) -> 2
A107: Deudas | B107: Deudas | C107: Créditos con cooperativas | D107: =IF(Bloques[[#This Row],[Segmento]]=Parametros[Segmento],COUNTIFS(OFFSET(Ref_Segmento,Parametros[Fila]-1,0,Parametros[Alto]),Bloques[[#This Row],[Segmento]],OFFSET(Ref_Conteo,Parametros[Fila]-1,0,Parametros[Alto]),Bloques[[#This Row],[Bloque]],OFFSET(Ref_Conteo,Parametros[Fila]-1,-1,Parametros[Alto]),Bloques[[#This Row],[Grupo]])-1,0) -> 0 | G107: =COUNTIFS(OFFSET(Ref_Segmento,1,0,10000),Bloques[[#This Row],[Segmento]],OFFSET(Ref_Conteo,1,0,10000),Bloques[[#This Row],[Bloque]],OFFSET(Ref_Conteo,1,-1,10000),Bloques[[#This Row],[Grupo]])-1 -> 1 | H107: =COUNTIFS(OFFSET(Ref_Segmento,1,0,10000),Bloques[[#This Row],[Segmento]],OFFSET(Ref_Conteo,1,0,10000),Bloques[[#This Row],[Bloque]],OFFSET(Ref_Conteo,1,-1,10000),Bloques[[#This Row],[Grupo]]) -> 2
A108: Deudas | B108: Deudas | C108: Cuentas por pagar a particulares | D108: =IF(Bloques[[#This Row],[Segmento]]=Parametros[Segmento],COUNTIFS(OFFSET(Ref_Segmento,Parametros[Fila]-1,0,Parametros[Alto]),Bloques[[#This Row],[Segmento]],OFFSET(Ref_Conteo,Parametros[Fila]-1,0,Parametros[Alto]),Bloques[[#This Row],[Bloque]],OFFSET(Ref_Conteo,Parametros[Fila]-1,-1,Parametros[Alto]),Bloques[[#This Row],[Grupo]])-1,0) -> 0 | G108: =COUNTIFS(OFFSET(Ref_Segmento,1,0,10000),Bloques[[#This Row],[Segmento]],OFFSET(Ref_Conteo,1,0,10000),Bloques[[#This Row],[Bloque]],OFFSET(Ref_Conteo,1,-1,10000),Bloques[[#This Row],[Grupo]])-1 -> 1 | H108: =COUNTIFS(OFFSET(Ref_Segmento,1,0,10000),Bloques[[#This Row],[Segmento]],OFFSET(Ref_Conteo,1,0,10000),Bloques[[#This Row],[Bloque]],OFFSET(Ref_Conteo,1,-1,10000),Bloques[[#This Row],[Grupo]]) -> 2
A109: Deudas | B109: Deudas | C109: Impuesto por pagar | D109: =IF(Bloques[[#This Row],[Segmento]]=Parametros[Segmento],COUNTIFS(OFFSET(Ref_Segmento,Parametros[Fila]-1,0,Parametros[Alto]),Bloques[[#This Row],[Segmento]],OFFSET(Ref_Conteo,Parametros[Fila]-1,0,Parametros[Alto]),Bloques[[#This Row],[Bloque]],OFFSET(Ref_Conteo,Parametros[Fila]-1,-1,Parametros[Alto]),Bloques[[#This Row],[Grupo]])-1,0) -> 0 | G109: =COUNTIFS(OFFSET(Ref_Segmento,1,0,10000),Bloques[[#This Row],[Segmento]],OFFSET(Ref_Conteo,1,0,10000),Bloques[[#This Row],[Bloque]],OFFSET(Ref_Conteo,1,-1,10000),Bloques[[#This Row],[Grupo]])-1 -> 1 | H109: =COUNTIFS(OFFSET(Ref_Segmento,1,0,10000),Bloques[[#This Row],[Segmento]],OFFSET(Ref_Conteo,1,0,10000),Bloques[[#This Row],[Bloque]],OFFSET(Ref_Conteo,1,-1,10000),Bloques[[#This Row],[Grupo]]) -> 2
A110: Deudas | B110: Deudas | C110: Otros pasivos | D110: =IF(Bloques[[#This Row],[Segmento]]=Parametros[Segmento],COUNTIFS(OFFSET(Ref_Segmento,Parametros[Fila]-1,0,Parametros[Alto]),Bloques[[#This Row],[Segmento]],OFFSET(Ref_Conteo,Parametros[Fila]-1,0,Parametros[Alto]),Bloques[[#This Row],[Bloque]],OFFSET(Ref_Conteo,Parametros[Fila]-1,-1,Parametros[Alto]),Bloques[[#This Row],[Grupo]])-1,0) -> 0 | G110: =COUNTIFS(OFFSET(Ref_Segmento,1,0,10000),Bloques[[#This Row],[Segmento]],OFFSET(Ref_Conteo,1,0,10000),Bloques[[#This Row],[Bloque]],OFFSET(Ref_Conteo,1,-1,10000),Bloques[[#This Row],[Grupo]])-1 -> 1 | H110: =COUNTIFS(OFFSET(Ref_Segmento,1,0,10000),Bloques[[#This Row],[Segmento]],OFFSET(Ref_Conteo,1,0,10000),Bloques[[#This Row],[Bloque]],OFFSET(Ref_Conteo,1,-1,10000),Bloques[[#This Row],[Grupo]]) -> 2
A111: Info. Activos Ext. | B111: Info. Activos Ext. | C111: Información de los activos poseídos en el exterior por el contribuyente | D111: =IF(Bloques[[#This Row],[Segmento]]=Parametros[Segmento],COUNTIFS(OFFSET(Ref_Segmento,Parametros[Fila]-1,0,Parametros[Alto]),Bloques[[#This Row],[Segmento]],OFFSET(Ref_Conteo,Parametros[Fila]-1,0,Parametros[Alto]),Bloques[[#This Row],[Bloque]],OFFSET(Ref_Conteo,Parametros[Fila]-1,-1,Parametros[Alto]),Bloques[[#This Row],[Grupo]])-1,0) -> 0 | E111: 20 | F111: 0 | G111: =COUNTIFS(OFFSET(Ref_Segmento,1,0,10000),Bloques[[#This Row],[Segmento]],OFFSET(Ref_Conteo,1,0,10000),Bloques[[#This Row],[Bloque]],OFFSET(Ref_Conteo,1,-1,10000),Bloques[[#This Row],[Grupo]])-1 -> 20 | H111: =COUNTIFS(OFFSET(Ref_Segmento,1,0,10000),Bloques[[#This Row],[Segmento]],OFFSET(Ref_Conteo,1,0,10000),Bloques[[#This Row],[Bloque]],OFFSET(Ref_Conteo,1,-1,10000),Bloques[[#This Row],[Grupo]]) -> 21
A112: Intereses Presuntivos | B112: Intereses Presuntivos | C112: Préstamos vigentes en el 2022 | D112: =IF(Bloques[[#This Row],[Segmento]]=Parametros[Segmento],COUNTIFS(OFFSET(Ref_Segmento,Parametros[Fila]-1,0,Parametros[Alto]),Bloques[[#This Row],[Segmento]],OFFSET(Ref_Conteo,Parametros[Fila]-1,0,Parametros[Alto]),Bloques[[#This Row],[Bloque]],OFFSET(Ref_Conteo,Parametros[Fila]-1,-1,Parametros[Alto]),Bloques[[#This Row],[Grupo]])-1,0) -> 0 | G112: =COUNTIFS(OFFSET(Ref_Segmento,1,0,10000),Bloques[[#This Row],[Segmento]],OFFSET(Ref_Conteo,1,0,10000),Bloques[[#This Row],[Bloque]],OFFSET(Ref_Conteo,1,-1,10000),Bloques[[#This Row],[Grupo]])-1 -> 1 | H112: =COUNTIFS(OFFSET(Ref_Segmento,1,0,10000),Bloques[[#This Row],[Segmento]],OFFSET(Ref_Conteo,1,0,10000),Bloques[[#This Row],[Bloque]],OFFSET(Ref_Conteo,1,-1,10000),Bloques[[#This Row],[Grupo]]) -> 2
A113: Reajuste fiscal de los activos | B113: Reajuste fiscal de los activos | C113: Acciones y/o aportes sociales poseídos a 31 de diciembre de 2022 | D113: =IF(Bloques[[#This Row],[Segmento]]=Parametros[Segmento],COUNTIFS(OFFSET(Ref_Segmento,Parametros[Fila]-1,0,Parametros[Alto]),Bloques[[#This Row],[Segmento]],OFFSET(Ref_Conteo,Parametros[Fila]-1,0,Parametros[Alto]),Bloques[[#This Row],[Bloque]],OFFSET(Ref_Conteo,Parametros[Fila]-1,-1,Parametros[Alto]),Bloques[[#This Row],[Grupo]])-1,0) -> 0 | G113: =COUNTIFS(OFFSET(Ref_Segmento,1,0,10000),Bloques[[#This Row],[Segmento]],OFFSET(Ref_Conteo,1,0,10000),Bloques[[#This Row],[Bloque]],OFFSET(Ref_Conteo,1,-1,10000),Bloques[[#This Row],[Grupo]])-1 -> 1 | H113: =COUNTIFS(OFFSET(Ref_Segmento,1,0,10000),Bloques[[#This Row],[Segmento]],OFFSET(Ref_Conteo,1,0,10000),Bloques[[#This Row],[Bloque]],OFFSET(Ref_Conteo,1,-1,10000),Bloques[[#This Row],[Grupo]]) -> 2
A114: Reajuste fiscal de los activos | B114: Reajuste fiscal de los activos | C114: Vehículos (carros, motocicletas, camionetas, etc.) poseídos a 31 de diciembre de 2022 | D114: =IF(Bloques[[#This Row],[Segmento]]=Parametros[Segmento],COUNTIFS(OFFSET(Ref_Segmento,Parametros[Fila]-1,0,Parametros[Alto]),Bloques[[#This Row],[Segmento]],OFFSET(Ref_Conteo,Parametros[Fila]-1,0,Parametros[Alto]),Bloques[[#This Row],[Bloque]],OFFSET(Ref_Conteo,Parametros[Fila]-1,-1,Parametros[Alto]),Bloques[[#This Row],[Grupo]])-1,0) -> 0 | G114: =COUNTIFS(OFFSET(Ref_Segmento,1,0,10000),Bloques[[#This Row],[Segmento]],OFFSET(Ref_Conteo,1,0,10000),Bloques[[#This Row],[Bloque]],OFFSET(Ref_Conteo,1,-1,10000),Bloques[[#This Row],[Grupo]])-1 -> 1 | H114: =COUNTIFS(OFFSET(Ref_Segmento,1,0,10000),Bloques[[#This Row],[Segmento]],OFFSET(Ref_Conteo,1,0,10000),Bloques[[#This Row],[Bloque]],OFFSET(Ref_Conteo,1,-1,10000),Bloques[[#This Row],[Grupo]]) -> 2
A115: Reajuste fiscal de los activos | B115: Reajuste fiscal de los activos | C115: Bienes inmuebles poseídos a 31 de diciembre de 2022 | D115: =IF(Bloques[[#This Row],[Segmento]]=Parametros[Segmento],COUNTIFS(OFFSET(Ref_Segmento,Parametros[Fila]-1,0,Parametros[Alto]),Bloques[[#This Row],[Segmento]],OFFSET(Ref_Conteo,Parametros[Fila]-1,0,Parametros[Alto]),Bloques[[#This Row],[Bloque]],OFFSET(Ref_Conteo,Parametros[Fila]-1,-1,Parametros[Alto]),Bloques[[#This Row],[Grupo]])-1,0) -> 0 | G115: =COUNTIFS(OFFSET(Ref_Segmento,1,0,10000),Bloques[[#This Row],[Segmento]],OFFSET(Ref_Conteo,1,0,10000),Bloques[[#This Row],[Bloque]],OFFSET(Ref_Conteo,1,-1,10000),Bloques[[#This Row],[Grupo]])-1 -> 1 | H115: =COUNTIFS(OFFSET(Ref_Segmento,1,0,10000),Bloques[[#This Row],[Segmento]],OFFSET(Ref_Conteo,1,0,10000),Bloques[[#This Row],[Bloque]],OFFSET(Ref_Conteo,1,-1,10000),Bloques[[#This Row],[Grupo]]) -> 2
A116: RentaHonorariosServicios | B116: RentaHonorariosServicios | C116: Honorarios | D116: =IF(Bloques[[#This Row],[Segmento]]=Parametros[Segmento],COUNTIFS(OFFSET(Ref_Segmento,Parametros[Fila]-1,0,Parametros[Alto]),Bloques[[#This Row],[Segmento]],OFFSET(Ref_Conteo,Parametros[Fila]-1,0,Parametros[Alto]),Bloques[[#This Row],[Bloque]],OFFSET(Ref_Conteo,Parametros[Fila]-1,-1,Parametros[Alto]),Bloques[[#This Row],[Grupo]])-1,0) -> 0 | G116: =COUNTIFS(OFFSET(Ref_Segmento,1,0,10000),Bloques[[#This Row],[Segmento]],OFFSET(Ref_Conteo,1,0,10000),Bloques[[#This Row],[Bloque]],OFFSET(Ref_Conteo,1,-1,10000),Bloques[[#This Row],[Grupo]])-1 -> 1 | H116: =COUNTIFS(OFFSET(Ref_Segmento,1,0,10000),Bloques[[#This Row],[Segmento]],OFFSET(Ref_Conteo,1,0,10000),Bloques[[#This Row],[Bloque]],OFFSET(Ref_Conteo,1,-1,10000),Bloques[[#This Row],[Grupo]]) -> 2
A117: RentaHonorariosServicios | B117: RentaHonorariosServicios | C117: Compensación de servicios personales | D117: =IF(Bloques[[#This Row],[Segmento]]=Parametros[Segmento],COUNTIFS(OFFSET(Ref_Segmento,Parametros[Fila]-1,0,Parametros[Alto]),Bloques[[#This Row],[Segmento]],OFFSET(Ref_Conteo,Parametros[Fila]-1,0,Parametros[Alto]),Bloques[[#This Row],[Bloque]],OFFSET(Ref_Conteo,Parametros[Fila]-1,-1,Parametros[Alto]),Bloques[[#This Row],[Grupo]])-1,0) -> 0 | G117: =COUNTIFS(OFFSET(Ref_Segmento,1,0,10000),Bloques[[#This Row],[Segmento]],OFFSET(Ref_Conteo,1,0,10000),Bloques[[#This Row],[Bloque]],OFFSET(Ref_Conteo,1,-1,10000),Bloques[[#This Row],[Grupo]])-1 -> 1 | H117: =COUNTIFS(OFFSET(Ref_Segmento,1,0,10000),Bloques[[#This Row],[Segmento]],OFFSET(Ref_Conteo,1,0,10000),Bloques[[#This Row],[Bloque]],OFFSET(Ref_Conteo,1,-1,10000),Bloques[[#This Row],[Grupo]]) -> 2
A118: RentaHonorariosServicios | B118: RentaHonorariosServicios | C118: Comisiones | D118: =IF(Bloques[[#This Row],[Segmento]]=Parametros[Segmento],COUNTIFS(OFFSET(Ref_Segmento,Parametros[Fila]-1,0,Parametros[Alto]),Bloques[[#This Row],[Segmento]],OFFSET(Ref_Conteo,Parametros[Fila]-1,0,Parametros[Alto]),Bloques[[#This Row],[Bloque]],OFFSET(Ref_Conteo,Parametros[Fila]-1,-1,Parametros[Alto]),Bloques[[#This Row],[Grupo]])-1,0) -> 0 | G118: =COUNTIFS(OFFSET(Ref_Segmento,1,0,10000),Bloques[[#This Row],[Segmento]],OFFSET(Ref_Conteo,1,0,10000),Bloques[[#This Row],[Bloque]],OFFSET(Ref_Conteo,1,-1,10000),Bloques[[#This Row],[Grupo]])-1 -> 1 | H118: =COUNTIFS(OFFSET(Ref_Segmento,1,0,10000),Bloques[[#This Row],[Segmento]],OFFSET(Ref_Conteo,1,0,10000),Bloques[[#This Row],[Bloque]],OFFSET(Ref_Conteo,1,-1,10000),Bloques[[#This Row],[Grupo]]) -> 2
A119: Rentas de Trabajo | B119: Rentas de Trabajo | C119: Honorarios | D119: =IF(Bloques[[#This Row],[Segmento]]=Parametros[Segmento],COUNTIFS(OFFSET(Ref_Segmento,Parametros[Fila]-1,0,Parametros[Alto]),Bloques[[#This Row],[Segmento]],OFFSET(Ref_Conteo,Parametros[Fila]-1,0,Parametros[Alto]),Bloques[[#This Row],[Bloque]],OFFSET(Ref_Conteo,Parametros[Fila]-1,-1,Parametros[Alto]),Bloques[[#This Row],[Grupo]])-1,0) -> 0 | G119: =COUNTIFS(OFFSET(Ref_Segmento,1,0,10000),Bloques[[#This Row],[Segmento]],OFFSET(Ref_Conteo,1,0,10000),Bloques[[#This Row],[Bloque]],OFFSET(Ref_Conteo,1,-1,10000),Bloques[[#This Row],[Grupo]])-1 -> 1 | H119: =COUNTIFS(OFFSET(Ref_Segmento,1,0,10000),Bloques[[#This Row],[Segmento]],OFFSET(Ref_Conteo,1,0,10000),Bloques[[#This Row],[Bloque]],OFFSET(Ref_Conteo,1,-1,10000),Bloques[[#This Row],[Grupo]]) -> 2
A120: Rentas de Trabajo | B120: Rentas de Trabajo | C120: Compensación de servicios personales | D120: =IF(Bloques[[#This Row],[Segmento]]=Parametros[Segmento],COUNTIFS(OFFSET(Ref_Segmento,Parametros[Fila]-1,0,Parametros[Alto]),Bloques[[#This Row],[Segmento]],OFFSET(Ref_Conteo,Parametros[Fila]-1,0,Parametros[Alto]),Bloques[[#This Row],[Bloque]],OFFSET(Ref_Conteo,Parametros[Fila]-1,-1,Parametros[Alto]),Bloques[[#This Row],[Grupo]])-1,0) -> 0 | G120: =COUNTIFS(OFFSET(Ref_Segmento,1,0,10000),Bloques[[#This Row],[Segmento]],OFFSET(Ref_Conteo,1,0,10000),Bloques[[#This Row],[Bloque]],OFFSET(Ref_Conteo,1,-1,10000),Bloques[[#This Row],[Grupo]])-1 -> 1 | H120: =COUNTIFS(OFFSET(Ref_Segmento,1,0,10000),Bloques[[#This Row],[Segmento]],OFFSET(Ref_Conteo,1,0,10000),Bloques[[#This Row],[Bloque]],OFFSET(Ref_Conteo,1,-1,10000),Bloques[[#This Row],[Grupo]]) -> 2
A121: Rentas de Trabajo | B121: Rentas de Trabajo | C121: Comisiones | D121: =IF(Bloques[[#This Row],[Segmento]]=Parametros[Segmento],COUNTIFS(OFFSET(Ref_Segmento,Parametros[Fila]-1,0,Parametros[Alto]),Bloques[[#This Row],[Segmento]],OFFSET(Ref_Conteo,Parametros[Fila]-1,0,Parametros[Alto]),Bloques[[#This Row],[Bloque]],OFFSET(Ref_Conteo,Parametros[Fila]-1,-1,Parametros[Alto]),Bloques[[#This Row],[Grupo]])-1,0) -> 0 | G121: =COUNTIFS(OFFSET(Ref_Segmento,1,0,10000),Bloques[[#This Row],[Segmento]],OFFSET(Ref_Conteo,1,0,10000),Bloques[[#This Row],[Bloque]],OFFSET(Ref_Conteo,1,-1,10000),Bloques[[#This Row],[Grupo]])-1 -> 1 | H121: =COUNTIFS(OFFSET(Ref_Segmento,1,0,10000),Bloques[[#This Row],[Segmento]],OFFSET(Ref_Conteo,1,0,10000),Bloques[[#This Row],[Bloque]],OFFSET(Ref_Conteo,1,-1,10000),Bloques[[#This Row],[Grupo]]) -> 2
A122: Retenciones | B122: Retenciones | C122: Retenciones en la fuente por Ingresos Ordinarios | D122: =IF(Bloques[[#This Row],[Segmento]]=Parametros[Segmento],COUNTIFS(OFFSET(Ref_Segmento,Parametros[Fila]-1,0,Parametros[Alto]),Bloques[[#This Row],[Segmento]],OFFSET(Ref_Conteo,Parametros[Fila]-1,0,Parametros[Alto]),Bloques[[#This Row],[Bloque]],OFFSET(Ref_Conteo,Parametros[Fila]-1,-1,Parametros[Alto]),Bloques[[#This Row],[Grupo]])-1,0) -> 0 | G122: =COUNTIFS(OFFSET(Ref_Segmento,1,0,10000),Bloques[[#This Row],[Segmento]],OFFSET(Ref_Conteo,1,0,10000),Bloques[[#This Row],[Bloque]],OFFSET(Ref_Conteo,1,-1,10000),Bloques[[#This Row],[Grupo]])-1 -> 1 | H122: =COUNTIFS(OFFSET(Ref_Segmento,1,0,10000),Bloques[[#This Row],[Segmento]],OFFSET(Ref_Conteo,1,0,10000),Bloques[[#This Row],[Bloque]],OFFSET(Ref_Conteo,1,-1,10000),Bloques[[#This Row],[Grupo]]) -> 2
A123: Retenciones | B123: Retenciones | C123: Retenciones en la fuente por Ganancias Ocasionales | D123: =IF(Bloques[[#This Row],[Segmento]]=Parametros[Segmento],COUNTIFS(OFFSET(Ref_Segmento,Parametros[Fila]-1,0,Parametros[Alto]),Bloques[[#This Row],[Segmento]],OFFSET(Ref_Conteo,Parametros[Fila]-1,0,Parametros[Alto]),Bloques[[#This Row],[Bloque]],OFFSET(Ref_Conteo,Parametros[Fila]-1,-1,Parametros[Alto]),Bloques[[#This Row],[Grupo]])-1,0) -> 0 | G123: =COUNTIFS(OFFSET(Ref_Segmento,1,0,10000),Bloques[[#This Row],[Segmento]],OFFSET(Ref_Conteo,1,0,10000),Bloques[[#This Row],[Bloque]],OFFSET(Ref_Conteo,1,-1,10000),Bloques[[#This Row],[Grupo]])-1 -> 1 | H123: =COUNTIFS(OFFSET(Ref_Segmento,1,0,10000),Bloques[[#This Row],[Segmento]],OFFSET(Ref_Conteo,1,0,10000),Bloques[[#This Row],[Bloque]],OFFSET(Ref_Conteo,1,-1,10000),Bloques[[#This Row],[Grupo]]) -> 2
A124: Subcapitalización | B124: Subcapitalización | C124: Préstamos vigentes en el 2022 | D124: =IF(Bloques[[#This Row],[Segmento]]=Parametros[Segmento],COUNTIFS(OFFSET(Ref_Segmento,Parametros[Fila]-1,0,Parametros[Alto]),Bloques[[#This Row],[Segmento]],OFFSET(Ref_Conteo,Parametros[Fila]-1,0,Parametros[Alto]),Bloques[[#This Row],[Bloque]],OFFSET(Ref_Conteo,Parametros[Fila]-1,-1,Parametros[Alto]),Bloques[[#This Row],[Grupo]])-1,0) -> 0 | G124: =COUNTIFS(OFFSET(Ref_Segmento,1,0,10000),Bloques[[#This Row],[Segmento]],OFFSET(Ref_Conteo,1,0,10000),Bloques[[#This Row],[Bloque]],OFFSET(Ref_Conteo,1,-1,10000),Bloques[[#This Row],[Grupo]])-1 -> 1 | H124: =COUNTIFS(OFFSET(Ref_Segmento,1,0,10000),Bloques[[#This Row],[Segmento]],OFFSET(Ref_Conteo,1,0,10000),Bloques[[#This Row],[Bloque]],OFFSET(Ref_Conteo,1,-1,10000),Bloques[[#This Row],[Grupo]]) -> 2

Sheet 
AN1: Conteo | AO1: Segmento | AP1: Visible | AQ1: Alto_Celdas | AR1: Celda_Filtro
AP2: 1 | AQ2: 15 | AR2: 1
AP3: 1 | AQ3: 15 | AR3: 1
AP4: 1 | AQ4: 15 | AR4: 1
AP5: 1 | AQ5: 12 | AR5: 1
A6: 1 | B6: 3 | C6: 35 | D6: 11 | E6: 10 | F6: 10 | G6: 5 | H6: 11 | I6: 11 | J6: 11 | K6: 12 | L6: 10 | M6: 13 | N6: 13 | O6: 20 | P6: 11 | Q6: 3 | R6: 11 | AO6: =IF(Parametros[Segmento]="Seleccionar_Cedula","Seleccionar_Cedula","Fondo_Menu") -> Fondo_Menu | AP6: 0 | AQ6: 15 | AR6: =(AO6=Parametros[Segmento])*(AP6>0)*(AQ6>0) -> 0
AO7: =IF(Parametros[Segmento]="Seleccionar_Cedula","Seleccionar_Cedula","Fondo_Menu") -> Fondo_Menu | AP7: 0 | AQ7: 20 | AR7: =(AO7=Parametros[Segmento])*(AP7>0)*(AQ7>0) -> 0
AO8: =IF(Parametros[Segmento]="Cédula General","Cédula General","Fondo_Menu") -> Fondo_Menu | AP8: 1 | AQ8: 10 | AR8: =(AO8=Parametros[Segmento])*(AP8>0)*(AQ8>0) -> 1
AO9: =IF(Parametros[Segmento]="Cédula General","Cédula General","Fondo_Menu") -> Fondo_Menu | AP9: 1 | AQ9: 20 | AR9: =(AO9=Parametros[Segmento])*(AP9>0)*(AQ9>0) -> 1
AO10: =IF(Parametros[Segmento]="Cédula General","Cédula General","Fondo_Menu") -> Fondo_Menu | AP10: 1 | AQ10: 20 | AR10: =(AO10=Parametros[Segmento])*(AP10>0)*(AQ10>0) -> 1
AO11: =IF(Parametros[Segmento]="Cédula General","Cédula General","Fondo_Menu") -> Fondo_Menu | AP11: 1 | AQ11: 20 | AR11: =(AO11=Parametros[Segmento])*(AP11>0)*(AQ11>0) -> 1
AO12: =IF(Parametros[Segmento]="Cédula General","Cédula General","Fondo_Menu") -> Fondo_Menu | AP12: 1 | AQ12: 20 | AR12: =(AO12=Parametros[Segmento])*(AP12>0)*(AQ12>0) -> 1
AO13: =IF(Parametros[Segmento]="Cédula General","Cédula General","Fondo_Menu") -> Fondo_Menu | AP13: 1 | AQ13: 20 | AR13: =(AO13=Parametros[Segmento])*(AP13>0)*(AQ13>0) -> 1
AO14: =IF(Parametros[Segmento]="Cédula General","Cédula General","Fondo_Menu") -> Fondo_Menu | AP14: 1 | AQ14: 20 | AR14: =(AO14=Parametros[Segmento])*(AP14>0)*(AQ14>0) -> 1
AO15: =IF(Parametros[Segmento]="Cédula General","Cédula General","Fondo_Menu") -> Fondo_Menu | AP15: 1 | AQ15: 20 | AR15: =(AO15=Parametros[Segmento])*(AP15>0)*(AQ15>0) -> 1
AO16: =IF(Parametros[Segmento]="Cédula General","Cédula General","Fondo_Menu") -> Fondo_Menu | AP16: 1 | AQ16: 20 | AR16: =(AO16=Parametros[Segmento])*(AP16>0)*(AQ16>0) -> 1
AO17: =IF(Parametros[Segmento]="Cédula General","Cédula General","Fondo_Menu") -> Fondo_Menu | AP17: 1 | AQ17: 20 | AR17: =(AO17=Parametros[Segmento])*(AP17>0)*(AQ17>0) -> 1
AO18: =IF(Parametros[Segmento]="Cédula General","Cédula General","Fondo_Menu") -> Fondo_Menu | AP18: 1 | AQ18: 20 | AR18: =(AO18=Parametros[Segmento])*(AP18>0)*(AQ18>0) -> 1
AO19: =IF(Parametros[Segmento]="Cédula General","Cédula General","Fondo_Menu") -> Fondo_Menu | AP19: 1 | AQ19: 20 | AR19: =(AO19=Parametros[Segmento])*(AP19>0)*(AQ19>0) -> 1
AO20: =IF(Parametros[Segmento]="Cédula General","Cédula General","Fondo_Menu") -> Fondo_Menu | AP20: 1 | AQ20: 20 | AR20: =(AO20=Parametros[Segmento])*(AP20>0)*(AQ20>0) -> 1
AO21: =IF(Parametros[Segmento]="Cédula General","Cédula General","Fondo_Menu") -> Fondo_Menu | AP21: 1 | AQ21: 20 | AR21: =(AO21=Parametros[Segmento])*(AP21>0)*(AQ21>0) -> 1
AO22: =IF(Parametros[Segmento]="Cédula General","Cédula General","Fondo_Menu") -> Fondo_Menu | AP22: 1 | AQ22: 20 | AR22: =(AO22=Parametros[Segmento])*(AP22>0)*(AQ22>0) -> 1
AO23: =IF(Parametros[Segmento]="Cédula General","Cédula General","Fondo_Menu") -> Fondo_Menu | AP23: 1 | AQ23: 20 | AR23: =(AO23=Parametros[Segmento])*(AP23>0)*(AQ23>0) -> 1
AO24: =IF(Parametros[Segmento]="Cédula General","Cédula General","Fondo_Menu") -> Fondo_Menu | AP24: 1 | AQ24: 20 | AR24: =(AO24=Parametros[Segmento])*(AP24>0)*(AQ24>0) -> 1
AO25: =IF(Parametros[Segmento]="Cédula General","Cédula General","Fondo_Menu") -> Fondo_Menu | AP25: 1 | AQ25: 20 | AR25: =(AO25=Parametros[Segmento])*(AP25>0)*(AQ25>0) -> 1
AO26: =IF(Parametros[Segmento]="Cédula General","Cédula General","Fondo_Menu") -> Fondo_Menu | AP26: 1 | AQ26: 20 | AR26: =(AO26=Parametros[Segmento])*(AP26>0)*(AQ26>0) -> 1
AO27: =IF(Parametros[Segmento]="Cédula General","Cédula General","Fondo_Menu") -> Fondo_Menu | AP27: 1 | AQ27: 20 | AR27: =(AO27=Parametros[Segmento])*(AP27>0)*(AQ27>0) -> 1
AO28: =IF(Parametros[Segmento]="Cédula General","Cédula General","Fondo_Menu") -> Fondo_Menu | AP28: 1 | AQ28: 20 | AR28: =(AO28=Parametros[Segmento])*(AP28>0)*(AQ28>0) -> 1
AO29: =IF(Parametros[Segmento]="Cédula General","Cédula General","Fondo_Menu") -> Fondo_Menu | AP29: 1 | AQ29: 20 | AR29: =(AO29=Parametros[Segmento])*(AP29>0)*(AQ29>0) -> 1
AO30: =IF(Parametros[Segmento]="Cédula General","Cédula General","Fondo_Menu") -> Fondo_Menu | AP30: 1 | AQ30: 20 | AR30: =(AO30=Parametros[Segmento])*(AP30>0)*(AQ30>0) -> 1
AO31: =IF(Parametros[Segmento]="Cédula General","Cédula General","Fondo_Menu") -> Fondo_Menu | AP31: 1 | AQ31: 20 | AR31: =(AO31=Parametros[Segmento])*(AP31>0)*(AQ31>0) -> 1
AO32: =IF(Parametros[Segmento]="Cédula General","Cédula General","Fondo_Menu") -> Fondo_Menu | AP32: 1 | AQ32: 20 | AR32: =(AO32=Parametros[Segmento])*(AP32>0)*(AQ32>0) -> 1
AO33: =IF(Parametros[Segmento]="Cédula General","Cédula General","Fondo_Menu") -> Fondo_Menu | AP33: 1 | AQ33: 20 | AR33: =(AO33=Parametros[Segmento])*(AP33>0)*(AQ33>0) -> 1
AO34: =IF(Parametros[Segmento]="Cédula General","Cédula General","Fondo_Menu") -> Fondo_Menu | AP34: 1 | AQ34: 20 | AR34: =(AO34=Parametros[Segmento])*(AP34>0)*(AQ34>0) -> 1
AO35: =IF(Parametros[Segmento]="Cédula General","Cédula General","Fondo_Menu") -> Fondo_Menu | AP35: 1 | AQ35: 20 | AR35: =(AO35=Parametros[Segmento])*(AP35>0)*(AQ35>0) -> 1
AO36: =IF(Parametros[Segmento]="Cédula General","Cédula General","Fondo_Menu") -> Fondo_Menu | AP36: 1 | AQ36: 20 | AR36: =(AO36=Parametros[Segmento])*(AP36>0)*(AQ36>0) -> 1
AO37: =IF(Parametros[Segmento]="Cédula General","Cédula General","Fondo_Menu") -> Fondo_Menu | AP37: 1 | AQ37: 20 | AR37: =(AO37=Parametros[Segmento])*(AP37>0)*(AQ37>0) -> 1
AO38: =IF(Parametros[Segmento]="Cédula General","Cédula General","Fondo_Menu") -> Fondo_Menu | AP38: 1 | AQ38: 20 | AR38: =(AO38=Parametros[Segmento])*(AP38>0)*(AQ38>0) -> 1
AO39: =IF(Parametros[Segmento]="Cédula General","Cédula General","Fondo_Menu") -> Fondo_Menu | AP39: 1 | AQ39: 20 | AR39: =(AO39=Parametros[Segmento])*(AP39>0)*(AQ39>0) -> 1
AO40: =IF(Parametros[Segmento]="Cédula General","Cédula General","Fondo_Menu") -> Fondo_Menu | AP40: 1 | AQ40: 20 | AR40: =(AO40=Parametros[Segmento])*(AP40>0)*(AQ40>0) -> 1
A41: 3.33 | B41: 111.22 | C41: 20.78 | D41: 20.78 | E41: 5 | AO41: Lista de chequeo | AP41: 0 | AQ41: 15 | AR41: =(AO41=Parametros[Segmento])*(AP41>0)*(AQ41>0) -> 0
AO42: Lista de chequeo | AP42: 1 | AQ42: 16.2 | AR42: =(AO42=Parametros[Segmento])*(AP42>0)*(AQ42>0) -> 0
B43: Lista de chequeo documentos necesarios para elaborar la declaración de renta | AO43: Lista de chequeo | AP43: 1 | AQ43: 30 | AR43: =(AO43=Parametros[Segmento])*(AP43>0)*(AQ43>0) -> 0
B44: Tipo de documento | C44: ¿El documento aplica para el contribuyente? | D44: ¿El contribuyente ya entregó el documento? | AO44: Lista de chequeo | AP44: 1 | AQ44: 60 | AR44: =(AO44=Parametros[Segmento])*(AP44>0)*(AQ44>0) -> 0
B45: Documentos indispensables | AO45: Lista de chequeo | AP45: 1 | AQ45: 30 | AR45: =(AO45=Parametros[Segmento])*(AP45>0)*(AQ45>0) -> 0
B46: Copia del certificado de inscripción en el Registro Único Tributario –RUT– debidamente actualizado con la responsabilidad 05 - Impuesto de renta y complementario régimen ordinario. | AO46: Lista de chequeo | AP46: 1 | AQ46: 40.1 | AR46: =(AO46=Parametros[Segmento])*(AP46>0)*(AQ46>0) -> 0
B47: Declaraciones de renta de los dos (2) últimos años gravables. | AO47: Lista de chequeo | AP47: 1 | AQ47: 30 | AR47: =(AO47=Parametros[Segmento])*(AP47>0)*(AQ47>0) -> 0
B48: Reporte de terceros de la DIAN. | AO48: Lista de chequeo | AP48: 1 | AQ48: 30 | AR48: =(AO48=Parametros[Segmento])*(AP48>0)*(AQ48>0) -> 0
B49: Documentos para determinar el patrimonio | AO49: Lista de chequeo | AP49: 1 | AQ49: 30 | AR49: =(AO49=Parametros[Segmento])*(AP49>0)*(AQ49>0) -> 0
B50: Activos | AO50: Lista de chequeo | AP50: 1 | AQ50: 30 | AR50: =(AO50=Parametros[Segmento])*(AP50>0)*(AQ50>0) -> 0
B51: Certificados o extractos de los saldos de las cuentas de ahorro y corrientes emitidos por las entidades financieras. | AO51: Lista de chequeo | AP51: 1 | AQ51: 30 | AR51: =(AO51=Parametros[Segmento])*(AP51>0)*(AQ51>0) -> 0
B52: Certificados de las inversiones del contribuyente emitidos por las entidades donde se constituyó la inversión, por ejemplo: CDT, bonos, derechos fiduciarios, inversiones obligatorias, entre otras. | AO52: Lista de chequeo | AP52: 1 | AQ52: 40.1 | AR52: =(AO52=Parametros[Segmento])*(AP52>0)*(AQ52>0) -> 0
B53: Declaración o estado de cuenta del impuesto predial de los bienes inmuebles que posea el contribuyente. | AO53: Lista de chequeo | AP53: 1 | AQ53: 30 | AR53: =(AO53=Parametros[Segmento])*(AP53>0)*(AQ53>0) -> 0
B54: Escrituras de adquisición de los bienes inmuebles y/o certificados de instrumentos públicos. | AO54: Lista de chequeo | AP54: 1 | AQ54: 30 | AR54: =(AO54=Parametros[Segmento])*(AP54>0)*(AQ54>0) -> 0
B55: Factura de compra o documento donde conste el valor de adquisición de los vehículos y estado de cuenta del impuesto de vehículos. | AO55: Lista de chequeo | AP55: 1 | AQ55: 30 | AR55: =(AO55=Parametros[Segmento])*(AP55>0)*(AQ55>0) -> 0
B56: Relación de los muebles, enseres, maquinaria y equipo, por su valor de adquisición más adiciones y mejoras. | AO56: Lista de chequeo | AP56: 1 | AQ56: 30 | AR56: =(AO56=Parametros[Segmento])*(AP56>0)*(AQ56>0) -> 0
B57: Certificado de avalúo técnico de los bienes incorporales, tales como, good will, derechos de autor, cupos de taxi, propiedad industrial, literaria, artística, científica y otros. | AO57: Lista de chequeo | AP57: 1 | AQ57: 40.1 | AR57: =(AO57=Parametros[Segmento])*(AP57>0)*(AQ57>0) -> 0
B58: Facturas de joyas, cuadros u otros elementos que posea el contribuyente y que sean apreciables en dinero. | AO58: Lista de chequeo | AP58: 1 | AQ58: 30 | AR58: =(AO58=Parametros[Segmento])*(AP58>0)*(AQ58>0) -> 0
B59: Deudas | AO59: Lista de chequeo | AP59: 1 | AQ59: 30 | AR59: =(AO59=Parametros[Segmento])*(AP59>0)*(AQ59>0) -> 0
B60: Certificados y/o extractos de obligaciones financieras, tarjetas de créditos, etc. | AO60: Lista de chequeo | AP60: 1 | AQ60: 30 | AR60: =(AO60=Parametros[Segmento])*(AP60>0)*(AQ60>0) -> 0
B61: Letras, pagarés y demás documentos que respalden cuentas por cobrar y obligaciones o deudas, conforme a los requisitos de ley. Tenga en cuenta que según el artículo 770 del ET, los contribuyentes no obligados a llevar contabilidad solo pueden solicitar pasivos respaldados con documentos de fecha cierta. | AO61: Lista de chequeo | AP61: 1 | AQ61: 60 | AR61: =(AO61=Parametros[Segmento])*(AP61>0)*(AQ61>0) -> 0
B62: Documentos necesarios para la cédula general | AO62: Lista de chequeo | AP62: 1 | AQ62: 30 | AR62: =(AO62=Parametros[Segmento])*(AP62>0)*(AQ62>0) -> 0
B63: Ingresos por rentas de trabajo | AO63: Lista de chequeo | AP63: 1 | AQ63: 30 | AR63: =(AO63=Parametros[Segmento])*(AP63>0)*(AQ63>0) -> 0
B64: Certificado de ingresos y retenciones laborales. | AO64: Lista de chequeo | AP64: 1 | AQ64: 30 | AR64: =(AO64=Parametros[Segmento])*(AP64>0)*(AQ64>0) -> 0
B65: Certificado de indemnizaciones por accidentes de trabajo o de enfermedad, maternidad, gastos de entierro del trabajador, seguro por muerte y compensaciones por muerte de miembros de las Fuerzas Militares y Policía Nacional. | AO65: Lista de chequeo | AP65: 1 | AQ65: 40.1 | AR65: =(AO65=Parametros[Segmento])*(AP65>0)*(AQ65>0) -> 0
B66: Certificados de pagos por concepto de alimentación efectuados por su empleador. | AO66: Lista de chequeo | AP66: 1 | AQ66: 30 | AR66: =(AO66=Parametros[Segmento])*(AP66>0)*(AQ66>0) -> 0
B67: Certificado de apoyos económicos para programas educativos recibidos del Estado. | AO67: Lista de chequeo | AP67: 1 | AQ67: 30 | AR67: =(AO67=Parametros[Segmento])*(AP67>0)*(AQ67>0) -> 0
B68: Relación del aporte voluntario del COVID-19 del artículo 9 del Decreto Legislativo 568 de 2020 (declarado inexequible por la Sentencia C-293 de 2020 de la Corte Constitucional). | AO68: Lista de chequeo | AP68: 1 | AQ68: 40.1 | AR68: =(AO68=Parametros[Segmento])*(AP68>0)*(AQ68>0) -> 0
B69: Relación de contratos o facturas del contribuyente. | AO69: Lista de chequeo | AP69: 1 | AQ69: 30 | AR69: =(AO69=Parametros[Segmento])*(AP69>0)*(AQ69>0) -> 0
B70: Certificados de retención. | AO70: Lista de chequeo | AP70: 1 | AQ70: 30 | AR70: =(AO70=Parametros[Segmento])*(AP70>0)*(AQ70>0) -> 0
B71: Ingresos por rentas de capital | AO71: Lista de chequeo | AP71: 1 | AQ71: 30 | AR71: =(AO71=Parametros[Segmento])*(AP71>0)*(AQ71>0) -> 0
B72: Certificados de rendimientos financieros pagados por las entidades correspondientes. | AO72: Lista de chequeo | AP72: 1 | AQ72: 30 | AR72: =(AO72=Parametros[Segmento])*(AP72>0)*(AQ72>0) -> 0
B73: Relación de ingresos por arrendamientos, regalías o propiedad intelectual. | AO73: Lista de chequeo | AP73: 1 | AQ73: 30 | AR73: =(AO73=Parametros[Segmento])*(AP73>0)*(AQ73>0) -> 0
B74: Ingresos por rentas no laborales | AO74: Lista de chequeo | AP74: 1 | AQ74: 30 | AR74: =(AO74=Parametros[Segmento])*(AP74>0)*(AQ74>0) -> 0
B75: Relación de contratos o facturas del contribuyente. | AO75: Lista de chequeo | AP75: 1 | AQ75: 30 | AR75: =(AO75=Parametros[Segmento])*(AP75>0)*(AQ75>0) -> 0
B76: Facturas de venta de activos poseídos por menos de 2 años (esto dependiendo de si la persona natural está obligada o no a facturar, en caso de no estar obligada a facturar, no tendría que soportar la operación con factura, para este caso del no obligado a facturar el soporte podría ser la escritura pública). | AO76: Lista de chequeo | AP76: 1 | AQ76: 60 | AR76: =(AO76=Parametros[Segmento])*(AP76>0)*(AQ76>0) -> 0
B77: Documentos para determinar los pagos que constituyen deducciones, descuentos y rentas exentas | AO77: Lista de chequeo | AP77: 1 | AQ77: 30 | AR77: =(AO77=Parametros[Segmento])*(AP77>0)*(AQ77>0) -> 0
B78: Certificado de pagos de intereses por préstamos para adquisición de vivienda. | AO78: Lista de chequeo | AP78: 1 | AQ78: 30 | AR78: =(AO78=Parametros[Segmento])*(AP78>0)*(AQ78>0) -> 0
B79: Certificados por pagos de salud obligatoria y medicina prepagada. | AO79: Lista de chequeo | AP79: 1 | AQ79: 30 | AR79: =(AO79=Parametros[Segmento])*(AP79>0)*(AQ79>0) -> 0
B80: Certificados de aportes voluntarios a Cuentas de Ahorro para el Fomento de la Construcción –AFC–, aportes voluntarios a los seguros privados de pensiones –FVP– y a las Cuentas de Ahorro Voluntario Contractual –AVC–. | AO80: Lista de chequeo | AP80: 1 | AQ80: 40.1 | AR80: =(AO80=Parametros[Segmento])*(AP80>0)*(AQ80>0) -> 0
B81: Certificados por inversiones en nuevas plantaciones de riegos, pozos, silos; centros de reclusión en mantenimiento; y conservación de obras audiovisuales en librerías, proyectos cinematográficos y otros. | AO81: Lista de chequeo | AP81: 1 | AQ81: 40.1 | AR81: =(AO81=Parametros[Segmento])*(AP81>0)*(AQ81>0) -> 0
B82: Certificados por donaciones. | AO82: Lista de chequeo | AP82: 1 | AQ82: 30 | AR82: =(AO82=Parametros[Segmento])*(AP82>0)*(AQ82>0) -> 0
B83: Relación de facturas de gastos, indicando el valor total. | AO83: Lista de chequeo | AP83: 1 | AQ83: 30 | AR83: =(AO83=Parametros[Segmento])*(AP83>0)*(AQ83>0) -> 0
B84: Relación de los pagos efectuados a sus empleados por concepto de sueldos, bonificaciones, vacaciones, cesantías y otros. | AO84: Lista de chequeo | AP84: 1 | AQ84: 30 | AR84: =(AO84=Parametros[Segmento])*(AP84>0)*(AQ84>0) -> 0
B85: Certificados de los pagos realizados por concepto de aportes a las cajas de compensación, Instituto Colombiano de Bienestar Familiar, empresas promotoras de salud, administradoras de riesgos profesionales, fondos de pensiones y otros. | AO85: Lista de chequeo | AP85: 1 | AQ85: 40.1 | AR85: =(AO85=Parametros[Segmento])*(AP85>0)*(AQ85>0) -> 0
B86: Pagos por concepto de impuestos de industria y comercio, avisos y tableros, y predial. | AO86: Lista de chequeo | AP86: 1 | AQ86: 30 | AR86: =(AO86=Parametros[Segmento])*(AP86>0)*(AQ86>0) -> 0
B87: Certificado de dependientes (cónyuges, hijos y padres que dependan económicamente del contribuyente). | AO87: Lista de chequeo | AP87: 1 | AQ87: 30 | AR87: =(AO87=Parametros[Segmento])*(AP87>0)*(AQ87>0) -> 0
B88: Anexo del pago de la seguridad social de la persona que hace el servicio doméstico. | AO88: Lista de chequeo | AP88: 1 | AQ88: 30 | AR88: =(AO88=Parametros[Segmento])*(AP88>0)*(AQ88>0) -> 0
B89: Certificado de ingreso promedio de los últimos seis (6) meses anteriores a la fecha del pago de las cesantías e intereses sobre las mismas. | AO89: Lista de chequeo | AP89: 1 | AQ89: 30 | AR89: =(AO89=Parametros[Segmento])*(AP89>0)*(AQ89>0) -> 0
B90: Certificado de retenciones a título de GMF. | AO90: Lista de chequeo | AP90: 1 | AQ90: 30 | AR90: =(AO90=Parametros[Segmento])*(AP90>0)*(AQ90>0) -> 0
B91: Certificado intereses en préstamos educativos ICETEX. | AO91: Lista de chequeo | AP91: 1 | AQ91: 30 | AR91: =(AO91=Parametros[Segmento])*(AP91>0)*(AQ91>0) -> 0
B92: Certificado de primer empleo expedida por el Ministerio de trabajo para contribuyentes que hayan contratado empleados que sean menores de veintiocho (28) años, siempre y cuando se trate del primer empleo de la persona (artículo 108-5 ET). | AO92: Lista de chequeo | AP92: 1 | AQ92: 40.1 | AR92: =(AO92=Parametros[Segmento])*(AP92>0)*(AQ92>0) -> 0
B93: Copia de certificación enviada al Ministerio de trabajo señalando el cumplimiento de los requisitos para acceder a los beneficios de la Ley 2040 de 2020 respecto a la contratación de adultos mayores no pensionados (parágrafo 1 del artículo 4 de la Ley 2040 de 2020 y Circular 0004 de 2021 del Ministerio del Trabajo). | AO93: Lista de chequeo | AP93: 1 | AQ93: 60 | AR93: =(AO93=Parametros[Segmento])*(AP93>0)*(AQ93>0) -> 0
B94: Si el contribuyente tiene préstamos con entidades no vinculadas, certificación de las entidades acreedoras en la que conste que los créditos no corresponden a operaciones de endeudamiento con entidades vinculadas mediante un aval, back-to-back, o cualquier otra operación en la que sustancialmente dichas vinculadas actúen como acreedoras (ver parágrafo 1 del artículo 118-1 del ET y artículo 1.2.1.18.64 del DUR 1625 de 2016). | AO94: Lista de chequeo | AP94: 1 | AQ94: 70.1 | AR94: =(AO94=Parametros[Segmento])*(AP94>0)*(AQ94>0) -> 0
B95: Certificación de baja de inventarios por obsolescencia (numeral 2 del artículo 64 del ET, modificado por el artículo 43 de la Ley 1819 de 2016). | AO95: Lista de chequeo | AP95: 1 | AQ95: 40.1 | AR95: =(AO95=Parametros[Segmento])*(AP95>0)*(AQ95>0) -> 0
B96: Todos los demás documentos que respalden costos, deducciones, rentas exentas y descuentos tributarios | AO96: Lista de chequeo | AP96: 1 | AQ96: 30 | AR96: =(AO96=Parametros[Segmento])*(AP96>0)*(AQ96>0) -> 0
B97: Documentos necesarios para la cédula de pensiones | AO97: Lista de chequeo | AP97: 1 | AQ97: 30 | AR97: =(AO97=Parametros[Segmento])*(AP97>0)*(AQ97>0) -> 0
B98: Certificados de indemnizaciones sustitutivas de la pensión o devoluciones de saldos de ahorro pensional. | AO98: Lista de chequeo | AP98: 1 | AQ98: 30 | AR98: =(AO98=Parametros[Segmento])*(AP98>0)*(AQ98>0) -> 0
B99: Certificados de fondos de pensiones. | AO99: Lista de chequeo | AP99: 1 | AQ99: 30 | AR99: =(AO99=Parametros[Segmento])*(AP99>0)*(AQ99>0) -> 0
B100: Documentos necesarios para la cédula de dividendos y participaciones | AO100: Lista de chequeo | AP100: 1 | AQ100: 30 | AR100: =(AO100=Parametros[Segmento])*(AP100>0)*(AQ100>0) -> 0
B101: Certificado de dividendos y participaciones recibidos durante el año, expedidos por las sociedades de las cuales es socio o accionista. | AO101: Lista de chequeo | AP101: 1 | AQ101: 40.1 | AR101: =(AO101=Parametros[Segmento])*(AP101>0)*(AQ101>0) -> 0
B102: Certificados de ingresos recibidos durante el año por concepto de utilidades repartidas por sociedades liquidadas. | AO102: Lista de chequeo | AP102: 1 | AQ102: 30 | AR102: =(AO102=Parametros[Segmento])*(AP102>0)*(AQ102>0) -> 0
B103: Documentos necesarios para la zona de ganancias ocasionales | AO103: Lista de chequeo | AP103: 1 | AQ103: 30 | AR103: =(AO103=Parametros[Segmento])*(AP103>0)*(AQ103>0) -> 0
B104: Certificados de indemnizaciones por seguro de vida. | AO104: Lista de chequeo | AP104: 1 | AQ104: 30 | AR104: =(AO104=Parametros[Segmento])*(AP104>0)*(AQ104>0) -> 0
B105: Facturas de venta de activos poseídos por más de 2 años (esto dependiendo de si la persona natural está obligada o no a facturar, en caso de no estar obligada a facturar, no tendría que soportar la operación con factura, para este caso del no obligado a facturar el soporte podría ser la escritura pública). | AO105: Lista de chequeo | AP105: 1 | AQ105: 60 | AR105: =(AO105=Parametros[Segmento])*(AP105>0)*(AQ105>0) -> 0
B106: Certificados de los ingresos recibidos por herencias, legados, porciones conyugales. | AO106: Lista de chequeo | AP106: 1 | AQ106: 30 | AR106: =(AO106=Parametros[Segmento])*(AP106>0)*(AQ106>0) -> 0
B107: Certificado de retención de premios o loterías. | AO107: Lista de chequeo | AP107: 1 | AQ107: 30 | AR107: =(AO107=Parametros[Segmento])*(AP107>0)*(AQ107>0) -> 0
A108: 3.78 | B108: 102.56 | C108: 19.78 | D108: 19.78 | E108: 16 | F108: 5 | AO108: Cifras, tablas e indicadores | AP108: 0 | AQ108: 15 | AR108: =(AO108=Parametros[Segmento])*(AP108>0)*(AQ108>0) -> 0
AO109: Cifras, tablas e indicadores | AP109: 1 | AQ109: 30 | AR109: =(AO109=Parametros[Segmento])*(AP109>0)*(AQ109>0) -> 0
B110: Cifras, tablas e indicadores | AO110: Cifras, tablas e indicadores | AP110: 1 | AQ110: 30 | AR110: =(AO110=Parametros[Segmento])*(AP110>0)*(AQ110>0) -> 0
B111: Concepto | C111: 2021 | D111: 2022 | E111: 2023 | AO111: Cifras, tablas e indicadores | AP111: 1 | AQ111: 30 | AR111: =(AO111=Parametros[Segmento])*(AP111>0)*(AQ111>0) -> 0
B112: UVT | C112: $ 36,308 | D112: $ 38,004 | E112: $ 42,412 | AO112: Cifras, tablas e indicadores | AP112: 1 | AQ112: 30 | AR112: =(AO112=Parametros[Segmento])*(AP112>0)*(AQ112>0) -> 0
B113: Renta presuntiva | C113: 0% | D113: 0% | AO113: Cifras, tablas e indicadores | AP113: 1 | AQ113: 30 | AR113: =(AO113=Parametros[Segmento])*(AP113>0)*(AQ113>0) -> 0
B114: Intereses presuntivos | C114: 1.89% | D114: 3.21% | AO114: Cifras, tablas e indicadores | AP114: 1 | AQ114: 30 | AR114: =(AO114=Parametros[Segmento])*(AP114>0)*(AQ114>0) -> 0
B115: Componente inflacionario rendimientos financieros recibidos por personas naturales no obligadas a llevar contabilidad | C115: 100% | D115: 100% | AO115: Cifras, tablas e indicadores | AP115: 1 | AQ115: 40.1 | AR115: =(AO115=Parametros[Segmento])*(AP115>0)*(AQ115>0) -> 0
B116: Componente inflacionario de los rendimientos financieros que distribuyan los fondos de inversión, mutuos de inversión y de valores | C116: 100% | D116: 100% | AO116: Cifras, tablas e indicadores | AP116: 1 | AQ116: 40.1 | AR116: =(AO116=Parametros[Segmento])*(AP116>0)*(AQ116>0) -> 0
B117: Componente inflacionario de los costos y gastos financieros de personas naturales | C117: 37.57% | D117: 63.35% | AO117: Cifras, tablas e indicadores | AP117: 1 | AQ117: 30 | AR117: =(AO117=Parametros[Segmento])*(AP117>0)*(AQ117>0) -> 0
B118: Parte que puede ser tomada como costo o deducción, correspondiente a intereses y demás costos y gasto financieros en que haya incurrido el contribuyente durante el año | C118: =100%-C117 -> 62.43% | D118: =100%-D117 -> 36.65% | AO118: Cifras, tablas e indicadores | AP118: 1 | AQ118: 40.1 | AR118: =(AO118=Parametros[Segmento])*(AP118>0)*(AQ118>0) -> 0
B119: Parte que no constituye costo ni gasto, de los ajustes por diferencia en cambio y de los costos y gastos financieros por concepto de deudas en moneda extranjera | C119: 40.11% | D119: 51.78% | AO119: Cifras, tablas e indicadores | AP119: 1 | AQ119: 40.1 | AR119: =(AO119=Parametros[Segmento])*(AP119>0)*(AQ119>0) -> 0
B120: Parte que puede ser tomada como costo o deducción, correspondiente a intereses y demás costos y gastos financieros por concepto de deudas en moneda extranjera, en que haya incurrido el contribuyente durante el año | C120: =100%-C119 -> 59.89% | D120: =100%-D119 -> 48.22% | AO120: Cifras, tablas e indicadores | AP120: 1 | AQ120: 40.1 | AR120: =(AO120=Parametros[Segmento])*(AP120>0)*(AQ120>0) -> 0
B121: Salario Mínimo | C121: $ 1,000,000 | D121: $ 1,160,000 | AO121: Cifras, tablas e indicadores | AP121: 1 | AQ121: 30 | AR121: =(AO121=Parametros[Segmento])*(AP121>0)*(AQ121>0) -> 0
B122: Auxilio de Transporte | C122: $ 117,172 | D122: $ 140,606 | AO122: Cifras, tablas e indicadores | AP122: 1 | AQ122: 30 | AR122: =(AO122=Parametros[Segmento])*(AP122>0)*(AQ122>0) -> 0
B123: Sanción mínima | C123: =ROUND(10*C112,-3) -> $ 363,000 | D123: =ROUND(10*38004,-3) -> $ 380,000 | AO123: Cifras, tablas e indicadores | AP123: 1 | AQ123: 30 | AR123: =(AO123=Parametros[Segmento])*(AP123>0)*(AQ123>0) -> 0
B124: Monto de ingresos para que la declaración de renta deba ser firmada por un contador | C124: =100000*C112 -> $ 3,630,800,000 | D124: =100000*38004 -> $ 3,800,400,000 | AO124: Cifras, tablas e indicadores | AP124: 1 | AQ124: 30 | AR124: =(AO124=Parametros[Segmento])*(AP124>0)*(AQ124>0) -> 0
A125: 3.33 | B125: 2 | C125: 130.44 | D125: 31.33 | E125: 5 | AO125: Datos Contribuyente | AP125: 0 | AQ125: 15 | AR125: =(AO125=Parametros[Segmento])*(AP125>0)*(AQ125>0) -> 0
AO126: Datos Contribuyente | AP126: 1 | AQ126: 30 | AR126: =(AO126=Parametros[Segmento])*(AP126>0)*(AQ126>0) -> 0
B127: Datos básicos del contribuyente | AO127: Datos Contribuyente | AP127: 1 | AQ127: 30 | AR127: =(AO127=Parametros[Segmento])*(AP127>0)*(AQ127>0) -> 0
B128: Concepto | D128: Datos | AO128: Datos Contribuyente | AP128: 1 | AQ128: 30 | AR128: =(AO128=Parametros[Segmento])*(AP128>0)*(AQ128>0) -> 0
B129: Primer nombre | D129: Andrés | AO129: Datos Contribuyente | AP129: 1 | AQ129: 30 | AR129: =(AO129=Parametros[Segmento])*(AP129>0)*(AQ129>0) -> 0
B130: Segundo nombre | AO130: Datos Contribuyente | AP130: 1 | AQ130: 30 | AR130: =(AO130=Parametros[Segmento])*(AP130>0)*(AQ130>0) -> 0
B131: Primer apellido | D131: Julián | AO131: Datos Contribuyente | AP131: 1 | AQ131: 30 | AR131: =(AO131=Parametros[Segmento])*(AP131>0)*(AQ131>0) -> 0
B132: Segundo apellido | D132: Martínez | AO132: Datos Contribuyente | AP132: 1 | AQ132: 30 | AR132: =(AO132=Parametros[Segmento])*(AP132>0)*(AQ132>0) -> 0
B133: NIT del contribuyente | D133: 1112674696 | AO133: Datos Contribuyente | AP133: 1 | AQ133: 30 | AR133: =(AO133=Parametros[Segmento])*(AP133>0)*(AQ133>0) -> 0
B134: Dígito de verificación | D134: =modOnce(D133) -> 5 | AO134: Datos Contribuyente | AP134: 1 | AQ134: 30 | AR134: =(AO134=Parametros[Segmento])*(AP134>0)*(AQ134>0) -> 0
B135: Últimos dos dígitos del NIT | D135: =RIGHT(D133,2) -> 96 | AO135: Datos Contribuyente | AP135: 0 | AQ135: 0 | AR135: =(AO135=Parametros[Segmento])*(AP135>0)*(AQ135>0) -> 0
B136: Actividad principal del contribuyente | D136: 0020 | AO136: Datos Contribuyente | AP136: 1 | AQ136: 30 | AR136: =(AO136=Parametros[Segmento])*(AP136>0)*(AQ136>0) -> 0
B137: Código dirección seccional DIAN | D137: 05 | AO137: Datos Contribuyente | AP137: 1 | AQ137: 30 | AR137: =(AO137=Parametros[Segmento])*(AP137>0)*(AQ137>0) -> 0
B138: ¿El contribuyente tiene dependientes económicos? | D138: No | AO138: Datos Contribuyente | AP138: 1 | AQ138: 30 | AR138: =(AO138=Parametros[Segmento])*(AP138>0)*(AQ138>0) -> 0
B139: Relación del contribuyente con el dependiente económico | AO139: Datos Contribuyente | AP139: =($D$138="Sí")*1 -> 0 | AQ139: 30 | AR139: =(AO139=Parametros[Segmento])*(AP139>0)*(AQ139>0) -> 0
B140: Nombre del dependiente económico | AO140: Datos Contribuyente | AP140: =($D$138="Sí")*1 -> 0 | AQ140: 30 | AR140: =(AO140=Parametros[Segmento])*(AP140>0)*(AQ140>0) -> 0
B141: Tipo Documento del dependiente económico | AO141: Datos Contribuyente | AP141: =($D$138="Sí")*1 -> 0 | AQ141: 30 | AR141: =(AO141=Parametros[Segmento])*(AP141>0)*(AQ141>0) -> 0
B142: Documento de identidad del dependiente económico | AO142: Datos Contribuyente | AP142: =($D$138="Sí")*1 -> 0 | AQ142: 30 | AR142: =(AO142=Parametros[Segmento])*(AP142>0)*(AQ142>0) -> 0
B143: ¿El contribuyente recibió ingresos en el exterior durante el año gravable 2022? | D143: No | AO143: Datos Contribuyente | AP143: 1 | AQ143: 30 | AR143: =(AO143=Parametros[Segmento])*(AP143>0)*(AQ143>0) -> 0
B144: ¿Obtuvo ingresos en países miembros de la CAN (Perú, Ecuador y/o Bolivia)? | AO144: Datos Contribuyente | AP144: =($D$143="Sí")*1 -> 0 | AQ144: 30 | AR144: =(AO144=Parametros[Segmento])*(AP144>0)*(AQ144>0) -> 0
B145: ¿Obtuvo ingresos en otros países? | AO145: Datos Contribuyente | AP145: =($D$143="Sí")*1 -> 0 | AQ145: 30 | AR145: =(AO145=Parametros[Segmento])*(AP145>0)*(AQ145>0) -> 0
B146: El contribuyente tenía activos en el exterior a 31 de diciembre de 2022? | D146: No | AO146: Datos Contribuyente | AP146: 1 | AQ146: 30 | AR146: =(AO146=Parametros[Segmento])*(AP146>0)*(AQ146>0) -> 0
B147: ¿Cuántas veces ha presentado la declaración de renta el contribuyente? | D147: Esta es la tercera vez o más | AO147: Datos Contribuyente | AP147: 1 | AQ147: 30 | AR147: =(AO147=Parametros[Segmento])*(AP147>0)*(AQ147>0) -> 0
B148: Ingreso promedio mensual de los últimos seis meses de vinculación laboral | D148: $ 0 | AO148: Datos Contribuyente | AP148: 1 | AQ148: 30 | AR148: =(AO148=Parametros[Segmento])*(AP148>0)*(AQ148>0) -> 0
AO149: Datos Contribuyente | AP149: 1 | AQ149: 30 | AR149: =(AO149=Parametros[Segmento])*(AP149>0)*(AQ149>0) -> 0
B150: Información declaración de renta del año anterior | AO150: Datos Contribuyente | AP150: 1 | AQ150: 30 | AR150: =(AO150=Parametros[Segmento])*(AP150>0)*(AQ150>0) -> 0
B151: Concepto | D151: Datos | AO151: Datos Contribuyente | AP151: 1 | AQ151: 30 | AR151: =(AO151=Parametros[Segmento])*(AP151>0)*(AQ151>0) -> 0
B152: Patrimonio bruto del año gravable anterior (a 31 de diciembre de 2021) | D152: $ 269,780,000 | AO152: Datos Contribuyente | AP152: 1 | AQ152: 30 | AR152: =(AO152=Parametros[Segmento])*(AP152>0)*(AQ152>0) -> 0
B153: Patrimonio líquido del año gravable anterior (a 31 de diciembre de 2021) | D153: $ 241,560,000 | AO153: Datos Contribuyente | AP153: 1 | AQ153: 30 | AR153: =(AO153=Parametros[Segmento])*(AP153>0)*(AQ153>0) -> 0
B154: Impuesto neto de renta del año gravable anterior (casilla 127 F210 AG 2021) | D154: $ 0 | AO154: Datos Contribuyente | AP154: 1 | AQ154: 30 | AR154: =(AO154=Parametros[Segmento])*(AP154>0)*(AQ154>0) -> 0
B155: Saldo a pagar año gravable anterior (casilla 137 F210 AG 2021) | D155: $ 0 | AO155: Datos Contribuyente | AP155: 1 | AQ155: 30 | AR155: =(AO155=Parametros[Segmento])*(AP155>0)*(AQ155>0) -> 0
B156: Saldo a favor año gravable anterior | D156: $ 0 | AO156: Datos Contribuyente | AP156: 1 | AQ156: 30 | AR156: =(AO156=Parametros[Segmento])*(AP156>0)*(AQ156>0) -> 0
B157: Saldo a favor año gravable anterior, sin solicitud de devolución y/o compensación (casilla 138 F210 AG 2021) | D157: $ 0 | AO157: Datos Contribuyente | AP157: 1 | AQ157: 30 | AR157: =(AO157=Parametros[Segmento])*(AP157>0)*(AQ157>0) -> 0
B158: Anticipo de renta calculado en la declaración de renta año gravable anterior (casilla 134 F210 AG 2021) | D158: $ 0 | AO158: Datos Contribuyente | AP158: 1 | AQ158: 30 | AR158: =(AO158=Parametros[Segmento])*(AP158>0)*(AQ158>0) -> 0
B159: Pérdidas fiscales de rentas de trabajo por honorarios y comp. servicios personales generadas en el año gravable 2019 y/o siguientes, sin compensar | D159: $ 0 | AO159: Datos Contribuyente | AP159: 1 | AQ159: 40 | AR159: =(AO159=Parametros[Segmento])*(AP159>0)*(AQ159>0) -> 0
B160: ¿El contribuyente va a compensar estás pérdidas fiscales? | AO160: Datos Contribuyente | AP160: =(D159>0)*1 -> 0 | AQ160: 30 | AR160: =(AO160=Parametros[Segmento])*(AP160>0)*(AQ160>0) -> 0
B161: Pérdidas fiscales de rentas de capital generadas en el año gravable 2019 y/o siguientes, sin compensar | D161: $ 0 | AO161: Datos Contribuyente | AP161: 1 | AQ161: 30 | AR161: =(AO161=Parametros[Segmento])*(AP161>0)*(AQ161>0) -> 0
B162: ¿El contribuyente va a compensar estás pérdidas fiscales? | AO162: Datos Contribuyente | AP162: =(D161>0)*1 -> 0 | AQ162: 30 | AR162: =(AO162=Parametros[Segmento])*(AP162>0)*(AQ162>0) -> 0
B163: Pérdidas fiscales de rentas no laborales generadas en el año gravable 2019 y/o siguientes, sin compensar | D163: $ 0 | AO163: Datos Contribuyente | AP163: 1 | AQ163: 30 | AR163: =(AO163=Parametros[Segmento])*(AP163>0)*(AQ163>0) -> 0
B164: ¿El contribuyente va a compensar estás pérdidas fiscales? | AO164: Datos Contribuyente | AP164: =(D163>0)*1 -> 0 | AQ164: 30 | AR164: =(AO164=Parametros[Segmento])*(AP164>0)*(AQ164>0) -> 0
B165: Pérdidas fiscales acumuladas correspondientes al año gravable 2018 y anteriores, sin compensar | D165: $ 0 | AO165: Datos Contribuyente | AP165: 1 | AQ165: 30 | AR165: =(AO165=Parametros[Segmento])*(AP165>0)*(AQ165>0) -> 0
B166: ¿El contribuyente va a compensar estás pérdidas fiscales? | AO166: Datos Contribuyente | AP166: =(D165>0)*1 -> 0 | AQ166: 30 | AR166: =(AO166=Parametros[Segmento])*(AP166>0)*(AQ166>0) -> 0
B167: Excesos de renta presuntiva, sin compensar | D167: $ 0 | AO167: Datos Contribuyente | AP167: 1 | AQ167: 30 | AR167: =(AO167=Parametros[Segmento])*(AP167>0)*(AQ167>0) -> 0
B168: ¿El contribuyente va a compensar estás pérdidas fiscales? | AO168: Datos Contribuyente | AP168: =(D167>0)*1 -> 0 | AQ168: 30 | AR168: =(AO168=Parametros[Segmento])*(AP168>0)*(AQ168>0) -> 0
AO169: Datos Contribuyente | AP169: 1 | AQ169: 30 | AR169: =(AO169=Parametros[Segmento])*(AP169>0)*(AQ169>0) -> 0
B170: Plazo para presentar la declaración | AO170: Datos Contribuyente | AP170: 1 | AQ170: 30 | AR170: =(AO170=Parametros[Segmento])*(AP170>0)*(AQ170>0) -> 0
B171: Concepto | D171: Datos | AO171: Datos Contribuyente | AP171: 1 | AQ171: 30 | AR171: =(AO171=Parametros[Segmento])*(AP171>0)*(AQ171>0) -> 0
B172: Fecha de vencimiento del plazo para presentar la declaración de renta fijada por el Gobierno Nacional | D172: =IFERROR(VLOOKUP(D135,$G$1857:$P$1957,6,0),"") -> 2023-10-17 | AO172: Datos Contribuyente | AP172: 1 | AQ172: 30 | AR172: =(AO172=Parametros[Segmento])*(AP172>0)*(AQ172>0) -> 0
B173: Fecha en la cual el contribuyente presentará la declaración de renta | D173: 22/08/2023 | AO173: Datos Contribuyente | AP173: 1 | AQ173: 30 | AR173: =(AO173=Parametros[Segmento])*(AP173>0)*(AQ173>0) -> 0
B174: Mes o fracción de extemporaneidad | D174: =IFERROR(IF(ROUNDUP((DAYS360(D172,IF(DAY(D173)=31,D173+1,D173))/30),0)>0,ROUNDUP((DAYS360(D172,IF(DAY(D173)=31,D173+1,D173))/30),0),0),0) -> 0 | AO174: Datos Contribuyente | AP174: 1 | AQ174: 30 | AR174: =(AO174=Parametros[Segmento])*(AP174>0)*(AQ174>0) -> 0
B175: La declaración se presentará de forma extemporánea | D175: =IF(D174="","",IF(D174<=0,"No","Sí")) -> No | AO175: Datos Contribuyente | AP175: 1 | AQ175: 30 | AR175: =(AO175=Parametros[Segmento])*(AP175>0)*(AQ175>0) -> 0
B176: ¿El contribuyente recibió un emplazamiento por no declarar? | AO176: Datos Contribuyente | AP176: 1 | AQ176: 30 | AR176: =(AO176=Parametros[Segmento])*(AP176>0)*(AQ176>0) -> 0
A177: =IF(Parametros[Segmento]="Informes",0,2.11) -> 2.11 | B177: =IF(Parametros[Segmento]="Informes",0,82.78) -> 82.78 | C177: =IF(Parametros[Segmento]="Informes",0,24) -> 24 | D177: =IF(Parametros[Segmento]="Informes",0,IF(' '!$D$146="Sí",24,0)) -> 0 | E177: =IF(Parametros[Segmento]="Informes",0,24) -> 24 | F177: 0 | G177: 0 | H177: 0 | I177: 0 | J177: 0 | K177: 0 | L177: 0 | M177: 0 | N177: 0 | O177: 0 | P177: 0 | Q177: 0 | R177: =IF(Parametros[Segmento]="Informes",3,0) -> 0 | S177: =IF(Parametros[Segmento]="Informes",101.44,0) -> 0 | T177: =IF(Parametros[Segmento]="Informes",22.22,0) -> 0 | U177: =IF(Parametros[Segmento]="Informes",22.22,0) -> 0 | V177: 0 | W177: 0 | X177: 0 | Y177: 5 | AO177: =IF(Parametros[Segmento]="Informes","Informes","Activos") -> Activos | AP177: 0 | AQ177: 15 | AR177: =(AO177=Parametros[Segmento])*(AP177>0)*(AQ177>0) -> 0
V178: 30 | W178: Activos | X178: 30 | AO178: =IF(Parametros[Segmento]="Informes","Informes",W178) -> Activos | AP178: 1 | AQ178: =IF(Parametros[Segmento]="Informes",V178,X178) -> 30 | AR178: =(AO178=Parametros[Segmento])*(AP178>0)*(AQ178>0) -> 0
B179: Activos | S179: Resumen información reportada en la declaración de renta del año gravable 2022 | V179: 30 | W179: Activos | X179: 30 | AO179: =IF(Parametros[Segmento]="Informes","Informes",W179) -> Activos | AP179: 1 | AQ179: =IF(Parametros[Segmento]="Informes",V179,X179) -> 30 | AR179: =(AO179=Parametros[Segmento])*(AP179>0)*(AQ179>0) -> 0
B180: Disponible a 31 de diciembre de 2022 | O180: 0 | S180: Disponible a 31 de diciembre de 2022 | V180: 30 | W180: Activos | X180: 30 | AO180: =IF(Parametros[Segmento]="Informes","Informes",W180) -> Activos | AP180: 1 | AQ180: =IF(Parametros[Segmento]="Informes",V180,X180) -> 30 | AR180: =(AO180=Parametros[Segmento])*(AP180>0)*(AQ180>0) -> 0
B181: Concepto | C181: Nacionales | D181: Del exterior | E181: Totales | S181: Descripción | T181: Valor reportado | U181: Total | V181: 30 | W181: Activos | X181: 30 | AO181: =IF(Parametros[Segmento]="Informes","Informes",W181) -> Activos | AP181: =$O$180 -> 0 | AQ181: =IF(Parametros[Segmento]="Informes",V181,X181) -> 30 | AR181: =(AO181=Parametros[Segmento])*(AP181>0)*(AQ181>0) -> 0
B182: Efectivo | V182: 0 | W182: Activos | X182: 30 | AO182: =IF(Parametros[Segmento]="Informes","Informes",W182) -> Activos | AP182: 0 | AQ182: =IF(Parametros[Segmento]="Informes",V182,X182) -> 30 | AR182: =(AO182=Parametros[Segmento])*(AP182>0)*(AQ182>0) -> 0
S183: =+' '!B183 -> 0 | T183: =+SUM(' '!C183:D183) -> $ 0 | V183: 30 | W183: Activos | X183: 30 | AM183: =IF(Parametros[Segmento]="Informes","",W183) -> Activos | AN183: =IF(Parametros[Segmento]="Informes","",SUBSTITUTE($B$182,CHAR(10),"")) -> Efectivo | AO183: =IF(Parametros[Segmento]="Informes","Informes",W183) -> Activos | AP183: =IF(Parametros[Segmento]="Informes",T183<>0,(AN183=OFFSET(AN183,1,0))*$O$180)*1 -> 0 | AQ183: =IF(Parametros[Segmento]="Informes",V183,X183) -> 30 | AR183: =(AO183=Parametros[Segmento])*(AP183>0)*(AQ183>0) -> 0
S184: =+' '!B184 -> 0 | T184: =+SUM(' '!C184:D184) -> $ 0 | V184: 30 | W184: Activos | X184: 30 | AM184: =IF(Parametros[Segmento]="Informes","",W184) -> Activos | AN184: =IF(Parametros[Segmento]="Informes","",SUBSTITUTE($B$182,CHAR(10),"")) -> Efectivo | AO184: =IF(Parametros[Segmento]="Informes","Informes",W184) -> Activos | AP184: =IF(Parametros[Segmento]="Informes",T184<>0,(AN184=OFFSET(AN184,1,0))*$O$180)*1 -> 0 | AQ184: =IF(Parametros[Segmento]="Informes",V184,X184) -> 30 | AR184: =(AO184=Parametros[Segmento])*(AP184>0)*(AQ184>0) -> 0
B185: Totales | C185: =SUM(C183:C184) -> $ 0 | D185: =SUM(D183:D184) -> $ 0 | E185: =C185+(Activos_Exterior="Sí")*D185 -> $ 0 | S185: Total efectivo | U185: =SUM(T183:T184) -> $ 0 | V185: 30 | W185: Activos | X185: 30 | AO185: =IF(Parametros[Segmento]="Informes","Informes",W185) -> Activos | AP185: =IF(Parametros[Segmento]="Informes",MAX(AP183:AP184),$O$180) -> 0 | AQ185: =IF(Parametros[Segmento]="Informes",V185,X185) -> 30 | AR185: =(AO185=Parametros[Segmento])*(AP185>0)*(AQ185>0) -> 0
B186: Saldos en cuentas de ahorros | V186: 0 | W186: Activos | X186: 30 | AO186: =IF(Parametros[Segmento]="Informes","Informes",W186) -> Activos | AP186: =$O$180 -> 0 | AQ186: =IF(Parametros[Segmento]="Informes",V186,X186) -> 30 | AR186: =(AO186=Parametros[Segmento])*(AP186>0)*(AQ186>0) -> 0
B187: BBVA | C187: $ 9,700,000 | S187: =+' '!B187 -> BBVA | T187: =+SUM(' '!C187:D187) -> $ 9,700,000 | V187: 30 | W187: Activos | X187: 30 | AM187: =IF(Parametros[Segmento]="Informes","",W187) -> Activos | AN187: =IF(Parametros[Segmento]="Informes","",SUBSTITUTE($B$186,CHAR(10),"")) -> Saldos en cuentas de ahorros | AO187: =IF(Parametros[Segmento]="Informes","Informes",W187) -> Activos | AP187: =IF(Parametros[Segmento]="Informes",T187<>0,(AN187=OFFSET(AN187,1,0))*$O$180)*1 -> 0 | AQ187: =IF(Parametros[Segmento]="Informes",V187,X187) -> 30 | AR187: =(AO187=Parametros[Segmento])*(AP187>0)*(AQ187>0) -> 0
B188: Itaú | C188: $ 4,651,000 | S188: =+' '!B188 -> Itaú | T188: =+SUM(' '!C188:D188) -> $ 4,651,000 | V188: 30 | W188: Activos | X188: 30 | AM188: =IF(Parametros[Segmento]="Informes","",W188) -> Activos | AN188: =IF(Parametros[Segmento]="Informes","",SUBSTITUTE($B$186,CHAR(10),"")) -> Saldos en cuentas de ahorros | AO188: =IF(Parametros[Segmento]="Informes","Informes",W188) -> Activos | AP188: =IF(Parametros[Segmento]="Informes",T188<>0,(AN188=OFFSET(AN188,1,0))*$O$180)*1 -> 0 | AQ188: =IF(Parametros[Segmento]="Informes",V188,X188) -> 30 | AR188: =(AO188=Parametros[Segmento])*(AP188>0)*(AQ188>0) -> 0
S189: =+' '!B189 -> 0 | T189: =+SUM(' '!C189:D189) -> $ 0 | V189: 30 | W189: Activos | X189: 30 | AM189: =IF(Parametros[Segmento]="Informes","",W189) -> Activos | AN189: =IF(Parametros[Segmento]="Informes","",SUBSTITUTE($B$186,CHAR(10),"")) -> Saldos en cuentas de ahorros | AO189: =IF(Parametros[Segmento]="Informes","Informes",W189) -> Activos | AP189: =IF(Parametros[Segmento]="Informes",T189<>0,(AN189=OFFSET(AN189,1,0))*$O$180)*1 -> 0 | AQ189: =IF(Parametros[Segmento]="Informes",V189,X189) -> 30 | AR189: =(AO189=Parametros[Segmento])*(AP189>0)*(AQ189>0) -> 0
B190: Totales | C190: =SUM(C187:C189) -> $ 14,351,000 | D190: =SUM(D187:D189) -> $ 0 | E190: =C190+(Activos_Exterior="Sí")*D190 -> $ 14,351,000 | T190: Total saldo en cuentas de ahorros | U190: =+SUM(T187:T189) -> $ 14,351,000 | V190: 30 | W190: Activos | X190: 30 | AO190: =IF(Parametros[Segmento]="Informes","Informes",W190) -> Activos | AP190: =IF(Parametros[Segmento]="Informes",MAX(AP187:AP189),$O$180) -> 0 | AQ190: =IF(Parametros[Segmento]="Informes",V190,X190) -> 30 | AR190: =(AO190=Parametros[Segmento])*(AP190>0)*(AQ190>0) -> 0
B191: Saldos en cuentas corrientes | V191: 0 | W191: Activos | X191: 30 | AO191: =IF(Parametros[Segmento]="Informes","Informes",W191) -> Activos | AP191: =$O$180 -> 0 | AQ191: =IF(Parametros[Segmento]="Informes",V191,X191) -> 30 | AR191: =(AO191=Parametros[Segmento])*(AP191>0)*(AQ191>0) -> 0
S192: =+' '!B192 -> 0 | T192: =+SUM(' '!C192:D192) -> $ 0 | V192: 30 | W192: Activos | X192: 30 | AM192: =IF(Parametros[Segmento]="Informes","",W192) -> Activos | AN192: =IF(Parametros[Segmento]="Informes","",SUBSTITUTE($B$191,CHAR(10),"")) -> Saldos en cuentas corrientes | AO192: =IF(Parametros[Segmento]="Informes","Informes",W192) -> Activos | AP192: =IF(Parametros[Segmento]="Informes",T192<>0,(AN192=OFFSET(AN192,1,0))*$O$180)*1 -> 0 | AQ192: =IF(Parametros[Segmento]="Informes",V192,X192) -> 30 | AR192: =(AO192=Parametros[Segmento])*(AP192>0)*(AQ192>0) -> 0
S193: =+' '!B193 -> 0 | T193: =+SUM(' '!C193:D193) -> $ 0 | V193: 30 | W193: Activos | X193: 30 | AM193: =IF(Parametros[Segmento]="Informes","",W193) -> Activos | AN193: =IF(Parametros[Segmento]="Informes","",SUBSTITUTE($B$191,CHAR(10),"")) -> Saldos en cuentas corrientes | AO193: =IF(Parametros[Segmento]="Informes","Informes",W193) -> Activos | AP193: =IF(Parametros[Segmento]="Informes",T193<>0,(AN193=OFFSET(AN193,1,0))*$O$180)*1 -> 0 | AQ193: =IF(Parametros[Segmento]="Informes",V193,X193) -> 30 | AR193: =(AO193=Parametros[Segmento])*(AP193>0)*(AQ193>0) -> 0
B194: Totales | C194: =SUM(C192:C193) -> $ 0 | D194: =SUM(D192:D193) -> $ 0 | E194: =C194+(Activos_Exterior="Sí")*D194 -> $ 0 | T194: Total saldo en cuentas corrientes | U194: =+SUM(T192:T193) -> $ 0 | V194: 30 | W194: Activos | X194: 30 | AO194: =IF(Parametros[Segmento]="Informes","Informes",W194) -> Activos | AP194: =IF(Parametros[Segmento]="Informes",MAX(AP192:AP193),$O$180) -> 0 | AQ194: =IF(Parametros[Segmento]="Informes",V194,X194) -> 30 | AR194: =(AO194=Parametros[Segmento])*(AP194>0)*(AQ194>0) -> 0
B195: Saldos en cuentas AFC | V195: 0 | W195: Activos | X195: 30 | AO195: =IF(Parametros[Segmento]="Informes","Informes",W195) -> Activos | AP195: =$O$180 -> 0 | AQ195: =IF(Parametros[Segmento]="Informes",V195,X195) -> 30 | AR195: =(AO195=Parametros[Segmento])*(AP195>0)*(AQ195>0) -> 0
S196: =+' '!B196 -> 0 | T196: =+SUM(' '!C196:D196) -> $ 0 | V196: 30 | W196: Activos | X196: 30 | AM196: =IF(Parametros[Segmento]="Informes","",W196) -> Activos | AN196: =IF(Parametros[Segmento]="Informes","",SUBSTITUTE($B$195,CHAR(10),"")) -> Saldos en cuentas AFC | AO196: =IF(Parametros[Segmento]="Informes","Informes",W196) -> Activos | AP196: =IF(Parametros[Segmento]="Informes",T196<>0,(AN196=OFFSET(AN196,1,0))*$O$180)*1 -> 0 | AQ196: =IF(Parametros[Segmento]="Informes",V196,X196) -> 30 | AR196: =(AO196=Parametros[Segmento])*(AP196>0)*(AQ196>0) -> 0
S197: =+' '!B197 -> 0 | T197: =+SUM(' '!C197:D197) -> $ 0 | V197: 30 | W197: Activos | X197: 30 | AM197: =IF(Parametros[Segmento]="Informes","",W197) -> Activos | AN197: =IF(Parametros[Segmento]="Informes","",SUBSTITUTE($B$195,CHAR(10),"")) -> Saldos en cuentas AFC | AO197: =IF(Parametros[Segmento]="Informes","Informes",W197) -> Activos | AP197: =IF(Parametros[Segmento]="Informes",T197<>0,(AN197=OFFSET(AN197,1,0))*$O$180)*1 -> 0 | AQ197: =IF(Parametros[Segmento]="Informes",V197,X197) -> 30 | AR197: =(AO197=Parametros[Segmento])*(AP197>0)*(AQ197>0) -> 0
B198: Totales | C198: =SUM(C196:C197) -> $ 0 | D198: =SUM(D196:D197) -> $ 0 | E198: =C198+(Activos_Exterior="Sí")*D198 -> $ 0 | T198: Total saldo en cuentas AFC | U198: =+SUM(T196:T197) -> $ 0 | V198: 30 | W198: Activos | X198: 30 | AO198: =IF(Parametros[Segmento]="Informes","Informes",W198) -> Activos | AP198: =IF(Parametros[Segmento]="Informes",MAX(AP196:AP197),$O$180) -> 0 | AQ198: =IF(Parametros[Segmento]="Informes",V198,X198) -> 30 | AR198: =(AO198=Parametros[Segmento])*(AP198>0)*(AQ198>0) -> 0
B199: Saldos en fondos de pensiones voluntarias | V199: 0 | W199: Activos | X199: 30 | AO199: =IF(Parametros[Segmento]="Informes","Informes",W199) -> Activos | AP199: =$O$180 -> 0 | AQ199: =IF(Parametros[Segmento]="Informes",V199,X199) -> 30 | AR199: =(AO199=Parametros[Segmento])*(AP199>0)*(AQ199>0) -> 0
S200: =+' '!B200 -> 0 | T200: =+SUM(' '!C200:D200) -> $ 0 | V200: 30 | W200: Activos | X200: 30 | AM200: =IF(Parametros[Segmento]="Informes","",W200) -> Activos | AN200: =IF(Parametros[Segmento]="Informes","",SUBSTITUTE($B$199,CHAR(10),"")) -> Saldos en fondos de pensiones voluntarias | AO200: =IF(Parametros[Segmento]="Informes","Informes",W200) -> Activos | AP200: =IF(Parametros[Segmento]="Informes",T200<>0,(AN200=OFFSET(AN200,1,0))*$O$180)*1 -> 0 | AQ200: =IF(Parametros[Segmento]="Informes",V200,X200) -> 30 | AR200: =(AO200=Parametros[Segmento])*(AP200>0)*(AQ200>0) -> 0
... 1875 more rows

Sheet Resumen (hidden)
B2: Resumen de información F210
B3: Patrimonio
D4: Patrimonio Bruto | E4: 29 | F4: =+ROUND(' '!E412,-3) -> $ 287,776,000
D5: Deudas | E5: 30 | F5: =+ROUND(' '!E497,-3) -> $ 15,698,000
D6: Total patrimonio líquido | E6: 31 | F6: =ROUND(IF((F4-F5)>0,(F4-F5),0),-3) -> $ 272,078,000
B7: Cédula General
B8: Rentas de trabajo
C9: Ingresos
D10: Ingresos brutos | E10: 32 | F10: =ROUND(' '!D868,-3) -> $ 0
D11: Ingresos no constitutivos de renta | E11: 33 | F11: =ROUND(' '!D870,-3) -> $ 0
D12: Renta líquida | E12: 34 | F12: =ROUND(IF((F10-F11)>=0,(F10-F11),0),-3) -> $ 0
C13: Rentas exentas
D14: Aportes voluntarios AFC, FVP y/o AVC | E14: 35 | F14: =ROUND(IF(F12>0,' '!F586+' '!F587,0),-3) -> $ 0
D15: Otras rentas exentas | E15: 36 | F15: =ROUND(IF(F12>0,' '!F582+SUM(' '!F588:F595),0),-3) -> $ 0
D16: Total rentas exentas | E16: 37 | F16: =ROUND(SUM(F14:F15),-3) -> $ 0
C17: Deducciones imputables
D18: Intereses de vivienda | E18: 38 | F18: =ROUND(IF(F12>0,' '!F563,0),-3) -> $ 0
D19: Otras deducciones imputables | E19: 39 | F19: =ROUND(IF(F12>0,SUM(' '!F564:F568),0),-3) -> $ 0
D20: Total deducciones imputables | E20: 40 | F20: =ROUND(SUM(F18:F19),-3) -> $ 0
C21: Rentas exentas y/o deducciones imputables limitadas | E21: 41 | F21: =ROUND(' '!D876,-3) -> $ 0
C22: Renta líquida ordinaria | E22: 42 | F22: =ROUND(IF((F12-F21)>0,F12-F21,0),-3) -> $ 0
B23: Rentas por honorarios y prestación de servicios personales sujetos a costos y gastos
C24: Ingresos
D25: Ingresos brutos | E25: 43 | F25: =ROUND(' '!E868,-3) -> $ 0
D26: Ingresos no constitutivos de renta | E26: 44 | F26: =ROUND(' '!E870,-3) -> $ 0
D27: Costos y deducciones procedentes | E27: 45 | F27: =ROUND(' '!E871,-3) -> $ 0
D28: Renta líquida | E28: 46 | F28: =ROUND(IF((F25-F26-F27)>=0,(F25-F26-F27),0),-3) -> $ 0
